Workbook

Sheet Cover
B2: Excel Basics 19: SUMIFS, COUNTIFS, AVERAGEIFS, MINIFS, MAXIFS functions to make calculations with one or more conditions or criteria
L4: Examples: | P4: Office 2016 Video #31
K5: 1 | L5: ='Ex(1)'!H1 -> Goal: Count How Many BUSN Classes You Had With a Grade of 3 or Higher
K6: 2 | L6: ='Ex(2)'!H1 -> Goal: Add Total Credits for BUSN Classes in the Year 2017.
K7: 3 | L7: ='Ex(3)'!H1 -> Goal: Average Grades for BUSN Classes in the Year 2017.
K8: 4 | L8: ='Ex(4)'!G1 -> Goal: Add Total COGS for Quad Product in the Year 2017.
K9: 5 | L9: ='Ex(5)'!G1 -> Goal: Add Total Sales for each Product in the Year 2017.
K10: 6 | L10: ='Ex(6)'!G3 -> Goal: Count number of Sales >2000 for each product in the year 2017
K11: 7 | L11: Goal: Add Sales for each Product automatically
K12: 8 | L12: Goal: Count how many times a Post fell below required <10 second
K13: 9-10 | L13: Goal: Find Min Time for Each Post. Formulas update automatically.

Sheet Video 03
A1: Date | B1: SalesRep | C1: Sales | E1: Goal: Count How Many Sales Gigi Made
A2: 2017-10-23 | B2: Chin | C2: 100 | E2: Criteria | F2: Count
A3: 2017-10-23 | B3: Gigi | C3: 200 | E3: Gigi | F3: =COUNTIFS(B2:B10,E3) -> 4 | G3: =IF(_xlfn.ISFORMULA(F3),_xlfn.FORMULATEXT(F3),"") -> =COUNTIFS(B2:B10,E3)
A4: 2017-10-24 | B4: Dawn | C4: 100 | G4: COUNTIFS counts with one condition
A5: 2017-10-24 | B5: Chin | C5: 300
A6: 2017-10-24 | B6: Chin | C6: 700 | E6: Goal: Add the Sales for Gigi
A7: 2017-10-23 | B7: Dawn | C7: 100 | E7: Criteria | F7: Sum
A8: 2017-10-24 | B8: Gigi | C8: 200 | E8: Gigi | F8: =SUMIFS(C2:C10,B2:B10,E8) -> 1100 | G8: =IF(_xlfn.ISFORMULA(F8),_xlfn.FORMULATEXT(F8),"") -> =SUMIFS(C2:C10,B2:B10,E8)
A9: 2017-10-24 | B9: Gigi | C9: 500 | G9: SUMIFS adds with one condition
A10: 2017-10-23 | B10: Gigi | C10: 200
A14: Sale Rep Criteria: | B14: Gigi

Sheet Video 04
A1: Date | B1: Region | C1: SalesRep | D1: Sales | F1: Goal: Creating a Sales Report where we added sales with one condition,
A2: 2017-10-20 | B2: West | C2: Gigi | D2: 620 | F2: and if we change a number we want it to update instantly
A3: 2017-10-20 | B3: Northwest | C3: Gigi | D3: 484 | F3: Region | G3: Total Sales
A4: 2017-10-20 | B4: West | C4: Freddy | D4: 376 | F4: Northwest | G4: =SUMIFS($D$2:$D$23,$B$2:$B$23,F4) -> 4791 | H4: =IF(_xlfn.ISFORMULA(G4),_xlfn.FORMULATEXT(G4),"") -> =SUMIFS($D$2:$D$23,$B$2:$B$23,F4)
A5: 2017-10-20 | B5: Northwest | C5: Freddy | D5: 1141 | F5: Southwest | G5: =SUMIFS($D$2:$D$23,$B$2:$B$23,F5) -> 3117 | H5: SUMIFS adds with one condition
A6: 2017-10-20 | B6: Northwest | C6: Chin | D6: 725 | F6: West | G6: 6215
A7: 2017-10-20 | B7: West | C7: Chin | D7: 222
A8: 2017-10-20 | B8: West | C8: June | D8: 1038
A9: 2017-10-21 | B9: Northwest | C9: Chin | D9: 154
A10: 2017-10-21 | B10: Northwest | C10: Gigi | D10: 205
A11: 2017-10-21 | B11: Southwest | C11: Gigi | D11: 895
A12: 2017-10-21 | B12: West | C12: Chin | D12: 1254
A13: 2017-10-22 | B13: Northwest | C13: June | D13: 596
A14: 2017-10-24 | B14: Southwest | C14: Gigi | D14: 799
A15: 2017-10-24 | B15: Northwest | C15: Gigi | D15: 651
A16: 2017-10-24 | B16: West | C16: June | D16: 1235
A17: 2017-10-24 | B17: Southwest | C17: Chin | D17: 684
A18: 2017-10-24 | B18: Northwest | C18: June | D18: 127
A19: 2017-10-24 | B19: West | C19: June | D19: 269
A20: 2017-10-25 | B20: Southwest | C20: Chin | D20: 739
A21: 2017-10-25 | B21: West | C21: Gigi | D21: 1201
A22: 2017-10-25 | B22: Northwest | C22: June | D22: 546
A23: 2017-10-25 | B23: Northwest | C23: Chin | D23: 162 | F23: PivotTables are usually easier to create than SUMIFS,
F24: but require a "Refresh" when source data changes
F26: Region | G26: Sum of Sales
F27: Northwest | G27: 4791
F28: Southwest | G28: 3117
F29: West | G29: 6215
F30: Grand Total | G30: 14123

Sheet Video 12
A1: Product | B1: Sales | D1: Goal: Count how many of each product we sold
A2: Quad | B2: 43 | D2: Product | E2: Count
A3: Sunset | B3: 23 | D3: Aspen | E3: =COUNTIFS($A$2:$A$7,D3) -> 1 | F3: =IF(_xlfn.ISFORMULA(E3),_xlfn.FORMULATEXT(E3),"") -> =COUNTIFS($A$2:$A$7,D3)
A4: Sunset | B4: 23 | D4: Quad | E4: =COUNTIFS($A$2:$A$7,D4) -> 3 | F4: COUNTIFS counts with one condition
A5: Quad | B5: 43 | D5: Sunset | E5: 2
A6: Aspen | B6: 19.95
A7: Quad | B7: 43

Sheet Video 18
A1: Transaction # | B1: Date | C1: Sales | D1: SalesRep | F1: Goal: Create SalesRep Sales Report with SUMIFS Function and Defined Names
A2: 12568 | B2: 2014-12-01 | C2: 19161 | D2: Jo | F2: SalesRep | G2: Sales
A3: 12569 | B3: 2014-12-01 | C3: 15027 | D3: Gigi | F3: Jo | G3: =SUMIFS(Sales,SalesRep,F3) -> 52103 | I3: =IF(_xlfn.ISFORMULA(G3),_xlfn.FORMULATEXT(G3),"") -> =SUMIFS(Sales,SalesRep,F3)
A4: 12570 | B4: 2014-12-02 | C4: 12953 | D4: Chin | F4: Gigi | G4: =SUMIFS(Sales,SalesRep,F4) -> 44124 | I4: SUMIFS adds with one condition
A5: 12571 | B5: 2014-12-02 | C5: 12670 | D5: Jo | F5: Chin | G5: =SUMIFS(Sales,SalesRep,F5) -> 34843
A6: 12572 | B6: 2014-12-02 | C6: 8893 | D6: Gigi
A7: 12573 | B7: 2014-12-03 | C7: 4667 | D7: Chin
A8: 12574 | B8: 2014-12-03 | C8: 20272 | D8: Jo
A9: 12575 | B9: 2014-12-03 | C9: 20204 | D9: Gigi
A10: 12576 | B10: 2014-12-03 | C10: 17223 | D10: Chin

Sheet More!
A1: 4 Videos Already in this class: SUMIFS function to add with a condition and & COUNTIFS function to count with a condition:
A2: Excel Basics 3: Count & Add with COUNT, COUNTA, SUM, COUNTIFS, SUMIFS Functions (Intro Excel #3)
A3: Excel Basics 4: PivotTables & SUMIFS Function to Create Summary Reports (Intro Excel #4)
A4: Excel Basics 12: Complete Formula Lesson of Formula Types & Formula Elements 12 Examples
A5: Excel Basics 18: Defined Names in Excel Formulas & Functions & For Jump Go To!
A7: Now we want to see how to make calculations with one or more conditions / criteria using these functions:
A8: SUMIFS
A9: COUNTIFS
A10: AVERAGEIFS
A11: MAXIFS
A12: MINIFS

Sheet AND
B2: AND Logical Test Means We Have Two or More Logical Tests and All Tests Must Come Out TRUE | J2: Comparative Operators.
B3: Think of: “If you take out the garbage AND clean the table, you get desert”. | J3: = | K3: Equal: are two things equal?
B4: Only if you get two TRUEs (took out garbage AND cleaned the table) do you get desert. | J4: <> | K4: Not: are two things not equal? Type less than symbol, then greater than symbol.
J5: > | K5: Greater than: is the thing on the left greater than the thing on the right?
B6: ="Goal: Count How Many "&B15&" Classes You Had With a Grade of "&RIGHT(C15,LEN(C15)-2)&" or Higher" -> Goal: Count How Many BUSN Classes You Had With a Grade of 3 or Higher | J6: >= | K6: Greater than or equal to: is the thing on the left greater than or equal to the thing on the right?
J7: < | K7: Less than: is the thing on the left less than the thing on the right?
B8: ="The AND Logical Test is: " -> The AND Logical Test is: | J8: <= | K8: Less than or equal to: is the thing on the left less than or equal to the thing on the right?
B9: ="the "&B14&" Field must contain "&B15&" " -> the Department Field must contain BUSN
B10: AND
B11: ="the "&G19&" Field must contain a number that is "&C15&"." -> the Grade Field must contain a number that is >=3.
B13: Criteria:
B14: Department | C14: Grade Hurdle
B15: BUSN | C15: >=3
B17: In Order to Count The Record, you Must Get Two TRUEs!!!!
B19: Quarter | C19: Year | D19: Department | E19: Class # | F19: Credits | G19: Grade
B20: Winter | C20: 2016 | D20: ECON | E20: 201 | F20: 5 | G20: 2.2
B21: Sum | C21: 2016 | D21: BUSN | E21: 102 | F21: 5 | G21: 1.8
B22: Winter | C22: 2017 | D22: COMM | E22: 101 | F22: 5 | G22: 3.1
B23: Winter | C23: 2016 | D23: BUSN | E23: 210 | F23: 5 | G23: 4
B25: AND Logical Test must get Two TRUEs:
B27: Quarter | C27: Year | D27: Department | E27: Class # | F27: Credits | G27: Grade
D28: =AND(D20=$B$15) -> FALSE | G28: =G20>=RIGHT($C$15,LEN($C$15)-2)+0 -> FALSE
D29: =AND(D21=$B$15) -> TRUE | G29: =G21>=RIGHT($C$15,LEN($C$15)-2)+0 -> FALSE
D30: =AND(D22=$B$15) -> FALSE | G30: =G22>=RIGHT($C$15,LEN($C$15)-2)+0 -> TRUE
D31: =AND(D23=$B$15) -> TRUE | G31: =G23>=RIGHT($C$15,LEN($C$15)-2)+0 -> TRUE

Sheet Ex(1)
A1: Quarter | B1: Year | C1: Department | D1: Class # | E1: Credits | F1: Grade | H1: ="Goal: Count How Many "&H11&" Classes You Had With a Grade of "&RIGHT(I11,LEN(I11)-2)&" or Higher" -> Goal: Count How Many BUSN Classes You Had With a Grade of 3 or Higher | P1: Comparative Operators.
A2: Fall | B2: 2015 | C2: MATH | D2: 97 | E2: 5 | F2: 3.2 | H2: and have ability to change criteria and have formulas instantly update | P2: = | Q2: Equal: are two things equal?
A3: Winter | B3: 2016 | C3: BUSN | D3: 210 | E3: 5 | F3: 4 | P3: <> | Q3: Not: are two things not equal? Type less than symbol, then greater than symbol.
A4: Winter | B4: 2016 | C4: ECON | D4: 201 | E4: 5 | F4: 2.2 | H4: ="The AND Logical Test is: " -> The AND Logical Test is: | P4: > | Q4: Greater than: is the thing on the left greater than the thing on the right?
A5: Winter | B5: 2016 | C5: BUSN | D5: 101 | E5: 5 | F5: 1.8 | H5: ="the "&H10&" Field must contain "&H11&" " -> the Department Field must contain BUSN | P5: >= | Q5: Greater than or equal to: is the thing on the left greater than or equal to the thing on the right?
A6: Spring | B6: 2016 | C6: MATH | D6: 148 | E6: 5 | F6: 2 | H6: AND | P6: < | Q6: Less than: is the thing on the left less than the thing on the right?
A7: Spring | B7: 2016 | C7: ECON | D7: 202 | E7: 5 | F7: 2 | H7: ="the "&F1&" Field must contain a number that is "&I11&"." -> the Grade Field must contain a number that is >=3. | P7: <= | Q7: Less than or equal to: is the thing on the left less than or equal to the thing on the right?
A8: Spring | B8: 2016 | C8: BUSN | D8: 133 | E8: 3 | F8: 3.4
A9: Sum | B9: 2016 | C9: BUSN | D9: 102 | E9: 5 | F9: 1.8 | H9: Criteria:
A10: Sum | B10: 2016 | C10: BUSN | D10: 135 | E10: 5 | F10: 3 | H10: Department | I10: Grade Hurdle
A11: Fall | B11: 2016 | C11: BUSN | D11: 216 | E11: 5 | F11: 3.6 | H11: BUSN | I11: >=3
A12: Fall | B12: 2016 | C12: BUSN | D12: 205 | E12: 5 | F12: 2.4 | H12: Count | J12: =IF(_xlfn.ISFORMULA(I12),_xlfn.FORMULATEXT(I12),"") -> 
A13: Fall | B13: 2016 | C13: BUSN | D13: 268 | E13: 5 | F13: 3.6 | J13: COUNTIFS counts with two conditions/criteria
A14: Winter | B14: 2017 | C14: COMM | D14: 101 | E14: 5 | F14: 3.1
A15: Winter | B15: 2017 | C15: ENGL | D15: 101 | E15: 5 | F15: 2.6 | H15: ** This is an example of where using COUNTIFS would be easier than trying to use a PivotTable
A16: Winter | B16: 2017 | C16: BUSN | D16: 218 | E16: 5 | F16: 3.1 | H16: because our condition uses a comparative operator (we have a hurdle as a condition).
A17: Spring | B17: 2017 | C17: BUSN | D17: 190 | E17: 5 | F17: 2.7
A18: Spring | B18: 2017 | C18: COMM | D18: 205 | E18: 5 | F18: 3.3
A19: Spring | B19: 2017 | C19: BI | D19: 348 | E19: 5 | F19: 3.9
A20: Sum | B20: 2017 | C20: Accgt | D20: 121 | E20: 5 | F20: 3.8
A21: Sum | B21: 2017 | C21: BUSN | D21: 270 | E21: 5 | F21: 3.1
A22: Fall | B22: 2017 | C22: ENGL | D22: 205 | E22: 5 | F22: 3.7
A23: Fall | B23: 2017 | C23: BUSN | D23: 138 | E23: 5 | F23: 2.2
A24: Fall | B24: 2017 | C24: BUSN | D24: 160 | E24: 5 | F24: 3.2
L40: Example of trying to use a PivotTable:
A42: Quarter | B42: Year | C42: Department | D42: Class # | E42: True? | F42: Credits | G42: Grade | L42: True? | M42: TRUE
A43: Fall | B43: 2015 | C43: MATH | D43: 97 | E43: =AND(C43=$H$11,G43>=RIGHT($I$11,LEN($I$11)-2)+0) -> FALSE | F43: 5 | G43: 3.2
A44: Winter | B44: 2016 | C44: BUSN | D44: 210 | E44: TRUE | F44: 5 | G44: 4 | L44: Row Labels | M44: Count of Grade
A45: Winter | B45: 2016 | C45: ECON | D45: 201 | E45: FALSE | F45: 5 | G45: 2.2 | L45: BUSN | M45: 8
A46: Winter | B46: 2016 | C46: BUSN | D46: 101 | E46: FALSE | F46: 5 | G46: 1.8 | L46: Grand Total | M46: 8
A47: Spring | B47: 2016 | C47: MATH | D47: 148 | E47: FALSE | F47: 5 | G47: 2
A48: Spring | B48: 2016 | C48: ECON | D48: 202 | E48: FALSE | F48: 5 | G48: 2
A49: Spring | B49: 2016 | C49: BUSN | D49: 133 | E49: TRUE | F49: 3 | G49: 3.4
A50: Sum | B50: 2016 | C50: BUSN | D50: 102 | E50: FALSE | F50: 5 | G50: 1.8
A51: Sum | B51: 2016 | C51: BUSN | D51: 135 | E51: TRUE | F51: 5 | G51: 3
A52: Fall | B52: 2016 | C52: BUSN | D52: 216 | E52: TRUE | F52: 5 | G52: 3.6
A53: Fall | B53: 2016 | C53: BUSN | D53: 205 | E53: FALSE | F53: 5 | G53: 2.4
A54: Fall | B54: 2016 | C54: BUSN | D54: 268 | E54: TRUE | F54: 5 | G54: 3.6
A55: Winter | B55: 2017 | C55: COMM | D55: 101 | E55: FALSE | F55: 5 | G55: 3.1
A56: Winter | B56: 2017 | C56: ENGL | D56: 101 | E56: FALSE | F56: 5 | G56: 2.6
A57: Winter | B57: 2017 | C57: BUSN | D57: 218 | E57: TRUE | F57: 5 | G57: 3.1
A58: Spring | B58: 2017 | C58: BUSN | D58: 190 | E58: FALSE | F58: 5 | G58: 2.7
A59: Spring | B59: 2017 | C59: COMM | D59: 205 | E59: FALSE | F59: 5 | G59: 3.3
A60: Spring | B60: 2017 | C60: BI | D60: 348 | E60: FALSE | F60: 5 | G60: 3.9
A61: Sum | B61: 2017 | C61: Accgt | D61: 121 | E61: FALSE | F61: 5 | G61: 3.8
A62: Sum | B62: 2017 | C62: BUSN | D62: 270 | E62: TRUE | F62: 5 | G62: 3.1
A63: Fall | B63: 2017 | C63: ENGL | D63: 205 | E63: FALSE | F63: 5 | G63: 3.7
A64: Fall | B64: 2017 | C64: BUSN | D64: 138 | E64: FALSE | F64: 5 | G64: 2.2
A65: Fall | B65: 2017 | C65: BUSN | D65: 160 | E65: TRUE | F65: 5 | G65: 3.2

Sheet Ex(1an)
A1: Quarter | B1: Year | C1: Department | D1: Class # | E1: Credits | F1: Grade | H1: ="Goal: Count How Many "&H11&" Classes You Had With a Grade of "&RIGHT(I11,LEN(I11)-2)&" or Higher" -> Goal: Count How Many BUSN Classes You Had With a Grade of 3 or Higher | P1: Comparative Operators.
A2: Fall | B2: 2015 | C2: MATH | D2: 97 | E2: 5 | F2: 3.2 | H2: and have ability to change criteria and have formulas instantly update | P2: = | Q2: Equal: are two things equal?
A3: Winter | B3: 2016 | C3: BUSN | D3: 210 | E3: 5 | F3: 4 | P3: <> | Q3: Not: are two things not equal? Type less than symbol, then greater than symbol.
A4: Winter | B4: 2016 | C4: ECON | D4: 201 | E4: 5 | F4: 2.2 | H4: ="The AND Logical Test is: " -> The AND Logical Test is: | P4: > | Q4: Greater than: is the thing on the left greater than the thing on the right?
A5: Winter | B5: 2016 | C5: BUSN | D5: 101 | E5: 5 | F5: 1.8 | H5: ="the "&H10&" Field must contain "&H11&" " -> the Department Field must contain BUSN | P5: >= | Q5: Greater than or equal to: is the thing on the left greater than or equal to the thing on the right?
A6: Spring | B6: 2016 | C6: MATH | D6: 148 | E6: 5 | F6: 2 | H6: AND | P6: < | Q6: Less than: is the thing on the left less than the thing on the right?
A7: Spring | B7: 2016 | C7: ECON | D7: 202 | E7: 5 | F7: 2 | H7: ="the "&F1&" Field must contain a number that is "&I11&"." -> the Grade Field must contain a number that is >=3. | P7: <= | Q7: Less than or equal to: is the thing on the left less than or equal to the thing on the right?
A8: Spring | B8: 2016 | C8: BUSN | D8: 133 | E8: 3 | F8: 3.4
A9: Sum | B9: 2016 | C9: BUSN | D9: 102 | E9: 5 | F9: 1.8 | H9: Criteria:
A10: Sum | B10: 2016 | C10: BUSN | D10: 135 | E10: 5 | F10: 3 | H10: Department | I10: Grade Hurdle
A11: Fall | B11: 2016 | C11: BUSN | D11: 216 | E11: 5 | F11: 3.6 | H11: BUSN | I11: >=3
A12: Fall | B12: 2016 | C12: BUSN | D12: 205 | E12: 5 | F12: 2.4 | H12: Count | I12: =COUNTIFS(C2:C24,H11,F2:F24,I11) -> 8 | J12: =IF(_xlfn.ISFORMULA(I12),_xlfn.FORMULATEXT(I12),"") -> =COUNTIFS(C2:C24,H11,F2:F24,I11)
A13: Fall | B13: 2016 | C13: BUSN | D13: 268 | E13: 5 | F13: 3.6 | J13: COUNTIFS counts with two conditions/criteria
A14: Winter | B14: 2017 | C14: COMM | D14: 101 | E14: 5 | F14: 3.1
A15: Winter | B15: 2017 | C15: ENGL | D15: 101 | E15: 5 | F15: 2.6 | H15: ** This is an example of where using COUNTIFS would be easier than trying to use a PivotTable
A16: Winter | B16: 2017 | C16: BUSN | D16: 218 | E16: 5 | F16: 3.1 | H16: because our condition uses a comparative operator (we have a hurdle as a condition).
A17: Spring | B17: 2017 | C17: BUSN | D17: 190 | E17: 5 | F17: 2.7
A18: Spring | B18: 2017 | C18: COMM | D18: 205 | E18: 5 | F18: 3.3
A19: Spring | B19: 2017 | C19: BI | D19: 348 | E19: 5 | F19: 3.9
A20: Sum | B20: 2017 | C20: Accgt | D20: 121 | E20: 5 | F20: 3.8
A21: Sum | B21: 2017 | C21: BUSN | D21: 270 | E21: 5 | F21: 3.1
A22: Fall | B22: 2017 | C22: ENGL | D22: 205 | E22: 5 | F22: 3.7
A23: Fall | B23: 2017 | C23: BUSN | D23: 138 | E23: 5 | F23: 2.2
A24: Fall | B24: 2017 | C24: BUSN | D24: 160 | E24: 5 | F24: 3.2
L40: Example of trying to use a PivotTable:
A42: Quarter | B42: Year | C42: Department | D42: Class # | E42: True? | F42: Credits | G42: Grade | L42: True? | M42: TRUE
A43: Fall | B43: 2015 | C43: MATH | D43: 97 | E43: =AND(C43=$H$11,G43>=RIGHT($I$11,LEN($I$11)-2)+0) -> FALSE | F43: 5 | G43: 3.2
A44: Winter | B44: 2016 | C44: BUSN | D44: 210 | E44: TRUE | F44: 5 | G44: 4 | L44: Row Labels | M44: Count of Grade
A45: Winter | B45: 2016 | C45: ECON | D45: 201 | E45: FALSE | F45: 5 | G45: 2.2 | L45: BUSN | M45: 8
A46: Winter | B46: 2016 | C46: BUSN | D46: 101 | E46: FALSE | F46: 5 | G46: 1.8 | L46: Grand Total | M46: 8
A47: Spring | B47: 2016 | C47: MATH | D47: 148 | E47: FALSE | F47: 5 | G47: 2
A48: Spring | B48: 2016 | C48: ECON | D48: 202 | E48: FALSE | F48: 5 | G48: 2
A49: Spring | B49: 2016 | C49: BUSN | D49: 133 | E49: TRUE | F49: 3 | G49: 3.4
A50: Sum | B50: 2016 | C50: BUSN | D50: 102 | E50: FALSE | F50: 5 | G50: 1.8
A51: Sum | B51: 2016 | C51: BUSN | D51: 135 | E51: TRUE | F51: 5 | G51: 3
A52: Fall | B52: 2016 | C52: BUSN | D52: 216 | E52: TRUE | F52: 5 | G52: 3.6
A53: Fall | B53: 2016 | C53: BUSN | D53: 205 | E53: FALSE | F53: 5 | G53: 2.4
A54: Fall | B54: 2016 | C54: BUSN | D54: 268 | E54: TRUE | F54: 5 | G54: 3.6
A55: Winter | B55: 2017 | C55: COMM | D55: 101 | E55: FALSE | F55: 5 | G55: 3.1
A56: Winter | B56: 2017 | C56: ENGL | D56: 101 | E56: FALSE | F56: 5 | G56: 2.6
A57: Winter | B57: 2017 | C57: BUSN | D57: 218 | E57: TRUE | F57: 5 | G57: 3.1
A58: Spring | B58: 2017 | C58: BUSN | D58: 190 | E58: FALSE | F58: 5 | G58: 2.7
A59: Spring | B59: 2017 | C59: COMM | D59: 205 | E59: FALSE | F59: 5 | G59: 3.3
A60: Spring | B60: 2017 | C60: BI | D60: 348 | E60: FALSE | F60: 5 | G60: 3.9
A61: Sum | B61: 2017 | C61: Accgt | D61: 121 | E61: FALSE | F61: 5 | G61: 3.8
A62: Sum | B62: 2017 | C62: BUSN | D62: 270 | E62: TRUE | F62: 5 | G62: 3.1
A63: Fall | B63: 2017 | C63: ENGL | D63: 205 | E63: FALSE | F63: 5 | G63: 3.7
A64: Fall | B64: 2017 | C64: BUSN | D64: 138 | E64: FALSE | F64: 5 | G64: 2.2
A65: Fall | B65: 2017 | C65: BUSN | D65: 160 | E65: TRUE | F65: 5 | G65: 3.2

Sheet Ex(2)
A1: Quarter | B1: Year | C1: Department | D1: Class # | E1: Credits | F1: Grade | H1: ="Goal: Add Total Credits for "&H11&" Classes in the Year "&I11&"." -> Goal: Add Total Credits for BUSN Classes in the Year 2017. | P1: Comparative Operators.
A2: Fall | B2: 2015 | C2: MATH | D2: 97 | E2: 5 | F2: 3.2 | H2: and have ability to change criteria and have formulas instantly update | P2: = | Q2: Equal: are two things equal?
A3: Winter | B3: 2016 | C3: BUSN | D3: 210 | E3: 5 | F3: 4 | P3: <> | Q3: Not: are two things not equal? Type less than symbol, then greater than symbol.
A4: Winter | B4: 2016 | C4: ECON | D4: 201 | E4: 5 | F4: 2.2 | H4: ="The AND Logical Test is: " -> The AND Logical Test is: | P4: > | Q4: Greater than: is the thing on the left greater than the thing on the right?
A5: Winter | B5: 2016 | C5: BUSN | D5: 101 | E5: 5 | F5: 1.8 | H5: ="the "&H10&" Field must contain "&H11&" " -> the Department Field must contain BUSN | P5: >= | Q5: Greater than or equal to: is the thing on the left greater than or equal to the thing on the right?
A6: Spring | B6: 2016 | C6: MATH | D6: 148 | E6: 5 | F6: 2 | H6: AND | P6: < | Q6: Less than: is the thing on the left less than the thing on the right?
A7: Spring | B7: 2016 | C7: ECON | D7: 202 | E7: 5 | F7: 2 | H7: ="the "&I10&" Field must contain "&I11&"." -> the Year Field must contain 2017. | P7: <= | Q7: Less than or equal to: is the thing on the left less than or equal to the thing on the right?
A8: Spring | B8: 2016 | C8: BUSN | D8: 133 | E8: 3 | F8: 3.4
A9: Sum | B9: 2016 | C9: BUSN | D9: 102 | E9: 5 | F9: 1.8 | H9: Criteria:
A10: Sum | B10: 2016 | C10: BUSN | D10: 135 | E10: 5 | F10: 3 | H10: =C1 -> Department | I10: =B1 -> Year
A11: Fall | B11: 2016 | C11: BUSN | D11: 216 | E11: 5 | F11: 3.6 | H11: BUSN | I11: 2017
A12: Fall | B12: 2016 | C12: BUSN | D12: 205 | E12: 5 | F12: 2.4 | H12: ="Total "&E1 -> Total Credits | J12: =IF(_xlfn.ISFORMULA(I12),_xlfn.FORMULATEXT(I12),"") -> 
A13: Fall | B13: 2016 | C13: BUSN | D13: 268 | E13: 5 | F13: 3.6 | J13: SUMIFS adds numbers with two conditions/criteria
A14: Winter | B14: 2017 | C14: COMM | D14: 101 | E14: 5 | F14: 3.1
A15: Winter | B15: 2017 | C15: ENGL | D15: 101 | E15: 5 | F15: 2.6
A16: Winter | B16: 2017 | C16: BUSN | D16: 218 | E16: 5 | F16: 3.1
A17: Spring | B17: 2017 | C17: BUSN | D17: 190 | E17: 5 | F17: 2.7
A18: Spring | B18: 2017 | C18: COMM | D18: 205 | E18: 5 | F18: 3.3
A19: Spring | B19: 2017 | C19: BI | D19: 348 | E19: 5 | F19: 3.9
A20: Sum | B20: 2017 | C20: Accgt | D20: 121 | E20: 5 | F20: 3.8
A21: Sum | B21: 2017 | C21: BUSN | D21: 270 | E21: 5 | F21: 3.1
A22: Fall | B22: 2017 | C22: ENGL | D22: 205 | E22: 5 | F22: 3.7
A23: Fall | B23: 2017 | C23: BUSN | D23: 138 | E23: 5 | F23: 2.2
A24: Fall | B24: 2017 | C24: BUSN | D24: 160 | E24: 5 | F24: 3.2

Sheet Ex(2an)
A1: Quarter | B1: Year | C1: Department | D1: Class # | E1: Credits | F1: Grade | H1: ="Goal: Add Total Credits for "&H11&" Classes in the Year "&I11&"." -> Goal: Add Total Credits for BUSN Classes in the Year 2017. | P1: Comparative Operators.
A2: Fall | B2: 2015 | C2: MATH | D2: 97 | E2: 5 | F2: 3.2 | H2: and have ability to change criteria and have formulas instantly update | P2: = | Q2: Equal: are two things equal?
A3: Winter | B3: 2016 | C3: BUSN | D3: 210 | E3: 5 | F3: 4 | P3: <> | Q3: Not: are two things not equal? Type less than symbol, then greater than symbol.
A4: Winter | B4: 2016 | C4: ECON | D4: 201 | E4: 5 | F4: 2.2 | H4: ="The AND Logical Test is: " -> The AND Logical Test is: | P4: > | Q4: Greater than: is the thing on the left greater than the thing on the right?
A5: Winter | B5: 2016 | C5: BUSN | D5: 101 | E5: 5 | F5: 1.8 | H5: ="the "&H10&" Field must contain "&H11&" " -> the Department Field must contain BUSN | P5: >= | Q5: Greater than or equal to: is the thing on the left greater than or equal to the thing on the right?
A6: Spring | B6: 2016 | C6: MATH | D6: 148 | E6: 5 | F6: 2 | H6: AND | P6: < | Q6: Less than: is the thing on the left less than the thing on the right?
A7: Spring | B7: 2016 | C7: ECON | D7: 202 | E7: 5 | F7: 2 | H7: ="the "&I10&" Field must contain "&I11&"." -> the Year Field must contain 2017. | P7: <= | Q7: Less than or equal to: is the thing on the left less than or equal to the thing on the right?
A8: Spring | B8: 2016 | C8: BUSN | D8: 133 | E8: 3 | F8: 3.4
A9: Sum | B9: 2016 | C9: BUSN | D9: 102 | E9: 5 | F9: 1.8 | H9: Criteria:
A10: Sum | B10: 2016 | C10: BUSN | D10: 135 | E10: 5 | F10: 3 | H10: =C1 -> Department | I10: =B1 -> Year
A11: Fall | B11: 2016 | C11: BUSN | D11: 216 | E11: 5 | F11: 3.6 | H11: BUSN | I11: 2017
A12: Fall | B12: 2016 | C12: BUSN | D12: 205 | E12: 5 | F12: 2.4 | H12: ="Total "&E1 -> Total Credits | I12: =SUMIFS(E2:E24,C2:C24,H11,B2:B24,I11) -> 25 | J12: =IF(_xlfn.ISFORMULA(I12),_xlfn.FORMULATEXT(I12),"") -> =SUMIFS(E2:E24,C2:C24,H11,B2:B24,I11)
A13: Fall | B13: 2016 | C13: BUSN | D13: 268 | E13: 5 | F13: 3.6 | J13: SUMIFS adds numbers with two conditions/criteria
A14: Winter | B14: 2017 | C14: COMM | D14: 101 | E14: 5 | F14: 3.1
A15: Winter | B15: 2017 | C15: ENGL | D15: 101 | E15: 5 | F15: 2.6
A16: Winter | B16: 2017 | C16: BUSN | D16: 218 | E16: 5 | F16: 3.1
A17: Spring | B17: 2017 | C17: BUSN | D17: 190 | E17: 5 | F17: 2.7
A18: Spring | B18: 2017 | C18: COMM | D18: 205 | E18: 5 | F18: 3.3
A19: Spring | B19: 2017 | C19: BI | D19: 348 | E19: 5 | F19: 3.9
A20: Sum | B20: 2017 | C20: Accgt | D20: 121 | E20: 5 | F20: 3.8
A21: Sum | B21: 2017 | C21: BUSN | D21: 270 | E21: 5 | F21: 3.1
A22: Fall | B22: 2017 | C22: ENGL | D22: 205 | E22: 5 | F22: 3.7
A23: Fall | B23: 2017 | C23: BUSN | D23: 138 | E23: 5 | F23: 2.2
A24: Fall | B24: 2017 | C24: BUSN | D24: 160 | E24: 5 | F24: 3.2

Sheet Ex(3)
A1: Quarter | B1: Year | C1: Department | D1: Class # | E1: Credits | F1: Grade | H1: ="Goal: Average Grades for "&H11&" Classes in the Year "&I11&"." -> Goal: Average Grades for BUSN Classes in the Year 2017. | P1: Comparative Operators.
A2: Fall | B2: 2015 | C2: MATH | D2: 97 | E2: 5 | F2: 3.2 | H2: and have ability to change criteria and have formulas instantly update | P2: = | Q2: Equal: are two things equal?
A3: Winter | B3: 2016 | C3: BUSN | D3: 210 | E3: 5 | F3: 4 | P3: <> | Q3: Not: are two things not equal? Type less than symbol, then greater than symbol.
A4: Winter | B4: 2016 | C4: ECON | D4: 201 | E4: 5 | F4: 2.2 | H4: ="The AND Logical Test is: " -> The AND Logical Test is: | P4: > | Q4: Greater than: is the thing on the left greater than the thing on the right?
A5: Winter | B5: 2016 | C5: BUSN | D5: 101 | E5: 5 | F5: 1.8 | H5: ="the "&H10&" Field must contain "&H11&" " -> the Department Field must contain BUSN | P5: >= | Q5: Greater than or equal to: is the thing on the left greater than or equal to the thing on the right?
A6: Spring | B6: 2016 | C6: MATH | D6: 148 | E6: 5 | F6: 2 | H6: AND | P6: < | Q6: Less than: is the thing on the left less than the thing on the right?
A7: Spring | B7: 2016 | C7: ECON | D7: 202 | E7: 5 | F7: 2 | H7: ="the "&I10&" Field must contain "&I11&"." -> the Year Field must contain 2017. | P7: <= | Q7: Less than or equal to: is the thing on the left less than or equal to the thing on the right?
A8: Spring | B8: 2016 | C8: BUSN | D8: 133 | E8: 3 | F8: 3.4
A9: Sum | B9: 2016 | C9: BUSN | D9: 102 | E9: 5 | F9: 1.8 | H9: Criteria:
A10: Sum | B10: 2016 | C10: BUSN | D10: 135 | E10: 5 | F10: 3 | H10: =C1 -> Department | I10: =B1 -> Year
A11: Fall | B11: 2016 | C11: BUSN | D11: 216 | E11: 5 | F11: 3.6 | H11: BUSN | I11: 2017
A12: Fall | B12: 2016 | C12: BUSN | D12: 205 | E12: 5 | F12: 2.4 | H12: Average | J12: =IF(_xlfn.ISFORMULA(I12),_xlfn.FORMULATEXT(I12),"") -> 
A13: Fall | B13: 2016 | C13: BUSN | D13: 268 | E13: 5 | F13: 3.6 | J13: AVERAGEIFS averages numbers with two conditions/criteria
A14: Winter | B14: 2017 | C14: COMM | D14: 101 | E14: 5 | F14: 3.1
A15: Winter | B15: 2017 | C15: ENGL | D15: 101 | E15: 5 | F15: 2.6
A16: Winter | B16: 2017 | C16: BUSN | D16: 218 | E16: 5 | F16: 3.1
A17: Spring | B17: 2017 | C17: BUSN | D17: 190 | E17: 5 | F17: 2.7
A18: Spring | B18: 2017 | C18: COMM | D18: 205 | E18: 5 | F18: 3.3
A19: Spring | B19: 2017 | C19: BI | D19: 348 | E19: 5 | F19: 3.9
A20: Sum | B20: 2017 | C20: Accgt | D20: 121 | E20: 5 | F20: 3.8
A21: Sum | B21: 2017 | C21: BUSN | D21: 270 | E21: 5 | F21: 3.1
A22: Fall | B22: 2017 | C22: ENGL | D22: 205 | E22: 5 | F22: 3.7
A23: Fall | B23: 2017 | C23: BUSN | D23: 138 | E23: 5 | F23: 2.2
A24: Fall | B24: 2017 | C24: BUSN | D24: 160 | E24: 5 | F24: 3.2

Sheet Ex(3an)
A1: Quarter | B1: Year | C1: Department | D1: Class # | E1: Credits | F1: Grade | H1: ="Goal: Average Grades for "&H11&" Classes in the Year "&I11&"." -> Goal: Average Grades for BUSN Classes in the Year 2017. | P1: Comparative Operators.
A2: Fall | B2: 2015 | C2: MATH | D2: 97 | E2: 5 | F2: 3.2 | H2: and have ability to change criteria and have formulas instantly update | P2: = | Q2: Equal: are two things equal?
A3: Winter | B3: 2016 | C3: BUSN | D3: 210 | E3: 5 | F3: 4 | P3: <> | Q3: Not: are two things not equal? Type less than symbol, then greater than symbol.
A4: Winter | B4: 2016 | C4: ECON | D4: 201 | E4: 5 | F4: 2.2 | H4: ="The AND Logical Test is: " -> The AND Logical Test is: | P4: > | Q4: Greater than: is the thing on the left greater than the thing on the right?
A5: Winter | B5: 2016 | C5: BUSN | D5: 101 | E5: 5 | F5: 1.8 | H5: ="the "&H10&" Field must contain "&H11&" " -> the Department Field must contain BUSN | P5: >= | Q5: Greater than or equal to: is the thing on the left greater than or equal to the thing on the right?
A6: Spring | B6: 2016 | C6: MATH | D6: 148 | E6: 5 | F6: 2 | H6: AND | P6: < | Q6: Less than: is the thing on the left less than the thing on the right?
A7: Spring | B7: 2016 | C7: ECON | D7: 202 | E7: 5 | F7: 2 | H7: ="the "&I10&" Field must contain "&I11&"." -> the Year Field must contain 2017. | P7: <= | Q7: Less than or equal to: is the thing on the left less than or equal to the thing on the right?
A8: Spring | B8: 2016 | C8: BUSN | D8: 133 | E8: 3 | F8: 3.4
A9: Sum | B9: 2016 | C9: BUSN | D9: 102 | E9: 5 | F9: 1.8 | H9: Criteria:
A10: Sum | B10: 2016 | C10: BUSN | D10: 135 | E10: 5 | F10: 3 | H10: =C1 -> Department | I10: =B1 -> Year
A11: Fall | B11: 2016 | C11: BUSN | D11: 216 | E11: 5 | F11: 3.6 | H11: BUSN | I11: 2017
A12: Fall | B12: 2016 | C12: BUSN | D12: 205 | E12: 5 | F12: 2.4 | H12: Average | I12: =AVERAGEIFS(F2:F24,C2:C24,H11,B2:B24,I11) -> 2.86 | J12: =IF(_xlfn.ISFORMULA(I12),_xlfn.FORMULATEXT(I12),"") -> =AVERAGEIFS(F2:F24,C2:C24,H11,B2:B24,I11)
A13: Fall | B13: 2016 | C13: BUSN | D13: 268 | E13: 5 | F13: 3.6 | J13: AVERAGEIFS averages numbers with two conditions/criteria
A14: Winter | B14: 2017 | C14: COMM | D14: 101 | E14: 5 | F14: 3.1
A15: Winter | B15: 2017 | C15: ENGL | D15: 101 | E15: 5 | F15: 2.6
A16: Winter | B16: 2017 | C16: BUSN | D16: 218 | E16: 5 | F16: 3.1
A17: Spring | B17: 2017 | C17: BUSN | D17: 190 | E17: 5 | F17: 2.7
A18: Spring | B18: 2017 | C18: COMM | D18: 205 | E18: 5 | F18: 3.3
A19: Spring | B19: 2017 | C19: BI | D19: 348 | E19: 5 | F19: 3.9
A20: Sum | B20: 2017 | C20: Accgt | D20: 121 | E20: 5 | F20: 3.8
A21: Sum | B21: 2017 | C21: BUSN | D21: 270 | E21: 5 | F21: 3.1
A22: Fall | B22: 2017 | C22: ENGL | D22: 205 | E22: 5 | F22: 3.7
A23: Fall | B23: 2017 | C23: BUSN | D23: 138 | E23: 5 | F23: 2.2
A24: Fall | B24: 2017 | C24: BUSN | D24: 160 | E24: 5 | F24: 3.2

Sheet Ex(4)
A1: Date | B1: Year | C1: Product | D1: Sales | E1: COGS | G1: ="Goal: Add Total "&E1&" for "&G11&" "&C1&" in the Year "&H11&"." -> Goal: Add Total COGS for Quad Product in the Year 2017. | O1: Comparative Operators.
A2: 2018-07-15 | B2: 2018 | C2: Quad | D2: 2453.52 | E2: 1128.62 | G2: and have ability to change criteria and have formulas instantly update | O2: = | P2: Equal: are two things equal?
A3: 2016-02-15 | B3: 2016 | C3: Sunset | D3: 2391.92 | E3: 980.69 | O3: <> | P3: Not: are two things not equal? Type less than symbol, then greater than symbol.
A4: 2017-11-15 | B4: 2017 | C4: Carlota | D4: 53.23 | E4: 22.89 | G4: ="The AND Logical Test is: " -> The AND Logical Test is: | O4: > | P4: Greater than: is the thing on the left greater than the thing on the right?
A5: 2018-08-31 | B5: 2018 | C5: Carlota | D5: 1558.76 | E5: 888.49 | G5: ="the "&G10&" Field must contain "&G11&" " -> the Product Field must contain Quad | O5: >= | P5: Greater than or equal to: is the thing on the left greater than or equal to the thing on the right?
A6: 2018-12-16 | B6: 2018 | C6: Sunset | D6: 917.72 | E6: 568.99 | G6: AND | O6: < | P6: Less than: is the thing on the left less than the thing on the right?
A7: 2018-05-16 | B7: 2018 | C7: Sunset | D7: 1876.27 | E7: 731.75 | G7: ="the "&H10&" Field must contain "&H11&"." -> the Year Field must contain 2017. | O7: <= | P7: Less than or equal to: is the thing on the left less than or equal to the thing on the right?
A8: 2016-12-27 | B8: 2016 | C8: Yanaki | D8: 1487.82 | E8: 684.4
A9: 2017-09-18 | B9: 2017 | C9: Quad | D9: 2017.73 | E9: 807.09 | G9: Criteria:
A10: 2018-06-04 | B10: 2018 | C10: Yanaki | D10: 1459.48 | E10: 569.2 | G10: =C1 -> Product | H10: =B1 -> Year
A11: 2018-05-09 | B11: 2018 | C11: Carlota | D11: 1020.18 | E11: 591.7 | G11: Quad | H11: 2017
A12: 2016-07-06 | B12: 2016 | C12: Carlota | D12: 653.87 | E12: 274.63 | G12: ="Total "&E1 -> Total COGS | I12: =IF(_xlfn.ISFORMULA(H12),_xlfn.FORMULATEXT(H12),"") -> 
A13: 2017-11-09 | B13: 2017 | C13: Yanaki | D13: 1044.37 | E13: 616.18 | I13: SUMIFS adds numbers with two conditions/criteria
A14: 2017-09-07 | B14: 2017 | C14: Carlota | D14: 1900.47 | E14: 988.24
A15: 2017-04-13 | B15: 2017 | C15: Carlota | D15: 1129.45 | E15: 463.07
A16: 2017-06-20 | B16: 2017 | C16: Carlota | D16: 328.7 | E16: 128.19
A17: 2017-05-26 | B17: 2017 | C17: Sunset | D17: 58 | E17: 36.54
A18: 2018-03-03 | B18: 2018 | C18: Sunset | D18: 1646.76 | E18: 1037.46
A19: 2017-11-10 | B19: 2017 | C19: Carlota | D19: 1865.2 | E19: 895.3
A20: 2017-01-18 | B20: 2017 | C20: Quad | D20: 884.17 | E20: 512.82
A21: 2017-06-12 | B21: 2017 | C21: Quad | D21: 1891.74 | E21: 908.04
A22: 2017-10-08 | B22: 2017 | C22: Sunset | D22: 561.61 | E22: 219.03
A23: 2017-08-27 | B23: 2017 | C23: Quad | D23: 713.19 | E23: 392.25
A24: 2016-03-16 | B24: 2016 | C24: Sunset | D24: 148.6 | E24: 69.84
A25: 2017-08-16 | B25: 2017 | C25: Yanaki | D25: 2436.08 | E25: 1315.48
A26: 2018-01-29 | B26: 2018 | C26: Sunset | D26: 353.67 | E26: 169.76
A27: 2017-11-07 | B27: 2017 | C27: Sunset | D27: 1993.91 | E27: 996.96
A28: 2018-04-27 | B28: 2018 | C28: Yanaki | D28: 1535.67 | E28: 982.83
A29: 2017-05-03 | B29: 2017 | C29: Yanaki | D29: 1058.98 | E29: 645.98
A30: 2017-10-18 | B30: 2017 | C30: Carlota | D30: 725.21 | E30: 362.61
A31: 2017-11-04 | B31: 2017 | C31: Carlota | D31: 1332.83 | E31: 879.67
A32: 2016-07-05 | B32: 2016 | C32: Quad | D32: 1955.26 | E32: 860.31
A33: 2016-10-03 | B33: 2016 | C33: Carlota | D33: 1003.54 | E33: 662.34
A34: 2017-03-12 | B34: 2017 | C34: Sunset | D34: 368.46 | E34: 184.23
A35: 2017-10-11 | B35: 2017 | C35: Quad | D35: 1473.86 | E35: 795.88
A36: 2017-10-24 | B36: 2017 | C36: Yanaki | D36: 539.23 | E36: 285.79
A37: 2016-01-08 | B37: 2016 | C37: Yanaki | D37: 1974.49 | E37: 908.27
A38: 2017-08-17 | B38: 2017 | C38: Yanaki | D38: 1931.47 | E38: 1081.62
A39: 2016-11-14 | B39: 2016 | C39: Yanaki | D39: 1449.29 | E39: 884.07
A40: 2017-06-18 | B40: 2017 | C40: Carlota | D40: 2307.69 | E40: 1038.46
A41: 2018-04-03 | B41: 2018 | C41: Quad | D41: 1115.13 | E41: 490.66
A42: 2016-01-15 | B42: 2016 | C42: Sunset | D42: 29.88 | E42: 16.14
A43: 2017-02-28 | B43: 2017 | C43: Carlota | D43: 2154.95 | E43: 1077.48
A44: 2016-03-04 | B44: 2016 | C44: Quad | D44: 1234.86 | E44: 815.01
A45: 2017-09-22 | B45: 2017 | C45: Yanaki | D45: 2154.18 | E45: 1206.34
A46: 2017-07-23 | B46: 2017 | C46: Quad | D46: 1744.62 | E46: 872.31
A47: 2018-06-18 | B47: 2018 | C47: Yanaki | D47: 2298.45 | E47: 1126.24
A48: 2016-08-14 | B48: 2016 | C48: Quad | D48: 494.28 | E48: 271.85
A49: 2016-03-09 | B49: 2016 | C49: Sunset | D49: 2253.03 | E49: 1149.05
A50: 2017-03-01 | B50: 2017 | C50: Sunset | D50: 1478.09 | E50: 768.61
A51: 2018-11-02 | B51: 2018 | C51: Carlota | D51: 678.92 | E51: 325.88
A52: 2018-04-11 | B52: 2018 | C52: Sunset | D52: 143.51 | E52: 71.76
A53: 2016-02-25 | B53: 2016 | C53: Carlota | D53: 1868.96 | E53: 747.58
A54: 2017-06-13 | B54: 2017 | C54: Carlota | D54: 1549.63 | E54: 604.36
A55: 2016-11-08 | B55: 2016 | C55: Sunset | D55: 937.24 | E55: 459.25
A56: 2018-05-07 | B56: 2018 | C56: Sunset | D56: 109.84 | E56: 54.92
A57: 2017-02-16 | B57: 2017 | C57: Carlota | D57: 747.68 | E57: 500.95
A58: 2017-05-31 | B58: 2017 | C58: Carlota | D58: 443.35 | E58: 252.71
A59: 2016-01-27 | B59: 2016 | C59: Carlota | D59: 1129.85 | E59: 723.1
A60: 2016-09-19 | B60: 2016 | C60: Yanaki | D60: 2202.75 | E60: 947.18
A61: 2016-02-05 | B61: 2016 | C61: Quad | D61: 29.56 | E61: 11.82
A62: 2016-04-13 | B62: 2016 | C62: Quad | D62: 2088.42 | E62: 1294.82
A63: 2017-03-23 | B63: 2017 | C63: Sunset | D63: 708.14 | E63: 446.13
A64: 2018-12-08 | B64: 2018 | C64: Carlota | D64: 44.86 | E64: 26.47
A65: 2017-09-19 | B65: 2017 | C65: Yanaki | D65: 1665.87 | E65: 866.25
A66: 2018-01-08 | B66: 2018 | C66: Quad | D66: 1657.26 | E66: 977.78
A67: 2017-01-28 | B67: 2017 | C67: Sunset | D67: 1543.94 | E67: 679.33
A68: 2016-07-20 | B68: 2016 | C68: Quad | D68: 1362.96 | E68: 708.74
A69: 2017-06-17 | B69: 2017 | C69: Quad | D69: 308.4 | E69: 141.86
A70: 2017-03-10 | B70: 2017 | C70: Carlota | D70: 2495.48 | E70: 1098.01
A71: 2017-05-10 | B71: 2017 | C71: Yanaki | D71: 402.76 | E71: 189.3
A72: 2018-05-08 | B72: 2018 | C72: Carlota | D72: 1421.93 | E72: 639.87
A73: 2016-01-05 | B73: 2016 | C73: Sunset | D73: 1172.31 | E73: 644.77
A74: 2017-04-09 | B74: 2017 | C74: Sunset | D74: 2070.49 | E74: 1345.82
A75: 2018-12-29 | B75: 2018 | C75: Quad | D75: 1965.34 | E75: 786.14
A76: 2016-06-21 | B76: 2016 | C76: Yanaki | D76: 1833 | E76: 879.84
A77: 2018-04-07 | B77: 2018 | C77: Yanaki | D77: 2151.45 | E77: 1312.38
A78: 2017-05-05 | B78: 2017 | C78: Yanaki | D78: 673.95 | E78: 384.15
A79: 2018-01-17 | B79: 2018 | C79: Quad | D79: 561.58 | E79: 247.1
A80: 2017-08-10 | B80: 2017 | C80: Carlota | D80: 1342.24 | E80: 711.39
A81: 2018-07-05 | B81: 2018 | C81: Sunset | D81: 1754.6 | E81: 789.57
A82: 2018-01-29 | B82: 2018 | C82: Sunset | D82: 214.29 | E82: 109.29
A83: 2017-02-27 | B83: 2017 | C83: Carlota | D83: 1561.54 | E83: 952.54
A84: 2018-03-06 | B84: 2018 | C84: Quad | D84: 1673.37 | E84: 870.15
A85: 2018-11-10 | B85: 2018 | C85: Quad | D85: 773.05 | E85: 440.64
A86: 2018-10-12 | B86: 2018 | C86: Quad | D86: 418.72 | E86: 230.3
A87: 2017-10-25 | B87: 2017 | C87: Yanaki | D87: 1946.44 | E87: 1051.08
A88: 2017-02-25 | B88: 2017 | C88: Carlota | D88: 770.94 | E88: 339.21
A89: 2018-08-20 | B89: 2018 | C89: Sunset | D89: 1222.49 | E89: 770.17
A90: 2018-03-25 | B90: 2018 | C90: Quad | D90: 1395.46 | E90: 851.23
A91: 2017-06-10 | B91: 2017 | C91: Quad | D91: 1520.63 | E91: 851.55
A92: 2016-09-22 | B92: 2016 | C92: Carlota | D92: 1094.5 | E92: 689.54
A93: 2017-03-14 | B93: 2017 | C93: Sunset | D93: 76.96 | E93: 33.86
A94: 2017-10-08 | B94: 2017 | C94: Sunset | D94: 234.72 | E94: 152.57
A95: 2017-02-27 | B95: 2017 | C95: Quad | D95: 2003.25 | E95: 1041.69
A96: 2017-05-24 | B96: 2017 | C96: Sunset | D96: 1688.01 | E96: 1063.45
A97: 2016-12-29 | B97: 2016 | C97: Carlota | D97: 1538.35 | E97: 815.33
A98: 2017-05-01 | B98: 2017 | C98: Yanaki | D98: 147.04 | E98: 97.05
A99: 2017-07-21 | B99: 2017 | C99: Yanaki | D99: 1908.31 | E99: 954.16
A100: 2017-01-10 | B100: 2017 | C100: Sunset | D100: 490.77 | E100: 319
A101: 2017-07-04 | B101: 2017 | C101: Quad | D101: 671.76 | E101: 409.77
A102: 2016-07-05 | B102: 2016 | C102: Quad | D102: 2301.62 | E102: 920.65
A103: 2017-01-11 | B103: 2017 | C103: Carlota | D103: 502.61 | E103: 206.07
A104: 2018-10-08 | B104: 2018 | C104: Quad | D104: 1047.63 | E104: 408.58
A105: 2018-05-07 | B105: 2018 | C105: Yanaki | D105: 1647.46 | E105: 741.36
A106: 2018-02-06 | B106: 2018 | C106: Sunset | D106: 609.32 | E106: 280.29
A107: 2018-02-10 | B107: 2018 | C107: Yanaki | D107: 489.95 | E107: 279.27
A108: 2018-04-10 | B108: 2018 | C108: Carlota | D108: 234.43 | E108: 126.59
A109: 2018-01-19 | B109: 2018 | C109: Carlota | D109: 1988.25 | E109: 1113.42
A110: 2018-01-16 | B110: 2018 | C110: Sunset | D110: 62.18 | E110: 24.25
A111: 2016-02-06 | B111: 2016 | C111: Yanaki | D111: 598.85 | E111: 269.48
A112: 2016-07-16 | B112: 2016 | C112: Carlota | D112: 2177.11 | E112: 936.16
A113: 2017-03-07 | B113: 2017 | C113: Quad | D113: 2417.35 | E113: 1281.2
A114: 2017-03-03 | B114: 2017 | C114: Carlota | D114: 498.52 | E114: 259.23
A115: 2017-12-22 | B115: 2017 | C115: Sunset | D115: 22.8 | E115: 13.91
A116: 2018-06-23 | B116: 2018 | C116: Quad | D116: 536.25 | E116: 294.94
A117: 2016-02-13 | B117: 2016 | C117: Quad | D117: 1871.36 | E117: 1160.24
A118: 2016-09-09 | B118: 2016 | C118: Sunset | D118: 880.15 | E118: 536.89
A119: 2016-05-13 | B119: 2016 | C119: Carlota | D119: 2115.44 | E119: 1184.65
A120: 2016-08-30 | B120: 2016 | C120: Sunset | D120: 2268.16 | E120: 975.31
A121: 2018-11-20 | B121: 2018 | C121: Carlota | D121: 1800.62 | E121: 954.33
A122: 2018-11-06 | B122: 2018 | C122: Quad | D122: 1860.09 | E122: 781.24
A123: 2018-02-23 | B123: 2018 | C123: Yanaki | D123: 667.55 | E123: 267.02
A124: 2016-11-04 | B124: 2016 | C124: Quad | D124: 989.63 | E124: 653.16
A125: 2016-06-07 | B125: 2016 | C125: Yanaki | D125: 1907.49 | E125: 820.22
A126: 2016-04-08 | B126: 2016 | C126: Quad | D126: 693.75 | E126: 291.38
A127: 2017-11-05 | B127: 2017 | C127: Carlota | D127: 699.22 | E127: 391.56
A128: 2017-07-22 | B128: 2017 | C128: Carlota | D128: 1489.21 | E128: 982.88
A129: 2017-01-25 | B129: 2017 | C129: Yanaki | D129: 987.63 | E129: 414.8
A130: 2018-06-21 | B130: 2018 | C130: Quad | D130: 2037.45 | E130: 1161.35
A131: 2016-02-11 | B131: 2016 | C131: Quad | D131: 2345 | E131: 1430.45
A132: 2018-01-19 | B132: 2018 | C132: Quad | D132: 1496.14 | E132: 703.19
A133: 2018-01-21 | B133: 2018 | C133: Carlota | D133: 836.37 | E133: 368
A134: 2018-06-13 | B134: 2018 | C134: Carlota | D134: 1023.91 | E134: 573.39
A135: 2017-01-25 | B135: 2017 | C135: Sunset | D135: 1553.78 | E135: 776.89
A136: 2017-12-19 | B136: 2017 | C136: Yanaki | D136: 946.52 | E136: 388.07
A137: 2016-06-18 | B137: 2016 | C137: Yanaki | D137: 891.64 | E137: 552.82
A138: 2016-03-02 | B138: 2016 | C138: Sunset | D138: 1042.61 | E138: 552.58
A139: 2018-03-30 | B139: 2018 | C139: Yanaki | D139: 692.89 | E139: 291.01
A140: 2016-05-07 | B140: 2016 | C140: Quad | D140: 2421.14 | E140: 1234.78
A141: 2017-10-08 | B141: 2017 | C141: Carlota | D141: 2459.69 | E141: 1008.47
A142: 2016-06-06 | B142: 2016 | C142: Yanaki | D142: 505.37 | E142: 293.11
A143: 2018-03-04 | B143: 2018 | C143: Sunset | D143: 1349.89 | E143: 566.95
A144: 2018-04-17 | B144: 2018 | C144: Yanaki | D144: 2256.65 | E144: 1196.02
A145: 2017-12-02 | B145: 2017 | C145: Quad | D145: 1068.15 | E145: 480.67
A146: 2017-04-07 | B146: 2017 | C146: Sunset | D146: 488.82 | E146: 303.07
A147: 2016-08-07 | B147: 2016 | C147: Quad | D147: 1549.1 | E147: 805.53
A148: 2017-12-24 | B148: 2017 | C148: Carlota | D148: 984.61 | E148: 384
A149: 2017-08-16 | B149: 2017 | C149: Sunset | D149: 2445.18 | E149: 1295.95
A150: 2017-10-05 | B150: 2017 | C150: Quad | D150: 45.18 | E150: 21.69
A151: 2017-02-02 | B151: 2017 | C151: Yanaki | D151: 2162.32 | E151: 1037.91
A152: 2016-09-18 | B152: 2016 | C152: Sunset | D152: 2345.43 | E152: 1336.9
A153: 2016-01-23 | B153: 2016 | C153: Quad | D153: 968.43 | E153: 571.37
A154: 2018-09-11 | B154: 2018 | C154: Yanaki | D154: 573.76 | E154: 355.73
A155: 2017-04-14 | B155: 2017 | C155: Sunset | D155: 2222.89 | E155: 911.38
A156: 2016-07-09 | B156: 2016 | C156: Yanaki | D156: 1452.43 | E156: 813.36
A157: 2018-02-22 | B157: 2018 | C157: Carlota | D157: 454.62 | E157: 222.76
A158: 2018-01-05 | B158: 2018 | C158: Carlota | D158: 1753.68 | E158: 789.16
A159: 2018-07-31 | B159: 2018 | C159: Sunset | D159: 1623.32 | E159: 795.43
A160: 2018-11-26 | B160: 2018 | C160: Quad | D160: 531.32 | E160: 355.98
A161: 2018-01-23 | B161: 2018 | C161: Yanaki | D161: 2144.95 | E161: 1394.22
A162: 2017-05-28 | B162: 2017 | C162: Sunset | D162: 517.14 | E162: 336.14
A163: 2018-01-29 | B163: 2018 | C163: Quad | D163: 852.54 | E163: 562.68
A164: 2017-07-12 | B164: 2017 | C164: Sunset | D164: 438.5 | E164: 223.64
A165: 2017-03-13 | B165: 2017 | C165: Carlota | D165: 1958.55 | E165: 998.86
A166: 2017-01-12 | B166: 2017 | C166: Quad | D166: 245.23 | E166: 122.62
A167: 2016-09-15 | B167: 2016 | C167: Sunset | D167: 315.6 | E167: 201.98
A168: 2016-03-19 | B168: 2016 | C168: Yanaki | D168: 269.58 | E168: 126.7
A169: 2018-10-07 | B169: 2018 | C169: Sunset | D169: 2106.07 | E169: 1263.64
A170: 2017-04-28 | B170: 2017 | C170: Sunset | D170: 562.73 | E170: 236.35
A171: 2018-05-29 | B171: 2018 | C171: Yanaki | D171: 2347.6 | E171: 962.52
A172: 2018-06-10 | B172: 2018 | C172: Quad | D172: 1197.77 | E172: 598.89
A173: 2016-08-30 | B173: 2016 | C173: Yanaki | D173: 1411.59 | E173: 762.26
A174: 2017-07-27 | B174: 2017 | C174: Quad | D174: 2030.49 | E174: 1258.9
A175: 2018-09-27 | B175: 2018 | C175: Yanaki | D175: 1665.95 | E175: 766.34
A176: 2018-12-16 | B176: 2018 | C176: Sunset | D176: 305.46 | E176: 192.44
A177: 2018-12-30 | B177: 2018 | C177: Carlota | D177: 1913.15 | E177: 1033.1
A178: 2017-04-11 | B178: 2017 | C178: Yanaki | D178: 1838.42 | E178: 772.14
A179: 2016-01-31 | B179: 2016 | C179: Quad | D179: 2043.55 | E179: 1226.13
A180: 2016-10-31 | B180: 2016 | C180: Sunset | D180: 1426.9 | E180: 684.91
A181: 2016-03-13 | B181: 2016 | C181: Sunset | D181: 1997.29 | E181: 778.94
A182: 2017-11-07 | B182: 2017 | C182: Quad | D182: 823.75 | E182: 420.11
A183: 2018-06-14 | B183: 2018 | C183: Yanaki | D183: 1927.75 | E183: 1079.54
A184: 2016-06-14 | B184: 2016 | C184: Carlota | D184: 52.38 | E184: 25.14
A185: 2018-10-25 | B185: 2018 | C185: Quad | D185: 865.26 | E185: 449.94
A186: 2018-11-06 | B186: 2018 | C186: Sunset | D186: 1539.72 | E186: 1016.22
A187: 2016-12-09 | B187: 2016 | C187: Yanaki | D187: 698.67 | E187: 461.12
A188: 2016-03-14 | B188: 2016 | C188: Yanaki | D188: 33.12 | E188: 18.88
A189: 2018-11-15 | B189: 2018 | C189: Yanaki | D189: 1017.6 | E189: 590.21
A190: 2017-12-17 | B190: 2017 | C190: Sunset | D190: 1042 | E190: 666.88
A191: 2017-02-08 | B191: 2017 | C191: Sunset | D191: 1520.64 | E191: 669.08
A192: 2018-09-08 | B192: 2018 | C192: Yanaki | D192: 1780.84 | E192: 979.46
A193: 2018-01-02 | B193: 2018 | C193: Yanaki | D193: 1474.72 | E193: 722.61
A194: 2017-05-27 | B194: 2017 | C194: Quad | D194: 953.44 | E194: 457.65
A195: 2016-09-15 | B195: 2016 | C195: Quad | D195: 1769.66 | E195: 867.13
A196: 2017-03-06 | B196: 2017 | C196: Carlota | D196: 1275.35 | E196: 790.72
A197: 2016-09-27 | B197: 2016 | C197: Sunset | D197: 46.74 | E197: 20.57
A198: 2017-12-19 | B198: 2017 | C198: Carlota | D198: 1351.89 | E198: 851.69
A199: 2016-03-30 | B199: 2016 | C199: Yanaki | D199: 674.89 | E199: 364.44
A200: 2017-12-27 | B200: 2017 | C200: Sunset | D200: 2362.05 | E200: 1251.89
... 465 more rows

Sheet Ex(4an)
A1: Date | B1: Year | C1: Product | D1: Sales | E1: COGS | G1: ="Goal: Add Total "&E1&" for "&G11&" "&C1&" in the Year "&H11&"." -> Goal: Add Total COGS for Quad Product in the Year 2017. | O1: Comparative Operators.
A2: 2018-07-15 | B2: 2018 | C2: Quad | D2: 2453.52 | E2: 1128.62 | G2: and have ability to change criteria and have formulas instantly update | O2: = | P2: Equal: are two things equal?
A3: 2016-02-15 | B3: 2016 | C3: Sunset | D3: 2391.92 | E3: 980.69 | O3: <> | P3: Not: are two things not equal? Type less than symbol, then greater than symbol.
A4: 2017-11-15 | B4: 2017 | C4: Carlota | D4: 53.23 | E4: 22.89 | G4: ="The AND Logical Test is: " -> The AND Logical Test is: | O4: > | P4: Greater than: is the thing on the left greater than the thing on the right?
A5: 2018-08-31 | B5: 2018 | C5: Carlota | D5: 1558.76 | E5: 888.49 | G5: ="the "&G10&" Field must contain "&G11&" " -> the Product Field must contain Quad | O5: >= | P5: Greater than or equal to: is the thing on the left greater than or equal to the thing on the right?
A6: 2018-12-16 | B6: 2018 | C6: Sunset | D6: 917.72 | E6: 568.99 | G6: AND | O6: < | P6: Less than: is the thing on the left less than the thing on the right?
A7: 2018-05-16 | B7: 2018 | C7: Sunset | D7: 1876.27 | E7: 731.75 | G7: ="the "&H10&" Field must contain "&H11&"." -> the Year Field must contain 2017. | O7: <= | P7: Less than or equal to: is the thing on the left less than or equal to the thing on the right?
A8: 2016-12-27 | B8: 2016 | C8: Yanaki | D8: 1487.82 | E8: 684.4
A9: 2017-09-18 | B9: 2017 | C9: Quad | D9: 2017.73 | E9: 807.09 | G9: Criteria:
A10: 2018-06-04 | B10: 2018 | C10: Yanaki | D10: 1459.48 | E10: 569.2 | G10: =C1 -> Product | H10: =B1 -> Year
A11: 2018-05-09 | B11: 2018 | C11: Carlota | D11: 1020.18 | E11: 591.7 | G11: Quad | H11: 2017
A12: 2016-07-06 | B12: 2016 | C12: Carlota | D12: 653.87 | E12: 274.63 | G12: ="Total "&E1 -> Total COGS | H12: =SUMIFS(E2:E665,C2:C665,G11,B2:B665,H11) -> 35310.97 | I12: =IF(_xlfn.ISFORMULA(H12),_xlfn.FORMULATEXT(H12),"") -> =SUMIFS(E2:E665,C2:C665,G11,B2:B665,H11)
A13: 2017-11-09 | B13: 2017 | C13: Yanaki | D13: 1044.37 | E13: 616.18 | I13: SUMIFS adds numbers with two conditions/criteria
A14: 2017-09-07 | B14: 2017 | C14: Carlota | D14: 1900.47 | E14: 988.24
A15: 2017-04-13 | B15: 2017 | C15: Carlota | D15: 1129.45 | E15: 463.07
A16: 2017-06-20 | B16: 2017 | C16: Carlota | D16: 328.7 | E16: 128.19
A17: 2017-05-26 | B17: 2017 | C17: Sunset | D17: 58 | E17: 36.54
A18: 2018-03-03 | B18: 2018 | C18: Sunset | D18: 1646.76 | E18: 1037.46
A19: 2017-11-10 | B19: 2017 | C19: Carlota | D19: 1865.2 | E19: 895.3
A20: 2017-01-18 | B20: 2017 | C20: Quad | D20: 884.17 | E20: 512.82
A21: 2017-06-12 | B21: 2017 | C21: Quad | D21: 1891.74 | E21: 908.04
A22: 2017-10-08 | B22: 2017 | C22: Sunset | D22: 561.61 | E22: 219.03
A23: 2017-08-27 | B23: 2017 | C23: Quad | D23: 713.19 | E23: 392.25
A24: 2016-03-16 | B24: 2016 | C24: Sunset | D24: 148.6 | E24: 69.84
A25: 2017-08-16 | B25: 2017 | C25: Yanaki | D25: 2436.08 | E25: 1315.48
A26: 2018-01-29 | B26: 2018 | C26: Sunset | D26: 353.67 | E26: 169.76
A27: 2017-11-07 | B27: 2017 | C27: Sunset | D27: 1993.91 | E27: 996.96
A28: 2018-04-27 | B28: 2018 | C28: Yanaki | D28: 1535.67 | E28: 982.83
A29: 2017-05-03 | B29: 2017 | C29: Yanaki | D29: 1058.98 | E29: 645.98
A30: 2017-10-18 | B30: 2017 | C30: Carlota | D30: 725.21 | E30: 362.61
A31: 2017-11-04 | B31: 2017 | C31: Carlota | D31: 1332.83 | E31: 879.67
A32: 2016-07-05 | B32: 2016 | C32: Quad | D32: 1955.26 | E32: 860.31
A33: 2016-10-03 | B33: 2016 | C33: Carlota | D33: 1003.54 | E33: 662.34
A34: 2017-03-12 | B34: 2017 | C34: Sunset | D34: 368.46 | E34: 184.23
A35: 2017-10-11 | B35: 2017 | C35: Quad | D35: 1473.86 | E35: 795.88
A36: 2017-10-24 | B36: 2017 | C36: Yanaki | D36: 539.23 | E36: 285.79
A37: 2016-01-08 | B37: 2016 | C37: Yanaki | D37: 1974.49 | E37: 908.27
A38: 2017-08-17 | B38: 2017 | C38: Yanaki | D38: 1931.47 | E38: 1081.62
A39: 2016-11-14 | B39: 2016 | C39: Yanaki | D39: 1449.29 | E39: 884.07
A40: 2017-06-18 | B40: 2017 | C40: Carlota | D40: 2307.69 | E40: 1038.46
A41: 2018-04-03 | B41: 2018 | C41: Quad | D41: 1115.13 | E41: 490.66
A42: 2016-01-15 | B42: 2016 | C42: Sunset | D42: 29.88 | E42: 16.14
A43: 2017-02-28 | B43: 2017 | C43: Carlota | D43: 2154.95 | E43: 1077.48
A44: 2016-03-04 | B44: 2016 | C44: Quad | D44: 1234.86 | E44: 815.01
A45: 2017-09-22 | B45: 2017 | C45: Yanaki | D45: 2154.18 | E45: 1206.34
A46: 2017-07-23 | B46: 2017 | C46: Quad | D46: 1744.62 | E46: 872.31
A47: 2018-06-18 | B47: 2018 | C47: Yanaki | D47: 2298.45 | E47: 1126.24
A48: 2016-08-14 | B48: 2016 | C48: Quad | D48: 494.28 | E48: 271.85
A49: 2016-03-09 | B49: 2016 | C49: Sunset | D49: 2253.03 | E49: 1149.05
A50: 2017-03-01 | B50: 2017 | C50: Sunset | D50: 1478.09 | E50: 768.61
A51: 2018-11-02 | B51: 2018 | C51: Carlota | D51: 678.92 | E51: 325.88
A52: 2018-04-11 | B52: 2018 | C52: Sunset | D52: 143.51 | E52: 71.76
A53: 2016-02-25 | B53: 2016 | C53: Carlota | D53: 1868.96 | E53: 747.58
A54: 2017-06-13 | B54: 2017 | C54: Carlota | D54: 1549.63 | E54: 604.36
A55: 2016-11-08 | B55: 2016 | C55: Sunset | D55: 937.24 | E55: 459.25
A56: 2018-05-07 | B56: 2018 | C56: Sunset | D56: 109.84 | E56: 54.92
A57: 2017-02-16 | B57: 2017 | C57: Carlota | D57: 747.68 | E57: 500.95
A58: 2017-05-31 | B58: 2017 | C58: Carlota | D58: 443.35 | E58: 252.71
A59: 2016-01-27 | B59: 2016 | C59: Carlota | D59: 1129.85 | E59: 723.1
A60: 2016-09-19 | B60: 2016 | C60: Yanaki | D60: 2202.75 | E60: 947.18
A61: 2016-02-05 | B61: 2016 | C61: Quad | D61: 29.56 | E61: 11.82
A62: 2016-04-13 | B62: 2016 | C62: Quad | D62: 2088.42 | E62: 1294.82
A63: 2017-03-23 | B63: 2017 | C63: Sunset | D63: 708.14 | E63: 446.13
A64: 2018-12-08 | B64: 2018 | C64: Carlota | D64: 44.86 | E64: 26.47
A65: 2017-09-19 | B65: 2017 | C65: Yanaki | D65: 1665.87 | E65: 866.25
A66: 2018-01-08 | B66: 2018 | C66: Quad | D66: 1657.26 | E66: 977.78
A67: 2017-01-28 | B67: 2017 | C67: Sunset | D67: 1543.94 | E67: 679.33
A68: 2016-07-20 | B68: 2016 | C68: Quad | D68: 1362.96 | E68: 708.74
A69: 2017-06-17 | B69: 2017 | C69: Quad | D69: 308.4 | E69: 141.86
A70: 2017-03-10 | B70: 2017 | C70: Carlota | D70: 2495.48 | E70: 1098.01
A71: 2017-05-10 | B71: 2017 | C71: Yanaki | D71: 402.76 | E71: 189.3
A72: 2018-05-08 | B72: 2018 | C72: Carlota | D72: 1421.93 | E72: 639.87
A73: 2016-01-05 | B73: 2016 | C73: Sunset | D73: 1172.31 | E73: 644.77
A74: 2017-04-09 | B74: 2017 | C74: Sunset | D74: 2070.49 | E74: 1345.82
A75: 2018-12-29 | B75: 2018 | C75: Quad | D75: 1965.34 | E75: 786.14
A76: 2016-06-21 | B76: 2016 | C76: Yanaki | D76: 1833 | E76: 879.84
A77: 2018-04-07 | B77: 2018 | C77: Yanaki | D77: 2151.45 | E77: 1312.38
A78: 2017-05-05 | B78: 2017 | C78: Yanaki | D78: 673.95 | E78: 384.15
A79: 2018-01-17 | B79: 2018 | C79: Quad | D79: 561.58 | E79: 247.1
A80: 2017-08-10 | B80: 2017 | C80: Carlota | D80: 1342.24 | E80: 711.39
A81: 2018-07-05 | B81: 2018 | C81: Sunset | D81: 1754.6 | E81: 789.57
A82: 2018-01-29 | B82: 2018 | C82: Sunset | D82: 214.29 | E82: 109.29
A83: 2017-02-27 | B83: 2017 | C83: Carlota | D83: 1561.54 | E83: 952.54
A84: 2018-03-06 | B84: 2018 | C84: Quad | D84: 1673.37 | E84: 870.15
A85: 2018-11-10 | B85: 2018 | C85: Quad | D85: 773.05 | E85: 440.64
A86: 2018-10-12 | B86: 2018 | C86: Quad | D86: 418.72 | E86: 230.3
A87: 2017-10-25 | B87: 2017 | C87: Yanaki | D87: 1946.44 | E87: 1051.08
A88: 2017-02-25 | B88: 2017 | C88: Carlota | D88: 770.94 | E88: 339.21
A89: 2018-08-20 | B89: 2018 | C89: Sunset | D89: 1222.49 | E89: 770.17
A90: 2018-03-25 | B90: 2018 | C90: Quad | D90: 1395.46 | E90: 851.23
A91: 2017-06-10 | B91: 2017 | C91: Quad | D91: 1520.63 | E91: 851.55
A92: 2016-09-22 | B92: 2016 | C92: Carlota | D92: 1094.5 | E92: 689.54
A93: 2017-03-14 | B93: 2017 | C93: Sunset | D93: 76.96 | E93: 33.86
A94: 2017-10-08 | B94: 2017 | C94: Sunset | D94: 234.72 | E94: 152.57
A95: 2017-02-27 | B95: 2017 | C95: Quad | D95: 2003.25 | E95: 1041.69
A96: 2017-05-24 | B96: 2017 | C96: Sunset | D96: 1688.01 | E96: 1063.45
A97: 2016-12-29 | B97: 2016 | C97: Carlota | D97: 1538.35 | E97: 815.33
A98: 2017-05-01 | B98: 2017 | C98: Yanaki | D98: 147.04 | E98: 97.05
A99: 2017-07-21 | B99: 2017 | C99: Yanaki | D99: 1908.31 | E99: 954.16
A100: 2017-01-10 | B100: 2017 | C100: Sunset | D100: 490.77 | E100: 319
A101: 2017-07-04 | B101: 2017 | C101: Quad | D101: 671.76 | E101: 409.77
A102: 2016-07-05 | B102: 2016 | C102: Quad | D102: 2301.62 | E102: 920.65
A103: 2017-01-11 | B103: 2017 | C103: Carlota | D103: 502.61 | E103: 206.07
A104: 2018-10-08 | B104: 2018 | C104: Quad | D104: 1047.63 | E104: 408.58
A105: 2018-05-07 | B105: 2018 | C105: Yanaki | D105: 1647.46 | E105: 741.36
A106: 2018-02-06 | B106: 2018 | C106: Sunset | D106: 609.32 | E106: 280.29
A107: 2018-02-10 | B107: 2018 | C107: Yanaki | D107: 489.95 | E107: 279.27
A108: 2018-04-10 | B108: 2018 | C108: Carlota | D108: 234.43 | E108: 126.59
A109: 2018-01-19 | B109: 2018 | C109: Carlota | D109: 1988.25 | E109: 1113.42
A110: 2018-01-16 | B110: 2018 | C110: Sunset | D110: 62.18 | E110: 24.25
A111: 2016-02-06 | B111: 2016 | C111: Yanaki | D111: 598.85 | E111: 269.48
A112: 2016-07-16 | B112: 2016 | C112: Carlota | D112: 2177.11 | E112: 936.16
A113: 2017-03-07 | B113: 2017 | C113: Quad | D113: 2417.35 | E113: 1281.2
A114: 2017-03-03 | B114: 2017 | C114: Carlota | D114: 498.52 | E114: 259.23
A115: 2017-12-22 | B115: 2017 | C115: Sunset | D115: 22.8 | E115: 13.91
A116: 2018-06-23 | B116: 2018 | C116: Quad | D116: 536.25 | E116: 294.94
A117: 2016-02-13 | B117: 2016 | C117: Quad | D117: 1871.36 | E117: 1160.24
A118: 2016-09-09 | B118: 2016 | C118: Sunset | D118: 880.15 | E118: 536.89
A119: 2016-05-13 | B119: 2016 | C119: Carlota | D119: 2115.44 | E119: 1184.65
A120: 2016-08-30 | B120: 2016 | C120: Sunset | D120: 2268.16 | E120: 975.31
A121: 2018-11-20 | B121: 2018 | C121: Carlota | D121: 1800.62 | E121: 954.33
A122: 2018-11-06 | B122: 2018 | C122: Quad | D122: 1860.09 | E122: 781.24
A123: 2018-02-23 | B123: 2018 | C123: Yanaki | D123: 667.55 | E123: 267.02
A124: 2016-11-04 | B124: 2016 | C124: Quad | D124: 989.63 | E124: 653.16
A125: 2016-06-07 | B125: 2016 | C125: Yanaki | D125: 1907.49 | E125: 820.22
A126: 2016-04-08 | B126: 2016 | C126: Quad | D126: 693.75 | E126: 291.38
A127: 2017-11-05 | B127: 2017 | C127: Carlota | D127: 699.22 | E127: 391.56
A128: 2017-07-22 | B128: 2017 | C128: Carlota | D128: 1489.21 | E128: 982.88
A129: 2017-01-25 | B129: 2017 | C129: Yanaki | D129: 987.63 | E129: 414.8
A130: 2018-06-21 | B130: 2018 | C130: Quad | D130: 2037.45 | E130: 1161.35
A131: 2016-02-11 | B131: 2016 | C131: Quad | D131: 2345 | E131: 1430.45
A132: 2018-01-19 | B132: 2018 | C132: Quad | D132: 1496.14 | E132: 703.19
A133: 2018-01-21 | B133: 2018 | C133: Carlota | D133: 836.37 | E133: 368
A134: 2018-06-13 | B134: 2018 | C134: Carlota | D134: 1023.91 | E134: 573.39
A135: 2017-01-25 | B135: 2017 | C135: Sunset | D135: 1553.78 | E135: 776.89
A136: 2017-12-19 | B136: 2017 | C136: Yanaki | D136: 946.52 | E136: 388.07
A137: 2016-06-18 | B137: 2016 | C137: Yanaki | D137: 891.64 | E137: 552.82
A138: 2016-03-02 | B138: 2016 | C138: Sunset | D138: 1042.61 | E138: 552.58
A139: 2018-03-30 | B139: 2018 | C139: Yanaki | D139: 692.89 | E139: 291.01
A140: 2016-05-07 | B140: 2016 | C140: Quad | D140: 2421.14 | E140: 1234.78
A141: 2017-10-08 | B141: 2017 | C141: Carlota | D141: 2459.69 | E141: 1008.47
A142: 2016-06-06 | B142: 2016 | C142: Yanaki | D142: 505.37 | E142: 293.11
A143: 2018-03-04 | B143: 2018 | C143: Sunset | D143: 1349.89 | E143: 566.95
A144: 2018-04-17 | B144: 2018 | C144: Yanaki | D144: 2256.65 | E144: 1196.02
A145: 2017-12-02 | B145: 2017 | C145: Quad | D145: 1068.15 | E145: 480.67
A146: 2017-04-07 | B146: 2017 | C146: Sunset | D146: 488.82 | E146: 303.07
A147: 2016-08-07 | B147: 2016 | C147: Quad | D147: 1549.1 | E147: 805.53
A148: 2017-12-24 | B148: 2017 | C148: Carlota | D148: 984.61 | E148: 384
A149: 2017-08-16 | B149: 2017 | C149: Sunset | D149: 2445.18 | E149: 1295.95
A150: 2017-10-05 | B150: 2017 | C150: Quad | D150: 45.18 | E150: 21.69
A151: 2017-02-02 | B151: 2017 | C151: Yanaki | D151: 2162.32 | E151: 1037.91
A152: 2016-09-18 | B152: 2016 | C152: Sunset | D152: 2345.43 | E152: 1336.9
A153: 2016-01-23 | B153: 2016 | C153: Quad | D153: 968.43 | E153: 571.37
A154: 2018-09-11 | B154: 2018 | C154: Yanaki | D154: 573.76 | E154: 355.73
A155: 2017-04-14 | B155: 2017 | C155: Sunset | D155: 2222.89 | E155: 911.38
A156: 2016-07-09 | B156: 2016 | C156: Yanaki | D156: 1452.43 | E156: 813.36
A157: 2018-02-22 | B157: 2018 | C157: Carlota | D157: 454.62 | E157: 222.76
A158: 2018-01-05 | B158: 2018 | C158: Carlota | D158: 1753.68 | E158: 789.16
A159: 2018-07-31 | B159: 2018 | C159: Sunset | D159: 1623.32 | E159: 795.43
A160: 2018-11-26 | B160: 2018 | C160: Quad | D160: 531.32 | E160: 355.98
A161: 2018-01-23 | B161: 2018 | C161: Yanaki | D161: 2144.95 | E161: 1394.22
A162: 2017-05-28 | B162: 2017 | C162: Sunset | D162: 517.14 | E162: 336.14
A163: 2018-01-29 | B163: 2018 | C163: Quad | D163: 852.54 | E163: 562.68
A164: 2017-07-12 | B164: 2017 | C164: Sunset | D164: 438.5 | E164: 223.64
A165: 2017-03-13 | B165: 2017 | C165: Carlota | D165: 1958.55 | E165: 998.86
A166: 2017-01-12 | B166: 2017 | C166: Quad | D166: 245.23 | E166: 122.62
A167: 2016-09-15 | B167: 2016 | C167: Sunset | D167: 315.6 | E167: 201.98
A168: 2016-03-19 | B168: 2016 | C168: Yanaki | D168: 269.58 | E168: 126.7
A169: 2018-10-07 | B169: 2018 | C169: Sunset | D169: 2106.07 | E169: 1263.64
A170: 2017-04-28 | B170: 2017 | C170: Sunset | D170: 562.73 | E170: 236.35
A171: 2018-05-29 | B171: 2018 | C171: Yanaki | D171: 2347.6 | E171: 962.52
A172: 2018-06-10 | B172: 2018 | C172: Quad | D172: 1197.77 | E172: 598.89
A173: 2016-08-30 | B173: 2016 | C173: Yanaki | D173: 1411.59 | E173: 762.26
A174: 2017-07-27 | B174: 2017 | C174: Quad | D174: 2030.49 | E174: 1258.9
A175: 2018-09-27 | B175: 2018 | C175: Yanaki | D175: 1665.95 | E175: 766.34
A176: 2018-12-16 | B176: 2018 | C176: Sunset | D176: 305.46 | E176: 192.44
A177: 2018-12-30 | B177: 2018 | C177: Carlota | D177: 1913.15 | E177: 1033.1
A178: 2017-04-11 | B178: 2017 | C178: Yanaki | D178: 1838.42 | E178: 772.14
A179: 2016-01-31 | B179: 2016 | C179: Quad | D179: 2043.55 | E179: 1226.13
A180: 2016-10-31 | B180: 2016 | C180: Sunset | D180: 1426.9 | E180: 684.91
A181: 2016-03-13 | B181: 2016 | C181: Sunset | D181: 1997.29 | E181: 778.94
A182: 2017-11-07 | B182: 2017 | C182: Quad | D182: 823.75 | E182: 420.11
A183: 2018-06-14 | B183: 2018 | C183: Yanaki | D183: 1927.75 | E183: 1079.54
A184: 2016-06-14 | B184: 2016 | C184: Carlota | D184: 52.38 | E184: 25.14
A185: 2018-10-25 | B185: 2018 | C185: Quad | D185: 865.26 | E185: 449.94
A186: 2018-11-06 | B186: 2018 | C186: Sunset | D186: 1539.72 | E186: 1016.22
A187: 2016-12-09 | B187: 2016 | C187: Yanaki | D187: 698.67 | E187: 461.12
A188: 2016-03-14 | B188: 2016 | C188: Yanaki | D188: 33.12 | E188: 18.88
A189: 2018-11-15 | B189: 2018 | C189: Yanaki | D189: 1017.6 | E189: 590.21
A190: 2017-12-17 | B190: 2017 | C190: Sunset | D190: 1042 | E190: 666.88
A191: 2017-02-08 | B191: 2017 | C191: Sunset | D191: 1520.64 | E191: 669.08
A192: 2018-09-08 | B192: 2018 | C192: Yanaki | D192: 1780.84 | E192: 979.46
A193: 2018-01-02 | B193: 2018 | C193: Yanaki | D193: 1474.72 | E193: 722.61
A194: 2017-05-27 | B194: 2017 | C194: Quad | D194: 953.44 | E194: 457.65
A195: 2016-09-15 | B195: 2016 | C195: Quad | D195: 1769.66 | E195: 867.13
A196: 2017-03-06 | B196: 2017 | C196: Carlota | D196: 1275.35 | E196: 790.72
A197: 2016-09-27 | B197: 2016 | C197: Sunset | D197: 46.74 | E197: 20.57
A198: 2017-12-19 | B198: 2017 | C198: Carlota | D198: 1351.89 | E198: 851.69
A199: 2016-03-30 | B199: 2016 | C199: Yanaki | D199: 674.89 | E199: 364.44
A200: 2017-12-27 | B200: 2017 | C200: Sunset | D200: 2362.05 | E200: 1251.89
... 465 more rows

Sheet Ex(5)
A1: Date | B1: Year | C1: Product | D1: Sales | E1: COGS | G1: ="Goal: Add Total "&D1&" for each "&G13&" in the Year "&H10&"." -> Goal: Add Total Sales for each Product in the Year 2017. | O1: Comparative Operators.
A2: 2018-07-15 | B2: 2018 | C2: Quad | D2: 2453.52 | E2: 1128.62 | G2: and have ability to change criteria and have formulas instantly update | O2: = | P2: Equal: are two things equal?
A3: 2016-02-15 | B3: 2016 | C3: Sunset | D3: 2391.92 | E3: 980.69 | O3: <> | P3: Not: are two things not equal? Type less than symbol, then greater than symbol.
A4: 2017-11-15 | B4: 2017 | C4: Carlota | D4: 53.23 | E4: 22.89 | G4: ="The AND Logical Test is: " -> The AND Logical Test is: | O4: > | P4: Greater than: is the thing on the left greater than the thing on the right?
A5: 2018-08-31 | B5: 2018 | C5: Carlota | D5: 1558.76 | E5: 888.49 | G5: ="the "&G10&" Field must contain "&H10&" " -> the Year Field must contain 2017 | O5: >= | P5: Greater than or equal to: is the thing on the left greater than or equal to the thing on the right?
A6: 2018-12-16 | B6: 2018 | C6: Sunset | D6: 917.72 | E6: 568.99 | G6: AND | O6: < | P6: Less than: is the thing on the left less than the thing on the right?
A7: 2018-05-16 | B7: 2018 | C7: Sunset | D7: 1876.27 | E7: 731.75 | G7: ="the "&G13&" Field must contain the given Product Name." -> the Product Field must contain the given Product Name. | O7: <= | P7: Less than or equal to: is the thing on the left less than or equal to the thing on the right?
A8: 2016-12-27 | B8: 2016 | C8: Yanaki | D8: 1487.82 | E8: 684.4
A9: 2017-09-18 | B9: 2017 | C9: Quad | D9: 2017.73 | E9: 807.09
A10: 2018-06-04 | B10: 2018 | C10: Yanaki | D10: 1459.48 | E10: 569.2 | G10: =B1 -> Year | H10: 2017
A11: 2018-05-09 | B11: 2018 | C11: Carlota | D11: 1020.18 | E11: 591.7
A12: 2016-07-06 | B12: 2016 | C12: Carlota | D12: 653.87 | E12: 274.63
A13: 2017-11-09 | B13: 2017 | C13: Yanaki | D13: 1044.37 | E13: 616.18 | G13: =C1 -> Product | H13: Total Sales
A14: 2017-09-07 | B14: 2017 | C14: Carlota | D14: 1900.47 | E14: 988.24 | G14: Quad | J14: =IF(_xlfn.ISFORMULA(H14),_xlfn.FORMULATEXT(H14),"") -> 
A15: 2017-04-13 | B15: 2017 | C15: Carlota | D15: 1129.45 | E15: 463.07 | G15: Sunset | J15: SUMIFS adds numbers with two conditions/criteria
A16: 2017-06-20 | B16: 2017 | C16: Carlota | D16: 328.7 | E16: 128.19 | G16: Yanaki
A17: 2017-05-26 | B17: 2017 | C17: Sunset | D17: 58 | E17: 36.54 | G17: Carlota
A18: 2018-03-03 | B18: 2018 | C18: Sunset | D18: 1646.76 | E18: 1037.46
A19: 2017-11-10 | B19: 2017 | C19: Carlota | D19: 1865.2 | E19: 895.3 | G19: ** This is an example of where a PivotTable might be easier,
A20: 2017-01-18 | B20: 2017 | C20: Quad | D20: 884.17 | E20: 512.82 | G20: if you don't mind using "Refresh" if source data changes
A21: 2017-06-12 | B21: 2017 | C21: Quad | D21: 1891.74 | E21: 908.04
A22: 2017-10-08 | B22: 2017 | C22: Sunset | D22: 561.61 | E22: 219.03
A23: 2017-08-27 | B23: 2017 | C23: Quad | D23: 713.19 | E23: 392.25
A24: 2016-03-16 | B24: 2016 | C24: Sunset | D24: 148.6 | E24: 69.84
A25: 2017-08-16 | B25: 2017 | C25: Yanaki | D25: 2436.08 | E25: 1315.48
A26: 2018-01-29 | B26: 2018 | C26: Sunset | D26: 353.67 | E26: 169.76
A27: 2017-11-07 | B27: 2017 | C27: Sunset | D27: 1993.91 | E27: 996.96
A28: 2018-04-27 | B28: 2018 | C28: Yanaki | D28: 1535.67 | E28: 982.83
A29: 2017-05-03 | B29: 2017 | C29: Yanaki | D29: 1058.98 | E29: 645.98
A30: 2017-10-18 | B30: 2017 | C30: Carlota | D30: 725.21 | E30: 362.61
A31: 2017-11-04 | B31: 2017 | C31: Carlota | D31: 1332.83 | E31: 879.67
A32: 2016-07-05 | B32: 2016 | C32: Quad | D32: 1955.26 | E32: 860.31
A33: 2016-10-03 | B33: 2016 | C33: Carlota | D33: 1003.54 | E33: 662.34
A34: 2017-03-12 | B34: 2017 | C34: Sunset | D34: 368.46 | E34: 184.23
A35: 2017-10-11 | B35: 2017 | C35: Quad | D35: 1473.86 | E35: 795.88
A36: 2017-10-24 | B36: 2017 | C36: Yanaki | D36: 539.23 | E36: 285.79
A37: 2016-01-08 | B37: 2016 | C37: Yanaki | D37: 1974.49 | E37: 908.27
A38: 2017-08-17 | B38: 2017 | C38: Yanaki | D38: 1931.47 | E38: 1081.62
A39: 2016-11-14 | B39: 2016 | C39: Yanaki | D39: 1449.29 | E39: 884.07
A40: 2017-06-18 | B40: 2017 | C40: Carlota | D40: 2307.69 | E40: 1038.46
A41: 2018-04-03 | B41: 2018 | C41: Quad | D41: 1115.13 | E41: 490.66
A42: 2016-01-15 | B42: 2016 | C42: Sunset | D42: 29.88 | E42: 16.14
A43: 2017-02-28 | B43: 2017 | C43: Carlota | D43: 2154.95 | E43: 1077.48
A44: 2016-03-04 | B44: 2016 | C44: Quad | D44: 1234.86 | E44: 815.01
A45: 2017-09-22 | B45: 2017 | C45: Yanaki | D45: 2154.18 | E45: 1206.34
A46: 2017-07-23 | B46: 2017 | C46: Quad | D46: 1744.62 | E46: 872.31
A47: 2018-06-18 | B47: 2018 | C47: Yanaki | D47: 2298.45 | E47: 1126.24
A48: 2016-08-14 | B48: 2016 | C48: Quad | D48: 494.28 | E48: 271.85
A49: 2016-03-09 | B49: 2016 | C49: Sunset | D49: 2253.03 | E49: 1149.05
A50: 2017-03-01 | B50: 2017 | C50: Sunset | D50: 1478.09 | E50: 768.61
A51: 2018-11-02 | B51: 2018 | C51: Carlota | D51: 678.92 | E51: 325.88
A52: 2018-04-11 | B52: 2018 | C52: Sunset | D52: 143.51 | E52: 71.76
A53: 2016-02-25 | B53: 2016 | C53: Carlota | D53: 1868.96 | E53: 747.58
A54: 2017-06-13 | B54: 2017 | C54: Carlota | D54: 1549.63 | E54: 604.36
A55: 2016-11-08 | B55: 2016 | C55: Sunset | D55: 937.24 | E55: 459.25
A56: 2018-05-07 | B56: 2018 | C56: Sunset | D56: 109.84 | E56: 54.92
A57: 2017-02-16 | B57: 2017 | C57: Carlota | D57: 747.68 | E57: 500.95
A58: 2017-05-31 | B58: 2017 | C58: Carlota | D58: 443.35 | E58: 252.71
A59: 2016-01-27 | B59: 2016 | C59: Carlota | D59: 1129.85 | E59: 723.1
A60: 2016-09-19 | B60: 2016 | C60: Yanaki | D60: 2202.75 | E60: 947.18
A61: 2016-02-05 | B61: 2016 | C61: Quad | D61: 29.56 | E61: 11.82
A62: 2016-04-13 | B62: 2016 | C62: Quad | D62: 2088.42 | E62: 1294.82
A63: 2017-03-23 | B63: 2017 | C63: Sunset | D63: 708.14 | E63: 446.13
A64: 2018-12-08 | B64: 2018 | C64: Carlota | D64: 44.86 | E64: 26.47
A65: 2017-09-19 | B65: 2017 | C65: Yanaki | D65: 1665.87 | E65: 866.25
A66: 2018-01-08 | B66: 2018 | C66: Quad | D66: 1657.26 | E66: 977.78
A67: 2017-01-28 | B67: 2017 | C67: Sunset | D67: 1543.94 | E67: 679.33
A68: 2016-07-20 | B68: 2016 | C68: Quad | D68: 1362.96 | E68: 708.74
A69: 2017-06-17 | B69: 2017 | C69: Quad | D69: 308.4 | E69: 141.86
A70: 2017-03-10 | B70: 2017 | C70: Carlota | D70: 2495.48 | E70: 1098.01
A71: 2017-05-10 | B71: 2017 | C71: Yanaki | D71: 402.76 | E71: 189.3
A72: 2018-05-08 | B72: 2018 | C72: Carlota | D72: 1421.93 | E72: 639.87
A73: 2016-01-05 | B73: 2016 | C73: Sunset | D73: 1172.31 | E73: 644.77
A74: 2017-04-09 | B74: 2017 | C74: Sunset | D74: 2070.49 | E74: 1345.82
A75: 2018-12-29 | B75: 2018 | C75: Quad | D75: 1965.34 | E75: 786.14
A76: 2016-06-21 | B76: 2016 | C76: Yanaki | D76: 1833 | E76: 879.84
A77: 2018-04-07 | B77: 2018 | C77: Yanaki | D77: 2151.45 | E77: 1312.38
A78: 2017-05-05 | B78: 2017 | C78: Yanaki | D78: 673.95 | E78: 384.15
A79: 2018-01-17 | B79: 2018 | C79: Quad | D79: 561.58 | E79: 247.1
A80: 2017-08-10 | B80: 2017 | C80: Carlota | D80: 1342.24 | E80: 711.39
A81: 2018-07-05 | B81: 2018 | C81: Sunset | D81: 1754.6 | E81: 789.57
A82: 2018-01-29 | B82: 2018 | C82: Sunset | D82: 214.29 | E82: 109.29
A83: 2017-02-27 | B83: 2017 | C83: Carlota | D83: 1561.54 | E83: 952.54
A84: 2018-03-06 | B84: 2018 | C84: Quad | D84: 1673.37 | E84: 870.15
A85: 2018-11-10 | B85: 2018 | C85: Quad | D85: 773.05 | E85: 440.64
A86: 2018-10-12 | B86: 2018 | C86: Quad | D86: 418.72 | E86: 230.3
A87: 2017-10-25 | B87: 2017 | C87: Yanaki | D87: 1946.44 | E87: 1051.08
A88: 2017-02-25 | B88: 2017 | C88: Carlota | D88: 770.94 | E88: 339.21
A89: 2018-08-20 | B89: 2018 | C89: Sunset | D89: 1222.49 | E89: 770.17
A90: 2018-03-25 | B90: 2018 | C90: Quad | D90: 1395.46 | E90: 851.23
A91: 2017-06-10 | B91: 2017 | C91: Quad | D91: 1520.63 | E91: 851.55
A92: 2016-09-22 | B92: 2016 | C92: Carlota | D92: 1094.5 | E92: 689.54
A93: 2017-03-14 | B93: 2017 | C93: Sunset | D93: 76.96 | E93: 33.86
A94: 2017-10-08 | B94: 2017 | C94: Sunset | D94: 234.72 | E94: 152.57
A95: 2017-02-27 | B95: 2017 | C95: Quad | D95: 2003.25 | E95: 1041.69
A96: 2017-05-24 | B96: 2017 | C96: Sunset | D96: 1688.01 | E96: 1063.45
A97: 2016-12-29 | B97: 2016 | C97: Carlota | D97: 1538.35 | E97: 815.33
A98: 2017-05-01 | B98: 2017 | C98: Yanaki | D98: 147.04 | E98: 97.05
A99: 2017-07-21 | B99: 2017 | C99: Yanaki | D99: 1908.31 | E99: 954.16
A100: 2017-01-10 | B100: 2017 | C100: Sunset | D100: 490.77 | E100: 319
A101: 2017-07-04 | B101: 2017 | C101: Quad | D101: 671.76 | E101: 409.77
A102: 2016-07-05 | B102: 2016 | C102: Quad | D102: 2301.62 | E102: 920.65
A103: 2017-01-11 | B103: 2017 | C103: Carlota | D103: 502.61 | E103: 206.07
A104: 2018-10-08 | B104: 2018 | C104: Quad | D104: 1047.63 | E104: 408.58
A105: 2018-05-07 | B105: 2018 | C105: Yanaki | D105: 1647.46 | E105: 741.36
A106: 2018-02-06 | B106: 2018 | C106: Sunset | D106: 609.32 | E106: 280.29
A107: 2018-02-10 | B107: 2018 | C107: Yanaki | D107: 489.95 | E107: 279.27
A108: 2018-04-10 | B108: 2018 | C108: Carlota | D108: 234.43 | E108: 126.59
A109: 2018-01-19 | B109: 2018 | C109: Carlota | D109: 1988.25 | E109: 1113.42
A110: 2018-01-16 | B110: 2018 | C110: Sunset | D110: 62.18 | E110: 24.25
A111: 2016-02-06 | B111: 2016 | C111: Yanaki | D111: 598.85 | E111: 269.48
A112: 2016-07-16 | B112: 2016 | C112: Carlota | D112: 2177.11 | E112: 936.16
A113: 2017-03-07 | B113: 2017 | C113: Quad | D113: 2417.35 | E113: 1281.2
A114: 2017-03-03 | B114: 2017 | C114: Carlota | D114: 498.52 | E114: 259.23
A115: 2017-12-22 | B115: 2017 | C115: Sunset | D115: 22.8 | E115: 13.91
A116: 2018-06-23 | B116: 2018 | C116: Quad | D116: 536.25 | E116: 294.94
A117: 2016-02-13 | B117: 2016 | C117: Quad | D117: 1871.36 | E117: 1160.24
A118: 2016-09-09 | B118: 2016 | C118: Sunset | D118: 880.15 | E118: 536.89
A119: 2016-05-13 | B119: 2016 | C119: Carlota | D119: 2115.44 | E119: 1184.65
A120: 2016-08-30 | B120: 2016 | C120: Sunset | D120: 2268.16 | E120: 975.31
A121: 2018-11-20 | B121: 2018 | C121: Carlota | D121: 1800.62 | E121: 954.33
A122: 2018-11-06 | B122: 2018 | C122: Quad | D122: 1860.09 | E122: 781.24
A123: 2018-02-23 | B123: 2018 | C123: Yanaki | D123: 667.55 | E123: 267.02
A124: 2016-11-04 | B124: 2016 | C124: Quad | D124: 989.63 | E124: 653.16
A125: 2016-06-07 | B125: 2016 | C125: Yanaki | D125: 1907.49 | E125: 820.22
A126: 2016-04-08 | B126: 2016 | C126: Quad | D126: 693.75 | E126: 291.38
A127: 2017-11-05 | B127: 2017 | C127: Carlota | D127: 699.22 | E127: 391.56
A128: 2017-07-22 | B128: 2017 | C128: Carlota | D128: 1489.21 | E128: 982.88
A129: 2017-01-25 | B129: 2017 | C129: Yanaki | D129: 987.63 | E129: 414.8
A130: 2018-06-21 | B130: 2018 | C130: Quad | D130: 2037.45 | E130: 1161.35
A131: 2016-02-11 | B131: 2016 | C131: Quad | D131: 2345 | E131: 1430.45
A132: 2018-01-19 | B132: 2018 | C132: Quad | D132: 1496.14 | E132: 703.19
A133: 2018-01-21 | B133: 2018 | C133: Carlota | D133: 836.37 | E133: 368
A134: 2018-06-13 | B134: 2018 | C134: Carlota | D134: 1023.91 | E134: 573.39
A135: 2017-01-25 | B135: 2017 | C135: Sunset | D135: 1553.78 | E135: 776.89
A136: 2017-12-19 | B136: 2017 | C136: Yanaki | D136: 946.52 | E136: 388.07
A137: 2016-06-18 | B137: 2016 | C137: Yanaki | D137: 891.64 | E137: 552.82
A138: 2016-03-02 | B138: 2016 | C138: Sunset | D138: 1042.61 | E138: 552.58
A139: 2018-03-30 | B139: 2018 | C139: Yanaki | D139: 692.89 | E139: 291.01
A140: 2016-05-07 | B140: 2016 | C140: Quad | D140: 2421.14 | E140: 1234.78
A141: 2017-10-08 | B141: 2017 | C141: Carlota | D141: 2459.69 | E141: 1008.47
A142: 2016-06-06 | B142: 2016 | C142: Yanaki | D142: 505.37 | E142: 293.11
A143: 2018-03-04 | B143: 2018 | C143: Sunset | D143: 1349.89 | E143: 566.95
A144: 2018-04-17 | B144: 2018 | C144: Yanaki | D144: 2256.65 | E144: 1196.02
A145: 2017-12-02 | B145: 2017 | C145: Quad | D145: 1068.15 | E145: 480.67
A146: 2017-04-07 | B146: 2017 | C146: Sunset | D146: 488.82 | E146: 303.07
A147: 2016-08-07 | B147: 2016 | C147: Quad | D147: 1549.1 | E147: 805.53
A148: 2017-12-24 | B148: 2017 | C148: Carlota | D148: 984.61 | E148: 384
A149: 2017-08-16 | B149: 2017 | C149: Sunset | D149: 2445.18 | E149: 1295.95
A150: 2017-10-05 | B150: 2017 | C150: Quad | D150: 45.18 | E150: 21.69
A151: 2017-02-02 | B151: 2017 | C151: Yanaki | D151: 2162.32 | E151: 1037.91
A152: 2016-09-18 | B152: 2016 | C152: Sunset | D152: 2345.43 | E152: 1336.9
A153: 2016-01-23 | B153: 2016 | C153: Quad | D153: 968.43 | E153: 571.37
A154: 2018-09-11 | B154: 2018 | C154: Yanaki | D154: 573.76 | E154: 355.73
A155: 2017-04-14 | B155: 2017 | C155: Sunset | D155: 2222.89 | E155: 911.38
A156: 2016-07-09 | B156: 2016 | C156: Yanaki | D156: 1452.43 | E156: 813.36
A157: 2018-02-22 | B157: 2018 | C157: Carlota | D157: 454.62 | E157: 222.76
A158: 2018-01-05 | B158: 2018 | C158: Carlota | D158: 1753.68 | E158: 789.16
A159: 2018-07-31 | B159: 2018 | C159: Sunset | D159: 1623.32 | E159: 795.43
A160: 2018-11-26 | B160: 2018 | C160: Quad | D160: 531.32 | E160: 355.98
A161: 2018-01-23 | B161: 2018 | C161: Yanaki | D161: 2144.95 | E161: 1394.22
A162: 2017-05-28 | B162: 2017 | C162: Sunset | D162: 517.14 | E162: 336.14
A163: 2018-01-29 | B163: 2018 | C163: Quad | D163: 852.54 | E163: 562.68
A164: 2017-07-12 | B164: 2017 | C164: Sunset | D164: 438.5 | E164: 223.64
A165: 2017-03-13 | B165: 2017 | C165: Carlota | D165: 1958.55 | E165: 998.86
A166: 2017-01-12 | B166: 2017 | C166: Quad | D166: 245.23 | E166: 122.62
A167: 2016-09-15 | B167: 2016 | C167: Sunset | D167: 315.6 | E167: 201.98
A168: 2016-03-19 | B168: 2016 | C168: Yanaki | D168: 269.58 | E168: 126.7
A169: 2018-10-07 | B169: 2018 | C169: Sunset | D169: 2106.07 | E169: 1263.64
A170: 2017-04-28 | B170: 2017 | C170: Sunset | D170: 562.73 | E170: 236.35
A171: 2018-05-29 | B171: 2018 | C171: Yanaki | D171: 2347.6 | E171: 962.52
A172: 2018-06-10 | B172: 2018 | C172: Quad | D172: 1197.77 | E172: 598.89
A173: 2016-08-30 | B173: 2016 | C173: Yanaki | D173: 1411.59 | E173: 762.26
A174: 2017-07-27 | B174: 2017 | C174: Quad | D174: 2030.49 | E174: 1258.9
A175: 2018-09-27 | B175: 2018 | C175: Yanaki | D175: 1665.95 | E175: 766.34
A176: 2018-12-16 | B176: 2018 | C176: Sunset | D176: 305.46 | E176: 192.44
A177: 2018-12-30 | B177: 2018 | C177: Carlota | D177: 1913.15 | E177: 1033.1
A178: 2017-04-11 | B178: 2017 | C178: Yanaki | D178: 1838.42 | E178: 772.14
A179: 2016-01-31 | B179: 2016 | C179: Quad | D179: 2043.55 | E179: 1226.13
A180: 2016-10-31 | B180: 2016 | C180: Sunset | D180: 1426.9 | E180: 684.91
A181: 2016-03-13 | B181: 2016 | C181: Sunset | D181: 1997.29 | E181: 778.94
A182: 2017-11-07 | B182: 2017 | C182: Quad | D182: 823.75 | E182: 420.11
A183: 2018-06-14 | B183: 2018 | C183: Yanaki | D183: 1927.75 | E183: 1079.54
A184: 2016-06-14 | B184: 2016 | C184: Carlota | D184: 52.38 | E184: 25.14
A185: 2018-10-25 | B185: 2018 | C185: Quad | D185: 865.26 | E185: 449.94
A186: 2018-11-06 | B186: 2018 | C186: Sunset | D186: 1539.72 | E186: 1016.22
A187: 2016-12-09 | B187: 2016 | C187: Yanaki | D187: 698.67 | E187: 461.12
A188: 2016-03-14 | B188: 2016 | C188: Yanaki | D188: 33.12 | E188: 18.88
A189: 2018-11-15 | B189: 2018 | C189: Yanaki | D189: 1017.6 | E189: 590.21
A190: 2017-12-17 | B190: 2017 | C190: Sunset | D190: 1042 | E190: 666.88
A191: 2017-02-08 | B191: 2017 | C191: Sunset | D191: 1520.64 | E191: 669.08
A192: 2018-09-08 | B192: 2018 | C192: Yanaki | D192: 1780.84 | E192: 979.46
A193: 2018-01-02 | B193: 2018 | C193: Yanaki | D193: 1474.72 | E193: 722.61
A194: 2017-05-27 | B194: 2017 | C194: Quad | D194: 953.44 | E194: 457.65
A195: 2016-09-15 | B195: 2016 | C195: Quad | D195: 1769.66 | E195: 867.13
A196: 2017-03-06 | B196: 2017 | C196: Carlota | D196: 1275.35 | E196: 790.72
A197: 2016-09-27 | B197: 2016 | C197: Sunset | D197: 46.74 | E197: 20.57
A198: 2017-12-19 | B198: 2017 | C198: Carlota | D198: 1351.89 | E198: 851.69
A199: 2016-03-30 | B199: 2016 | C199: Yanaki | D199: 674.89 | E199: 364.44
A200: 2017-12-27 | B200: 2017 | C200: Sunset | D200: 2362.05 | E200: 1251.89
... 465 more rows

Sheet Ex(5an)
A1: Date | B1: Year | C1: Product | D1: Sales | E1: COGS | G1: ="Goal: Add Total "&D1&" for each "&G13&" in the Year "&H10&"." -> Goal: Add Total Sales for each Product in the Year 2017. | O1: Comparative Operators.
A2: 2018-07-15 | B2: 2018 | C2: Quad | D2: 2453.52 | E2: 1128.62 | G2: and have ability to change criteria and have formulas instantly update | O2: = | P2: Equal: are two things equal?
A3: 2016-02-15 | B3: 2016 | C3: Sunset | D3: 2391.92 | E3: 980.69 | O3: <> | P3: Not: are two things not equal? Type less than symbol, then greater than symbol.
A4: 2017-11-15 | B4: 2017 | C4: Carlota | D4: 53.23 | E4: 22.89 | G4: ="The AND Logical Test is: " -> The AND Logical Test is: | O4: > | P4: Greater than: is the thing on the left greater than the thing on the right?
A5: 2018-08-31 | B5: 2018 | C5: Carlota | D5: 1558.76 | E5: 888.49 | G5: ="the "&G10&" Field must contain "&H10&" " -> the Year Field must contain 2017 | O5: >= | P5: Greater than or equal to: is the thing on the left greater than or equal to the thing on the right?
A6: 2018-12-16 | B6: 2018 | C6: Sunset | D6: 917.72 | E6: 568.99 | G6: AND | O6: < | P6: Less than: is the thing on the left less than the thing on the right?
A7: 2018-05-16 | B7: 2018 | C7: Sunset | D7: 1876.27 | E7: 731.75 | G7: ="the "&G13&" Field must contain the given Product Name." -> the Product Field must contain the given Product Name. | O7: <= | P7: Less than or equal to: is the thing on the left less than or equal to the thing on the right?
A8: 2016-12-27 | B8: 2016 | C8: Yanaki | D8: 1487.82 | E8: 684.4
A9: 2017-09-18 | B9: 2017 | C9: Quad | D9: 2017.73 | E9: 807.09
A10: 2018-06-04 | B10: 2018 | C10: Yanaki | D10: 1459.48 | E10: 569.2 | G10: =B1 -> Year | H10: 2017
A11: 2018-05-09 | B11: 2018 | C11: Carlota | D11: 1020.18 | E11: 591.7
A12: 2016-07-06 | B12: 2016 | C12: Carlota | D12: 653.87 | E12: 274.63
A13: 2017-11-09 | B13: 2017 | C13: Yanaki | D13: 1044.37 | E13: 616.18 | G13: =C1 -> Product | H13: Total Sales
A14: 2017-09-07 | B14: 2017 | C14: Carlota | D14: 1900.47 | E14: 988.24 | G14: Quad | H14: =SUMIFS($D$2:$D$665,$C$2:$C$665,G14,$B$2:$B$665,$H$10) -> 65927.28 | J14: =IF(_xlfn.ISFORMULA(H14),_xlfn.FORMULATEXT(H14),"") -> =SUMIFS($D$2:$D$665,$C$2:$C$665,G14,$B$2:$B$665,$H$10)
A15: 2017-04-13 | B15: 2017 | C15: Carlota | D15: 1129.45 | E15: 463.07 | G15: Sunset | H15: =SUMIFS($D$2:$D$665,$C$2:$C$665,G15,$B$2:$B$665,$H$10) -> 60253.48 | J15: SUMIFS adds numbers with two conditions/criteria
A16: 2017-06-20 | B16: 2017 | C16: Carlota | D16: 328.7 | E16: 128.19 | G16: Yanaki | H16: =SUMIFS($D$2:$D$665,$C$2:$C$665,G16,$B$2:$B$665,$H$10) -> 73134.36
A17: 2017-05-26 | B17: 2017 | C17: Sunset | D17: 58 | E17: 36.54 | G17: Carlota | H17: =SUMIFS($D$2:$D$665,$C$2:$C$665,G17,$B$2:$B$665,$H$10) -> 87576.5
A18: 2018-03-03 | B18: 2018 | C18: Sunset | D18: 1646.76 | E18: 1037.46
A19: 2017-11-10 | B19: 2017 | C19: Carlota | D19: 1865.2 | E19: 895.3 | G19: ** This is an example of where a PivotTable might be easier,
A20: 2017-01-18 | B20: 2017 | C20: Quad | D20: 884.17 | E20: 512.82 | G20: if you don't mind using "Refresh" if source data changes
A21: 2017-06-12 | B21: 2017 | C21: Quad | D21: 1891.74 | E21: 908.04
A22: 2017-10-08 | B22: 2017 | C22: Sunset | D22: 561.61 | E22: 219.03
A23: 2017-08-27 | B23: 2017 | C23: Quad | D23: 713.19 | E23: 392.25
A24: 2016-03-16 | B24: 2016 | C24: Sunset | D24: 148.6 | E24: 69.84
A25: 2017-08-16 | B25: 2017 | C25: Yanaki | D25: 2436.08 | E25: 1315.48
A26: 2018-01-29 | B26: 2018 | C26: Sunset | D26: 353.67 | E26: 169.76
A27: 2017-11-07 | B27: 2017 | C27: Sunset | D27: 1993.91 | E27: 996.96
A28: 2018-04-27 | B28: 2018 | C28: Yanaki | D28: 1535.67 | E28: 982.83
A29: 2017-05-03 | B29: 2017 | C29: Yanaki | D29: 1058.98 | E29: 645.98
A30: 2017-10-18 | B30: 2017 | C30: Carlota | D30: 725.21 | E30: 362.61
A31: 2017-11-04 | B31: 2017 | C31: Carlota | D31: 1332.83 | E31: 879.67
A32: 2016-07-05 | B32: 2016 | C32: Quad | D32: 1955.26 | E32: 860.31
A33: 2016-10-03 | B33: 2016 | C33: Carlota | D33: 1003.54 | E33: 662.34
A34: 2017-03-12 | B34: 2017 | C34: Sunset | D34: 368.46 | E34: 184.23
A35: 2017-10-11 | B35: 2017 | C35: Quad | D35: 1473.86 | E35: 795.88
A36: 2017-10-24 | B36: 2017 | C36: Yanaki | D36: 539.23 | E36: 285.79
A37: 2016-01-08 | B37: 2016 | C37: Yanaki | D37: 1974.49 | E37: 908.27
A38: 2017-08-17 | B38: 2017 | C38: Yanaki | D38: 1931.47 | E38: 1081.62
A39: 2016-11-14 | B39: 2016 | C39: Yanaki | D39: 1449.29 | E39: 884.07
A40: 2017-06-18 | B40: 2017 | C40: Carlota | D40: 2307.69 | E40: 1038.46
A41: 2018-04-03 | B41: 2018 | C41: Quad | D41: 1115.13 | E41: 490.66
A42: 2016-01-15 | B42: 2016 | C42: Sunset | D42: 29.88 | E42: 16.14
A43: 2017-02-28 | B43: 2017 | C43: Carlota | D43: 2154.95 | E43: 1077.48
A44: 2016-03-04 | B44: 2016 | C44: Quad | D44: 1234.86 | E44: 815.01
A45: 2017-09-22 | B45: 2017 | C45: Yanaki | D45: 2154.18 | E45: 1206.34
A46: 2017-07-23 | B46: 2017 | C46: Quad | D46: 1744.62 | E46: 872.31
A47: 2018-06-18 | B47: 2018 | C47: Yanaki | D47: 2298.45 | E47: 1126.24
A48: 2016-08-14 | B48: 2016 | C48: Quad | D48: 494.28 | E48: 271.85
A49: 2016-03-09 | B49: 2016 | C49: Sunset | D49: 2253.03 | E49: 1149.05
A50: 2017-03-01 | B50: 2017 | C50: Sunset | D50: 1478.09 | E50: 768.61
A51: 2018-11-02 | B51: 2018 | C51: Carlota | D51: 678.92 | E51: 325.88
A52: 2018-04-11 | B52: 2018 | C52: Sunset | D52: 143.51 | E52: 71.76
A53: 2016-02-25 | B53: 2016 | C53: Carlota | D53: 1868.96 | E53: 747.58
A54: 2017-06-13 | B54: 2017 | C54: Carlota | D54: 1549.63 | E54: 604.36
A55: 2016-11-08 | B55: 2016 | C55: Sunset | D55: 937.24 | E55: 459.25
A56: 2018-05-07 | B56: 2018 | C56: Sunset | D56: 109.84 | E56: 54.92
A57: 2017-02-16 | B57: 2017 | C57: Carlota | D57: 747.68 | E57: 500.95
A58: 2017-05-31 | B58: 2017 | C58: Carlota | D58: 443.35 | E58: 252.71
A59: 2016-01-27 | B59: 2016 | C59: Carlota | D59: 1129.85 | E59: 723.1
A60: 2016-09-19 | B60: 2016 | C60: Yanaki | D60: 2202.75 | E60: 947.18
A61: 2016-02-05 | B61: 2016 | C61: Quad | D61: 29.56 | E61: 11.82
A62: 2016-04-13 | B62: 2016 | C62: Quad | D62: 2088.42 | E62: 1294.82
A63: 2017-03-23 | B63: 2017 | C63: Sunset | D63: 708.14 | E63: 446.13
A64: 2018-12-08 | B64: 2018 | C64: Carlota | D64: 44.86 | E64: 26.47
A65: 2017-09-19 | B65: 2017 | C65: Yanaki | D65: 1665.87 | E65: 866.25
A66: 2018-01-08 | B66: 2018 | C66: Quad | D66: 1657.26 | E66: 977.78
A67: 2017-01-28 | B67: 2017 | C67: Sunset | D67: 1543.94 | E67: 679.33
A68: 2016-07-20 | B68: 2016 | C68: Quad | D68: 1362.96 | E68: 708.74
A69: 2017-06-17 | B69: 2017 | C69: Quad | D69: 308.4 | E69: 141.86
A70: 2017-03-10 | B70: 2017 | C70: Carlota | D70: 2495.48 | E70: 1098.01
A71: 2017-05-10 | B71: 2017 | C71: Yanaki | D71: 402.76 | E71: 189.3
A72: 2018-05-08 | B72: 2018 | C72: Carlota | D72: 1421.93 | E72: 639.87
A73: 2016-01-05 | B73: 2016 | C73: Sunset | D73: 1172.31 | E73: 644.77
A74: 2017-04-09 | B74: 2017 | C74: Sunset | D74: 2070.49 | E74: 1345.82
A75: 2018-12-29 | B75: 2018 | C75: Quad | D75: 1965.34 | E75: 786.14
A76: 2016-06-21 | B76: 2016 | C76: Yanaki | D76: 1833 | E76: 879.84
A77: 2018-04-07 | B77: 2018 | C77: Yanaki | D77: 2151.45 | E77: 1312.38
A78: 2017-05-05 | B78: 2017 | C78: Yanaki | D78: 673.95 | E78: 384.15
A79: 2018-01-17 | B79: 2018 | C79: Quad | D79: 561.58 | E79: 247.1
A80: 2017-08-10 | B80: 2017 | C80: Carlota | D80: 1342.24 | E80: 711.39
A81: 2018-07-05 | B81: 2018 | C81: Sunset | D81: 1754.6 | E81: 789.57
A82: 2018-01-29 | B82: 2018 | C82: Sunset | D82: 214.29 | E82: 109.29
A83: 2017-02-27 | B83: 2017 | C83: Carlota | D83: 1561.54 | E83: 952.54
A84: 2018-03-06 | B84: 2018 | C84: Quad | D84: 1673.37 | E84: 870.15
A85: 2018-11-10 | B85: 2018 | C85: Quad | D85: 773.05 | E85: 440.64
A86: 2018-10-12 | B86: 2018 | C86: Quad | D86: 418.72 | E86: 230.3
A87: 2017-10-25 | B87: 2017 | C87: Yanaki | D87: 1946.44 | E87: 1051.08
A88: 2017-02-25 | B88: 2017 | C88: Carlota | D88: 770.94 | E88: 339.21
A89: 2018-08-20 | B89: 2018 | C89: Sunset | D89: 1222.49 | E89: 770.17
A90: 2018-03-25 | B90: 2018 | C90: Quad | D90: 1395.46 | E90: 851.23
A91: 2017-06-10 | B91: 2017 | C91: Quad | D91: 1520.63 | E91: 851.55
A92: 2016-09-22 | B92: 2016 | C92: Carlota | D92: 1094.5 | E92: 689.54
A93: 2017-03-14 | B93: 2017 | C93: Sunset | D93: 76.96 | E93: 33.86
A94: 2017-10-08 | B94: 2017 | C94: Sunset | D94: 234.72 | E94: 152.57
A95: 2017-02-27 | B95: 2017 | C95: Quad | D95: 2003.25 | E95: 1041.69
A96: 2017-05-24 | B96: 2017 | C96: Sunset | D96: 1688.01 | E96: 1063.45
A97: 2016-12-29 | B97: 2016 | C97: Carlota | D97: 1538.35 | E97: 815.33
A98: 2017-05-01 | B98: 2017 | C98: Yanaki | D98: 147.04 | E98: 97.05
A99: 2017-07-21 | B99: 2017 | C99: Yanaki | D99: 1908.31 | E99: 954.16
A100: 2017-01-10 | B100: 2017 | C100: Sunset | D100: 490.77 | E100: 319
A101: 2017-07-04 | B101: 2017 | C101: Quad | D101: 671.76 | E101: 409.77
A102: 2016-07-05 | B102: 2016 | C102: Quad | D102: 2301.62 | E102: 920.65
A103: 2017-01-11 | B103: 2017 | C103: Carlota | D103: 502.61 | E103: 206.07
A104: 2018-10-08 | B104: 2018 | C104: Quad | D104: 1047.63 | E104: 408.58
A105: 2018-05-07 | B105: 2018 | C105: Yanaki | D105: 1647.46 | E105: 741.36
A106: 2018-02-06 | B106: 2018 | C106: Sunset | D106: 609.32 | E106: 280.29
A107: 2018-02-10 | B107: 2018 | C107: Yanaki | D107: 489.95 | E107: 279.27
A108: 2018-04-10 | B108: 2018 | C108: Carlota | D108: 234.43 | E108: 126.59
A109: 2018-01-19 | B109: 2018 | C109: Carlota | D109: 1988.25 | E109: 1113.42
A110: 2018-01-16 | B110: 2018 | C110: Sunset | D110: 62.18 | E110: 24.25
A111: 2016-02-06 | B111: 2016 | C111: Yanaki | D111: 598.85 | E111: 269.48
A112: 2016-07-16 | B112: 2016 | C112: Carlota | D112: 2177.11 | E112: 936.16
A113: 2017-03-07 | B113: 2017 | C113: Quad | D113: 2417.35 | E113: 1281.2
A114: 2017-03-03 | B114: 2017 | C114: Carlota | D114: 498.52 | E114: 259.23
A115: 2017-12-22 | B115: 2017 | C115: Sunset | D115: 22.8 | E115: 13.91
A116: 2018-06-23 | B116: 2018 | C116: Quad | D116: 536.25 | E116: 294.94
A117: 2016-02-13 | B117: 2016 | C117: Quad | D117: 1871.36 | E117: 1160.24
A118: 2016-09-09 | B118: 2016 | C118: Sunset | D118: 880.15 | E118: 536.89
A119: 2016-05-13 | B119: 2016 | C119: Carlota | D119: 2115.44 | E119: 1184.65
A120: 2016-08-30 | B120: 2016 | C120: Sunset | D120: 2268.16 | E120: 975.31
A121: 2018-11-20 | B121: 2018 | C121: Carlota | D121: 1800.62 | E121: 954.33
A122: 2018-11-06 | B122: 2018 | C122: Quad | D122: 1860.09 | E122: 781.24
A123: 2018-02-23 | B123: 2018 | C123: Yanaki | D123: 667.55 | E123: 267.02
A124: 2016-11-04 | B124: 2016 | C124: Quad | D124: 989.63 | E124: 653.16
A125: 2016-06-07 | B125: 2016 | C125: Yanaki | D125: 1907.49 | E125: 820.22
A126: 2016-04-08 | B126: 2016 | C126: Quad | D126: 693.75 | E126: 291.38
A127: 2017-11-05 | B127: 2017 | C127: Carlota | D127: 699.22 | E127: 391.56
A128: 2017-07-22 | B128: 2017 | C128: Carlota | D128: 1489.21 | E128: 982.88
A129: 2017-01-25 | B129: 2017 | C129: Yanaki | D129: 987.63 | E129: 414.8
A130: 2018-06-21 | B130: 2018 | C130: Quad | D130: 2037.45 | E130: 1161.35
A131: 2016-02-11 | B131: 2016 | C131: Quad | D131: 2345 | E131: 1430.45
A132: 2018-01-19 | B132: 2018 | C132: Quad | D132: 1496.14 | E132: 703.19
A133: 2018-01-21 | B133: 2018 | C133: Carlota | D133: 836.37 | E133: 368
A134: 2018-06-13 | B134: 2018 | C134: Carlota | D134: 1023.91 | E134: 573.39
A135: 2017-01-25 | B135: 2017 | C135: Sunset | D135: 1553.78 | E135: 776.89
A136: 2017-12-19 | B136: 2017 | C136: Yanaki | D136: 946.52 | E136: 388.07
A137: 2016-06-18 | B137: 2016 | C137: Yanaki | D137: 891.64 | E137: 552.82
A138: 2016-03-02 | B138: 2016 | C138: Sunset | D138: 1042.61 | E138: 552.58
A139: 2018-03-30 | B139: 2018 | C139: Yanaki | D139: 692.89 | E139: 291.01
A140: 2016-05-07 | B140: 2016 | C140: Quad | D140: 2421.14 | E140: 1234.78
A141: 2017-10-08 | B141: 2017 | C141: Carlota | D141: 2459.69 | E141: 1008.47
A142: 2016-06-06 | B142: 2016 | C142: Yanaki | D142: 505.37 | E142: 293.11
A143: 2018-03-04 | B143: 2018 | C143: Sunset | D143: 1349.89 | E143: 566.95
A144: 2018-04-17 | B144: 2018 | C144: Yanaki | D144: 2256.65 | E144: 1196.02
A145: 2017-12-02 | B145: 2017 | C145: Quad | D145: 1068.15 | E145: 480.67
A146: 2017-04-07 | B146: 2017 | C146: Sunset | D146: 488.82 | E146: 303.07
A147: 2016-08-07 | B147: 2016 | C147: Quad | D147: 1549.1 | E147: 805.53
A148: 2017-12-24 | B148: 2017 | C148: Carlota | D148: 984.61 | E148: 384
A149: 2017-08-16 | B149: 2017 | C149: Sunset | D149: 2445.18 | E149: 1295.95
A150: 2017-10-05 | B150: 2017 | C150: Quad | D150: 45.18 | E150: 21.69
A151: 2017-02-02 | B151: 2017 | C151: Yanaki | D151: 2162.32 | E151: 1037.91
A152: 2016-09-18 | B152: 2016 | C152: Sunset | D152: 2345.43 | E152: 1336.9
A153: 2016-01-23 | B153: 2016 | C153: Quad | D153: 968.43 | E153: 571.37
A154: 2018-09-11 | B154: 2018 | C154: Yanaki | D154: 573.76 | E154: 355.73
A155: 2017-04-14 | B155: 2017 | C155: Sunset | D155: 2222.89 | E155: 911.38
A156: 2016-07-09 | B156: 2016 | C156: Yanaki | D156: 1452.43 | E156: 813.36
A157: 2018-02-22 | B157: 2018 | C157: Carlota | D157: 454.62 | E157: 222.76
A158: 2018-01-05 | B158: 2018 | C158: Carlota | D158: 1753.68 | E158: 789.16
A159: 2018-07-31 | B159: 2018 | C159: Sunset | D159: 1623.32 | E159: 795.43
A160: 2018-11-26 | B160: 2018 | C160: Quad | D160: 531.32 | E160: 355.98
A161: 2018-01-23 | B161: 2018 | C161: Yanaki | D161: 2144.95 | E161: 1394.22
A162: 2017-05-28 | B162: 2017 | C162: Sunset | D162: 517.14 | E162: 336.14
A163: 2018-01-29 | B163: 2018 | C163: Quad | D163: 852.54 | E163: 562.68
A164: 2017-07-12 | B164: 2017 | C164: Sunset | D164: 438.5 | E164: 223.64
A165: 2017-03-13 | B165: 2017 | C165: Carlota | D165: 1958.55 | E165: 998.86
A166: 2017-01-12 | B166: 2017 | C166: Quad | D166: 245.23 | E166: 122.62
A167: 2016-09-15 | B167: 2016 | C167: Sunset | D167: 315.6 | E167: 201.98
A168: 2016-03-19 | B168: 2016 | C168: Yanaki | D168: 269.58 | E168: 126.7
A169: 2018-10-07 | B169: 2018 | C169: Sunset | D169: 2106.07 | E169: 1263.64
A170: 2017-04-28 | B170: 2017 | C170: Sunset | D170: 562.73 | E170: 236.35
A171: 2018-05-29 | B171: 2018 | C171: Yanaki | D171: 2347.6 | E171: 962.52
A172: 2018-06-10 | B172: 2018 | C172: Quad | D172: 1197.77 | E172: 598.89
A173: 2016-08-30 | B173: 2016 | C173: Yanaki | D173: 1411.59 | E173: 762.26
A174: 2017-07-27 | B174: 2017 | C174: Quad | D174: 2030.49 | E174: 1258.9
A175: 2018-09-27 | B175: 2018 | C175: Yanaki | D175: 1665.95 | E175: 766.34
A176: 2018-12-16 | B176: 2018 | C176: Sunset | D176: 305.46 | E176: 192.44
A177: 2018-12-30 | B177: 2018 | C177: Carlota | D177: 1913.15 | E177: 1033.1
A178: 2017-04-11 | B178: 2017 | C178: Yanaki | D178: 1838.42 | E178: 772.14
A179: 2016-01-31 | B179: 2016 | C179: Quad | D179: 2043.55 | E179: 1226.13
A180: 2016-10-31 | B180: 2016 | C180: Sunset | D180: 1426.9 | E180: 684.91
A181: 2016-03-13 | B181: 2016 | C181: Sunset | D181: 1997.29 | E181: 778.94
A182: 2017-11-07 | B182: 2017 | C182: Quad | D182: 823.75 | E182: 420.11
A183: 2018-06-14 | B183: 2018 | C183: Yanaki | D183: 1927.75 | E183: 1079.54
A184: 2016-06-14 | B184: 2016 | C184: Carlota | D184: 52.38 | E184: 25.14
A185: 2018-10-25 | B185: 2018 | C185: Quad | D185: 865.26 | E185: 449.94
A186: 2018-11-06 | B186: 2018 | C186: Sunset | D186: 1539.72 | E186: 1016.22
A187: 2016-12-09 | B187: 2016 | C187: Yanaki | D187: 698.67 | E187: 461.12
A188: 2016-03-14 | B188: 2016 | C188: Yanaki | D188: 33.12 | E188: 18.88
A189: 2018-11-15 | B189: 2018 | C189: Yanaki | D189: 1017.6 | E189: 590.21
A190: 2017-12-17 | B190: 2017 | C190: Sunset | D190: 1042 | E190: 666.88
A191: 2017-02-08 | B191: 2017 | C191: Sunset | D191: 1520.64 | E191: 669.08
A192: 2018-09-08 | B192: 2018 | C192: Yanaki | D192: 1780.84 | E192: 979.46
A193: 2018-01-02 | B193: 2018 | C193: Yanaki | D193: 1474.72 | E193: 722.61
A194: 2017-05-27 | B194: 2017 | C194: Quad | D194: 953.44 | E194: 457.65
A195: 2016-09-15 | B195: 2016 | C195: Quad | D195: 1769.66 | E195: 867.13
A196: 2017-03-06 | B196: 2017 | C196: Carlota | D196: 1275.35 | E196: 790.72
A197: 2016-09-27 | B197: 2016 | C197: Sunset | D197: 46.74 | E197: 20.57
A198: 2017-12-19 | B198: 2017 | C198: Carlota | D198: 1351.89 | E198: 851.69
A199: 2016-03-30 | B199: 2016 | C199: Yanaki | D199: 674.89 | E199: 364.44
A200: 2017-12-27 | B200: 2017 | C200: Sunset | D200: 2362.05 | E200: 1251.89
... 465 more rows

Sheet Ex(6)
A1: ** Each Record is a sale.
A3: Date | B3: Year | C3: Product | D3: Sales | E3: COGS | G3: ="Goal: Count number of "&D3&" "&H15&" for each product in the year "&H14 -> Goal: Count number of Sales >2000 for each product in the year 2017 | O3: Comparative Operators.
A4: 2018-07-15 | B4: 2018 | C4: Quad | D4: 2453.52 | E4: 1128.62 | G4: and have ability to change criteria and have formulas instantly update | O4: = | P4: Equal: are two things equal?
A5: 2016-02-15 | B5: 2016 | C5: Sunset | D5: 2391.92 | E5: 980.69 | O5: <> | P5: Not: are two things not equal? Type less than symbol, then greater than symbol.
A6: 2017-11-15 | B6: 2017 | C6: Carlota | D6: 53.23 | E6: 22.89 | G6: ="The AND Logical Test is: " -> The AND Logical Test is: | O6: > | P6: Greater than: is the thing on the left greater than the thing on the right?
A7: 2018-08-31 | B7: 2018 | C7: Carlota | D7: 1558.76 | E7: 888.49 | G7: ="the "&G14&" Field must contain "&H14&" " -> the Year Field must contain 2017 | O7: >= | P7: Greater than or equal to: is the thing on the left greater than or equal to the thing on the right?
A8: 2018-12-16 | B8: 2018 | C8: Sunset | D8: 917.72 | E8: 568.99 | G8: AND | O8: < | P8: Less than: is the thing on the left less than the thing on the right?
A9: 2018-05-16 | B9: 2018 | C9: Sunset | D9: 1876.27 | E9: 731.75 | G9: ="the "&D3&" Field must contain a sale number "&H15 -> the Sales Field must contain a sale number >2000 | O9: <= | P9: Less than or equal to: is the thing on the left less than or equal to the thing on the right?
A10: 2016-12-27 | B10: 2016 | C10: Yanaki | D10: 1487.82 | E10: 684.4 | G10: AND
A11: 2017-09-18 | B11: 2017 | C11: Quad | D11: 2017.73 | E11: 807.09 | G11: ="the "&G17&" Field must contain the given Product Name." -> the Product Field must contain the given Product Name.
A12: 2018-06-04 | B12: 2018 | C12: Yanaki | D12: 1459.48 | E12: 569.2
A13: 2018-05-09 | B13: 2018 | C13: Carlota | D13: 1020.18 | E13: 591.7
A14: 2016-07-06 | B14: 2016 | C14: Carlota | D14: 653.87 | E14: 274.63 | G14: =B3 -> Year | H14: 2017
A15: 2017-11-09 | B15: 2017 | C15: Yanaki | D15: 1044.37 | E15: 616.18 | G15: Sales Hurdle | H15: >2000
A16: 2017-09-07 | B16: 2017 | C16: Carlota | D16: 1900.47 | E16: 988.24
A17: 2017-04-13 | B17: 2017 | C17: Carlota | D17: 1129.45 | E17: 463.07 | G17: =C3 -> Product | H17: Count
A18: 2017-06-20 | B18: 2017 | C18: Carlota | D18: 328.7 | E18: 128.19 | G18: Quad | J18: =IF(_xlfn.ISFORMULA(H18),_xlfn.FORMULATEXT(H18),"") -> 
A19: 2017-05-26 | B19: 2017 | C19: Sunset | D19: 58 | E19: 36.54 | G19: Sunset | J19: COUNTIFS counts with three conditions/criteria
A20: 2018-03-03 | B20: 2018 | C20: Sunset | D20: 1646.76 | E20: 1037.46 | G20: Yanaki
A21: 2017-11-10 | B21: 2017 | C21: Carlota | D21: 1865.2 | E21: 895.3 | G21: Carlota
A22: 2017-01-18 | B22: 2017 | C22: Quad | D22: 884.17 | E22: 512.82
A23: 2017-06-12 | B23: 2017 | C23: Quad | D23: 1891.74 | E23: 908.04 | G23: ** This is an example of where a PivotTable would be harder to create
A24: 2017-10-08 | B24: 2017 | C24: Sunset | D24: 561.61 | E24: 219.03 | G24: because our condition uses a comparative operator (we have a hurdle as a condition).
A25: 2017-08-27 | B25: 2017 | C25: Quad | D25: 713.19 | E25: 392.25
A26: 2016-03-16 | B26: 2016 | C26: Sunset | D26: 148.6 | E26: 69.84
A27: 2017-08-16 | B27: 2017 | C27: Yanaki | D27: 2436.08 | E27: 1315.48
A28: 2018-01-29 | B28: 2018 | C28: Sunset | D28: 353.67 | E28: 169.76
A29: 2017-11-07 | B29: 2017 | C29: Sunset | D29: 1993.91 | E29: 996.96
A30: 2018-04-27 | B30: 2018 | C30: Yanaki | D30: 1535.67 | E30: 982.83
A31: 2017-05-03 | B31: 2017 | C31: Yanaki | D31: 1058.98 | E31: 645.98
A32: 2017-10-18 | B32: 2017 | C32: Carlota | D32: 725.21 | E32: 362.61
A33: 2017-11-04 | B33: 2017 | C33: Carlota | D33: 1332.83 | E33: 879.67
A34: 2016-07-05 | B34: 2016 | C34: Quad | D34: 1955.26 | E34: 860.31
A35: 2016-10-03 | B35: 2016 | C35: Carlota | D35: 1003.54 | E35: 662.34
A36: 2017-03-12 | B36: 2017 | C36: Sunset | D36: 368.46 | E36: 184.23
A37: 2017-10-11 | B37: 2017 | C37: Quad | D37: 1473.86 | E37: 795.88
A38: 2017-10-24 | B38: 2017 | C38: Yanaki | D38: 539.23 | E38: 285.79
A39: 2016-01-08 | B39: 2016 | C39: Yanaki | D39: 1974.49 | E39: 908.27
A40: 2017-08-17 | B40: 2017 | C40: Yanaki | D40: 1931.47 | E40: 1081.62
A41: 2016-11-14 | B41: 2016 | C41: Yanaki | D41: 1449.29 | E41: 884.07
A42: 2017-06-18 | B42: 2017 | C42: Carlota | D42: 2307.69 | E42: 1038.46
A43: 2018-04-03 | B43: 2018 | C43: Quad | D43: 1115.13 | E43: 490.66
A44: 2016-01-15 | B44: 2016 | C44: Sunset | D44: 29.88 | E44: 16.14
A45: 2017-02-28 | B45: 2017 | C45: Carlota | D45: 2154.95 | E45: 1077.48
A46: 2016-03-04 | B46: 2016 | C46: Quad | D46: 1234.86 | E46: 815.01
A47: 2017-09-22 | B47: 2017 | C47: Yanaki | D47: 2154.18 | E47: 1206.34
A48: 2017-07-23 | B48: 2017 | C48: Quad | D48: 1744.62 | E48: 872.31
A49: 2018-06-18 | B49: 2018 | C49: Yanaki | D49: 2298.45 | E49: 1126.24
A50: 2016-08-14 | B50: 2016 | C50: Quad | D50: 494.28 | E50: 271.85
A51: 2016-03-09 | B51: 2016 | C51: Sunset | D51: 2253.03 | E51: 1149.05
A52: 2017-03-01 | B52: 2017 | C52: Sunset | D52: 1478.09 | E52: 768.61
A53: 2018-11-02 | B53: 2018 | C53: Carlota | D53: 678.92 | E53: 325.88
A54: 2018-04-11 | B54: 2018 | C54: Sunset | D54: 143.51 | E54: 71.76
A55: 2016-02-25 | B55: 2016 | C55: Carlota | D55: 1868.96 | E55: 747.58
A56: 2017-06-13 | B56: 2017 | C56: Carlota | D56: 1549.63 | E56: 604.36
A57: 2016-11-08 | B57: 2016 | C57: Sunset | D57: 937.24 | E57: 459.25
A58: 2018-05-07 | B58: 2018 | C58: Sunset | D58: 109.84 | E58: 54.92
A59: 2017-02-16 | B59: 2017 | C59: Carlota | D59: 747.68 | E59: 500.95
A60: 2017-05-31 | B60: 2017 | C60: Carlota | D60: 443.35 | E60: 252.71
A61: 2016-01-27 | B61: 2016 | C61: Carlota | D61: 1129.85 | E61: 723.1
A62: 2016-09-19 | B62: 2016 | C62: Yanaki | D62: 2202.75 | E62: 947.18
A63: 2016-02-05 | B63: 2016 | C63: Quad | D63: 29.56 | E63: 11.82
A64: 2016-04-13 | B64: 2016 | C64: Quad | D64: 2088.42 | E64: 1294.82
A65: 2017-03-23 | B65: 2017 | C65: Sunset | D65: 708.14 | E65: 446.13
A66: 2018-12-08 | B66: 2018 | C66: Carlota | D66: 44.86 | E66: 26.47
A67: 2017-09-19 | B67: 2017 | C67: Yanaki | D67: 1665.87 | E67: 866.25
A68: 2018-01-08 | B68: 2018 | C68: Quad | D68: 1657.26 | E68: 977.78
A69: 2017-01-28 | B69: 2017 | C69: Sunset | D69: 1543.94 | E69: 679.33
A70: 2016-07-20 | B70: 2016 | C70: Quad | D70: 1362.96 | E70: 708.74
A71: 2017-06-17 | B71: 2017 | C71: Quad | D71: 308.4 | E71: 141.86
A72: 2017-03-10 | B72: 2017 | C72: Carlota | D72: 2495.48 | E72: 1098.01
A73: 2017-05-10 | B73: 2017 | C73: Yanaki | D73: 402.76 | E73: 189.3
A74: 2018-05-08 | B74: 2018 | C74: Carlota | D74: 1421.93 | E74: 639.87
A75: 2016-01-05 | B75: 2016 | C75: Sunset | D75: 1172.31 | E75: 644.77
A76: 2017-04-09 | B76: 2017 | C76: Sunset | D76: 2070.49 | E76: 1345.82
A77: 2018-12-29 | B77: 2018 | C77: Quad | D77: 1965.34 | E77: 786.14
A78: 2016-06-21 | B78: 2016 | C78: Yanaki | D78: 1833 | E78: 879.84
A79: 2018-04-07 | B79: 2018 | C79: Yanaki | D79: 2151.45 | E79: 1312.38
A80: 2017-05-05 | B80: 2017 | C80: Yanaki | D80: 673.95 | E80: 384.15
A81: 2018-01-17 | B81: 2018 | C81: Quad | D81: 561.58 | E81: 247.1
A82: 2017-08-10 | B82: 2017 | C82: Carlota | D82: 1342.24 | E82: 711.39
A83: 2018-07-05 | B83: 2018 | C83: Sunset | D83: 1754.6 | E83: 789.57
A84: 2018-01-29 | B84: 2018 | C84: Sunset | D84: 214.29 | E84: 109.29
A85: 2017-02-27 | B85: 2017 | C85: Carlota | D85: 1561.54 | E85: 952.54
A86: 2018-03-06 | B86: 2018 | C86: Quad | D86: 1673.37 | E86: 870.15
A87: 2018-11-10 | B87: 2018 | C87: Quad | D87: 773.05 | E87: 440.64
A88: 2018-10-12 | B88: 2018 | C88: Quad | D88: 418.72 | E88: 230.3
A89: 2017-10-25 | B89: 2017 | C89: Yanaki | D89: 1946.44 | E89: 1051.08
A90: 2017-02-25 | B90: 2017 | C90: Carlota | D90: 770.94 | E90: 339.21
A91: 2018-08-20 | B91: 2018 | C91: Sunset | D91: 1222.49 | E91: 770.17
A92: 2018-03-25 | B92: 2018 | C92: Quad | D92: 1395.46 | E92: 851.23
A93: 2017-06-10 | B93: 2017 | C93: Quad | D93: 1520.63 | E93: 851.55
A94: 2016-09-22 | B94: 2016 | C94: Carlota | D94: 1094.5 | E94: 689.54
A95: 2017-03-14 | B95: 2017 | C95: Sunset | D95: 76.96 | E95: 33.86
A96: 2017-10-08 | B96: 2017 | C96: Sunset | D96: 234.72 | E96: 152.57
A97: 2017-02-27 | B97: 2017 | C97: Quad | D97: 2003.25 | E97: 1041.69
A98: 2017-05-24 | B98: 2017 | C98: Sunset | D98: 1688.01 | E98: 1063.45
A99: 2016-12-29 | B99: 2016 | C99: Carlota | D99: 1538.35 | E99: 815.33
A100: 2017-05-01 | B100: 2017 | C100: Yanaki | D100: 147.04 | E100: 97.05
A101: 2017-07-21 | B101: 2017 | C101: Yanaki | D101: 1908.31 | E101: 954.16
A102: 2017-01-10 | B102: 2017 | C102: Sunset | D102: 490.77 | E102: 319
A103: 2017-07-04 | B103: 2017 | C103: Quad | D103: 671.76 | E103: 409.77
A104: 2016-07-05 | B104: 2016 | C104: Quad | D104: 2301.62 | E104: 920.65
A105: 2017-01-11 | B105: 2017 | C105: Carlota | D105: 502.61 | E105: 206.07
A106: 2018-10-08 | B106: 2018 | C106: Quad | D106: 1047.63 | E106: 408.58
A107: 2018-05-07 | B107: 2018 | C107: Yanaki | D107: 1647.46 | E107: 741.36
A108: 2018-02-06 | B108: 2018 | C108: Sunset | D108: 609.32 | E108: 280.29
A109: 2018-02-10 | B109: 2018 | C109: Yanaki | D109: 489.95 | E109: 279.27
A110: 2018-04-10 | B110: 2018 | C110: Carlota | D110: 234.43 | E110: 126.59
A111: 2018-01-19 | B111: 2018 | C111: Carlota | D111: 1988.25 | E111: 1113.42
A112: 2018-01-16 | B112: 2018 | C112: Sunset | D112: 62.18 | E112: 24.25
A113: 2016-02-06 | B113: 2016 | C113: Yanaki | D113: 598.85 | E113: 269.48
A114: 2016-07-16 | B114: 2016 | C114: Carlota | D114: 2177.11 | E114: 936.16
A115: 2017-03-07 | B115: 2017 | C115: Quad | D115: 2417.35 | E115: 1281.2
A116: 2017-03-03 | B116: 2017 | C116: Carlota | D116: 498.52 | E116: 259.23
A117: 2017-12-22 | B117: 2017 | C117: Sunset | D117: 22.8 | E117: 13.91
A118: 2018-06-23 | B118: 2018 | C118: Quad | D118: 536.25 | E118: 294.94
A119: 2016-02-13 | B119: 2016 | C119: Quad | D119: 1871.36 | E119: 1160.24
A120: 2016-09-09 | B120: 2016 | C120: Sunset | D120: 880.15 | E120: 536.89
A121: 2016-05-13 | B121: 2016 | C121: Carlota | D121: 2115.44 | E121: 1184.65
A122: 2016-08-30 | B122: 2016 | C122: Sunset | D122: 2268.16 | E122: 975.31
A123: 2018-11-20 | B123: 2018 | C123: Carlota | D123: 1800.62 | E123: 954.33
A124: 2018-11-06 | B124: 2018 | C124: Quad | D124: 1860.09 | E124: 781.24
A125: 2018-02-23 | B125: 2018 | C125: Yanaki | D125: 667.55 | E125: 267.02
A126: 2016-11-04 | B126: 2016 | C126: Quad | D126: 989.63 | E126: 653.16
A127: 2016-06-07 | B127: 2016 | C127: Yanaki | D127: 1907.49 | E127: 820.22
A128: 2016-04-08 | B128: 2016 | C128: Quad | D128: 693.75 | E128: 291.38
A129: 2017-11-05 | B129: 2017 | C129: Carlota | D129: 699.22 | E129: 391.56
A130: 2017-07-22 | B130: 2017 | C130: Carlota | D130: 1489.21 | E130: 982.88
A131: 2017-01-25 | B131: 2017 | C131: Yanaki | D131: 987.63 | E131: 414.8
A132: 2018-06-21 | B132: 2018 | C132: Quad | D132: 2037.45 | E132: 1161.35
A133: 2016-02-11 | B133: 2016 | C133: Quad | D133: 2345 | E133: 1430.45
A134: 2018-01-19 | B134: 2018 | C134: Quad | D134: 1496.14 | E134: 703.19
A135: 2018-01-21 | B135: 2018 | C135: Carlota | D135: 836.37 | E135: 368
A136: 2018-06-13 | B136: 2018 | C136: Carlota | D136: 1023.91 | E136: 573.39
A137: 2017-01-25 | B137: 2017 | C137: Sunset | D137: 1553.78 | E137: 776.89
A138: 2017-12-19 | B138: 2017 | C138: Yanaki | D138: 946.52 | E138: 388.07
A139: 2016-06-18 | B139: 2016 | C139: Yanaki | D139: 891.64 | E139: 552.82
A140: 2016-03-02 | B140: 2016 | C140: Sunset | D140: 1042.61 | E140: 552.58
A141: 2018-03-30 | B141: 2018 | C141: Yanaki | D141: 692.89 | E141: 291.01
A142: 2016-05-07 | B142: 2016 | C142: Quad | D142: 2421.14 | E142: 1234.78
A143: 2017-10-08 | B143: 2017 | C143: Carlota | D143: 2459.69 | E143: 1008.47
A144: 2016-06-06 | B144: 2016 | C144: Yanaki | D144: 505.37 | E144: 293.11
A145: 2018-03-04 | B145: 2018 | C145: Sunset | D145: 1349.89 | E145: 566.95
A146: 2018-04-17 | B146: 2018 | C146: Yanaki | D146: 2256.65 | E146: 1196.02
A147: 2017-12-02 | B147: 2017 | C147: Quad | D147: 1068.15 | E147: 480.67
A148: 2017-04-07 | B148: 2017 | C148: Sunset | D148: 488.82 | E148: 303.07
A149: 2016-08-07 | B149: 2016 | C149: Quad | D149: 1549.1 | E149: 805.53
A150: 2017-12-24 | B150: 2017 | C150: Carlota | D150: 984.61 | E150: 384
A151: 2017-08-16 | B151: 2017 | C151: Sunset | D151: 2445.18 | E151: 1295.95
A152: 2017-10-05 | B152: 2017 | C152: Quad | D152: 45.18 | E152: 21.69
A153: 2017-02-02 | B153: 2017 | C153: Yanaki | D153: 2162.32 | E153: 1037.91
A154: 2016-09-18 | B154: 2016 | C154: Sunset | D154: 2345.43 | E154: 1336.9
A155: 2016-01-23 | B155: 2016 | C155: Quad | D155: 968.43 | E155: 571.37
A156: 2018-09-11 | B156: 2018 | C156: Yanaki | D156: 573.76 | E156: 355.73
A157: 2017-04-14 | B157: 2017 | C157: Sunset | D157: 2222.89 | E157: 911.38
A158: 2016-07-09 | B158: 2016 | C158: Yanaki | D158: 1452.43 | E158: 813.36
A159: 2018-02-22 | B159: 2018 | C159: Carlota | D159: 454.62 | E159: 222.76
A160: 2018-01-05 | B160: 2018 | C160: Carlota | D160: 1753.68 | E160: 789.16
A161: 2018-07-31 | B161: 2018 | C161: Sunset | D161: 1623.32 | E161: 795.43
A162: 2018-11-26 | B162: 2018 | C162: Quad | D162: 531.32 | E162: 355.98
A163: 2018-01-23 | B163: 2018 | C163: Yanaki | D163: 2144.95 | E163: 1394.22
A164: 2017-05-28 | B164: 2017 | C164: Sunset | D164: 517.14 | E164: 336.14
A165: 2018-01-29 | B165: 2018 | C165: Quad | D165: 852.54 | E165: 562.68
A166: 2017-07-12 | B166: 2017 | C166: Sunset | D166: 438.5 | E166: 223.64
A167: 2017-03-13 | B167: 2017 | C167: Carlota | D167: 1958.55 | E167: 998.86
A168: 2017-01-12 | B168: 2017 | C168: Quad | D168: 245.23 | E168: 122.62
A169: 2016-09-15 | B169: 2016 | C169: Sunset | D169: 315.6 | E169: 201.98
A170: 2016-03-19 | B170: 2016 | C170: Yanaki | D170: 269.58 | E170: 126.7
A171: 2018-10-07 | B171: 2018 | C171: Sunset | D171: 2106.07 | E171: 1263.64
A172: 2017-04-28 | B172: 2017 | C172: Sunset | D172: 562.73 | E172: 236.35
A173: 2018-05-29 | B173: 2018 | C173: Yanaki | D173: 2347.6 | E173: 962.52
A174: 2018-06-10 | B174: 2018 | C174: Quad | D174: 1197.77 | E174: 598.89
A175: 2016-08-30 | B175: 2016 | C175: Yanaki | D175: 1411.59 | E175: 762.26
A176: 2017-07-27 | B176: 2017 | C176: Quad | D176: 2030.49 | E176: 1258.9
A177: 2018-09-27 | B177: 2018 | C177: Yanaki | D177: 1665.95 | E177: 766.34
A178: 2018-12-16 | B178: 2018 | C178: Sunset | D178: 305.46 | E178: 192.44
A179: 2018-12-30 | B179: 2018 | C179: Carlota | D179: 1913.15 | E179: 1033.1
A180: 2017-04-11 | B180: 2017 | C180: Yanaki | D180: 1838.42 | E180: 772.14
A181: 2016-01-31 | B181: 2016 | C181: Quad | D181: 2043.55 | E181: 1226.13
A182: 2016-10-31 | B182: 2016 | C182: Sunset | D182: 1426.9 | E182: 684.91
A183: 2016-03-13 | B183: 2016 | C183: Sunset | D183: 1997.29 | E183: 778.94
A184: 2017-11-07 | B184: 2017 | C184: Quad | D184: 823.75 | E184: 420.11
A185: 2018-06-14 | B185: 2018 | C185: Yanaki | D185: 1927.75 | E185: 1079.54
A186: 2016-06-14 | B186: 2016 | C186: Carlota | D186: 52.38 | E186: 25.14
A187: 2018-10-25 | B187: 2018 | C187: Quad | D187: 865.26 | E187: 449.94
A188: 2018-11-06 | B188: 2018 | C188: Sunset | D188: 1539.72 | E188: 1016.22
A189: 2016-12-09 | B189: 2016 | C189: Yanaki | D189: 698.67 | E189: 461.12
A190: 2016-03-14 | B190: 2016 | C190: Yanaki | D190: 33.12 | E190: 18.88
A191: 2018-11-15 | B191: 2018 | C191: Yanaki | D191: 1017.6 | E191: 590.21
A192: 2017-12-17 | B192: 2017 | C192: Sunset | D192: 1042 | E192: 666.88
A193: 2017-02-08 | B193: 2017 | C193: Sunset | D193: 1520.64 | E193: 669.08
A194: 2018-09-08 | B194: 2018 | C194: Yanaki | D194: 1780.84 | E194: 979.46
A195: 2018-01-02 | B195: 2018 | C195: Yanaki | D195: 1474.72 | E195: 722.61
A196: 2017-05-27 | B196: 2017 | C196: Quad | D196: 953.44 | E196: 457.65
A197: 2016-09-15 | B197: 2016 | C197: Quad | D197: 1769.66 | E197: 867.13
A198: 2017-03-06 | B198: 2017 | C198: Carlota | D198: 1275.35 | E198: 790.72
A199: 2016-09-27 | B199: 2016 | C199: Sunset | D199: 46.74 | E199: 20.57
A200: 2017-12-19 | B200: 2017 | C200: Carlota | D200: 1351.89 | E200: 851.69
A201: 2016-03-30 | B201: 2016 | C201: Yanaki | D201: 674.89 | E201: 364.44
... 466 more rows

Sheet Ex(6an)
A1: ** Each Record is a sale.
A3: Date | B3: Year | C3: Product | D3: Sales | E3: COGS | G3: ="Goal: Count number of "&D3&" "&H15&" for each product in the year "&H14 -> Goal: Count number of Sales >2000 for each product in the year 2017 | O3: Comparative Operators.
A4: 2018-07-15 | B4: 2018 | C4: Quad | D4: 2453.52 | E4: 1128.62 | G4: and have ability to change criteria and have formulas instantly update | O4: = | P4: Equal: are two things equal?
A5: 2016-02-15 | B5: 2016 | C5: Sunset | D5: 2391.92 | E5: 980.69 | O5: <> | P5: Not: are two things not equal? Type less than symbol, then greater than symbol.
A6: 2017-11-15 | B6: 2017 | C6: Carlota | D6: 53.23 | E6: 22.89 | G6: ="The AND Logical Test is: " -> The AND Logical Test is: | O6: > | P6: Greater than: is the thing on the left greater than the thing on the right?
A7: 2018-08-31 | B7: 2018 | C7: Carlota | D7: 1558.76 | E7: 888.49 | G7: ="the "&G14&" Field must contain "&H14&" " -> the Year Field must contain 2017 | O7: >= | P7: Greater than or equal to: is the thing on the left greater than or equal to the thing on the right?
A8: 2018-12-16 | B8: 2018 | C8: Sunset | D8: 917.72 | E8: 568.99 | G8: AND | O8: < | P8: Less than: is the thing on the left less than the thing on the right?
A9: 2018-05-16 | B9: 2018 | C9: Sunset | D9: 1876.27 | E9: 731.75 | G9: ="the "&D3&" Field must contain a sale number "&H15 -> the Sales Field must contain a sale number >2000 | O9: <= | P9: Less than or equal to: is the thing on the left less than or equal to the thing on the right?
A10: 2016-12-27 | B10: 2016 | C10: Yanaki | D10: 1487.82 | E10: 684.4 | G10: AND
A11: 2017-09-18 | B11: 2017 | C11: Quad | D11: 2017.73 | E11: 807.09 | G11: ="the "&G17&" Field must contain the given Product Name." -> the Product Field must contain the given Product Name.
A12: 2018-06-04 | B12: 2018 | C12: Yanaki | D12: 1459.48 | E12: 569.2
A13: 2018-05-09 | B13: 2018 | C13: Carlota | D13: 1020.18 | E13: 591.7
A14: 2016-07-06 | B14: 2016 | C14: Carlota | D14: 653.87 | E14: 274.63 | G14: =B3 -> Year | H14: 2017
A15: 2017-11-09 | B15: 2017 | C15: Yanaki | D15: 1044.37 | E15: 616.18 | G15: Sales Hurdle | H15: >2000
A16: 2017-09-07 | B16: 2017 | C16: Carlota | D16: 1900.47 | E16: 988.24
A17: 2017-04-13 | B17: 2017 | C17: Carlota | D17: 1129.45 | E17: 463.07 | G17: =C3 -> Product | H17: Count
A18: 2017-06-20 | B18: 2017 | C18: Carlota | D18: 328.7 | E18: 128.19 | G18: Quad | H18: =COUNTIFS($D$4:$D$667,$H$15,$B$4:$B$667,$H$14,$C$4:$C$667,G18) -> 11 | J18: =IF(_xlfn.ISFORMULA(H18),_xlfn.FORMULATEXT(H18),"") -> =COUNTIFS($D$4:$D$667,$H$15,$B$4:$B$667,$H$14,$C$4:$C$667,G18)
A19: 2017-05-26 | B19: 2017 | C19: Sunset | D19: 58 | E19: 36.54 | G19: Sunset | H19: =COUNTIFS($D$4:$D$667,$H$15,$B$4:$B$667,$H$14,$C$4:$C$667,G19) -> 12 | J19: COUNTIFS counts with three conditions/criteria
A20: 2018-03-03 | B20: 2018 | C20: Sunset | D20: 1646.76 | E20: 1037.46 | G20: Yanaki | H20: =COUNTIFS($D$4:$D$667,$H$15,$B$4:$B$667,$H$14,$C$4:$C$667,G20) -> 14
A21: 2017-11-10 | B21: 2017 | C21: Carlota | D21: 1865.2 | E21: 895.3 | G21: Carlota | H21: =COUNTIFS($D$4:$D$667,$H$15,$B$4:$B$667,$H$14,$C$4:$C$667,G21) -> 14
A22: 2017-01-18 | B22: 2017 | C22: Quad | D22: 884.17 | E22: 512.82
A23: 2017-06-12 | B23: 2017 | C23: Quad | D23: 1891.74 | E23: 908.04 | G23: ** This is an example of where a PivotTable would be harder to create
A24: 2017-10-08 | B24: 2017 | C24: Sunset | D24: 561.61 | E24: 219.03 | G24: because our condition uses a comparative operator (we have a hurdle as a condition).
A25: 2017-08-27 | B25: 2017 | C25: Quad | D25: 713.19 | E25: 392.25
A26: 2016-03-16 | B26: 2016 | C26: Sunset | D26: 148.6 | E26: 69.84
A27: 2017-08-16 | B27: 2017 | C27: Yanaki | D27: 2436.08 | E27: 1315.48
A28: 2018-01-29 | B28: 2018 | C28: Sunset | D28: 353.67 | E28: 169.76
A29: 2017-11-07 | B29: 2017 | C29: Sunset | D29: 1993.91 | E29: 996.96
A30: 2018-04-27 | B30: 2018 | C30: Yanaki | D30: 1535.67 | E30: 982.83
A31: 2017-05-03 | B31: 2017 | C31: Yanaki | D31: 1058.98 | E31: 645.98
A32: 2017-10-18 | B32: 2017 | C32: Carlota | D32: 725.21 | E32: 362.61
A33: 2017-11-04 | B33: 2017 | C33: Carlota | D33: 1332.83 | E33: 879.67
A34: 2016-07-05 | B34: 2016 | C34: Quad | D34: 1955.26 | E34: 860.31
A35: 2016-10-03 | B35: 2016 | C35: Carlota | D35: 1003.54 | E35: 662.34
A36: 2017-03-12 | B36: 2017 | C36: Sunset | D36: 368.46 | E36: 184.23
A37: 2017-10-11 | B37: 2017 | C37: Quad | D37: 1473.86 | E37: 795.88
A38: 2017-10-24 | B38: 2017 | C38: Yanaki | D38: 539.23 | E38: 285.79
A39: 2016-01-08 | B39: 2016 | C39: Yanaki | D39: 1974.49 | E39: 908.27
A40: 2017-08-17 | B40: 2017 | C40: Yanaki | D40: 1931.47 | E40: 1081.62
A41: 2016-11-14 | B41: 2016 | C41: Yanaki | D41: 1449.29 | E41: 884.07
A42: 2017-06-18 | B42: 2017 | C42: Carlota | D42: 2307.69 | E42: 1038.46
A43: 2018-04-03 | B43: 2018 | C43: Quad | D43: 1115.13 | E43: 490.66
A44: 2016-01-15 | B44: 2016 | C44: Sunset | D44: 29.88 | E44: 16.14
A45: 2017-02-28 | B45: 2017 | C45: Carlota | D45: 2154.95 | E45: 1077.48
A46: 2016-03-04 | B46: 2016 | C46: Quad | D46: 1234.86 | E46: 815.01
A47: 2017-09-22 | B47: 2017 | C47: Yanaki | D47: 2154.18 | E47: 1206.34
A48: 2017-07-23 | B48: 2017 | C48: Quad | D48: 1744.62 | E48: 872.31
A49: 2018-06-18 | B49: 2018 | C49: Yanaki | D49: 2298.45 | E49: 1126.24
A50: 2016-08-14 | B50: 2016 | C50: Quad | D50: 494.28 | E50: 271.85
A51: 2016-03-09 | B51: 2016 | C51: Sunset | D51: 2253.03 | E51: 1149.05
A52: 2017-03-01 | B52: 2017 | C52: Sunset | D52: 1478.09 | E52: 768.61
A53: 2018-11-02 | B53: 2018 | C53: Carlota | D53: 678.92 | E53: 325.88
A54: 2018-04-11 | B54: 2018 | C54: Sunset | D54: 143.51 | E54: 71.76
A55: 2016-02-25 | B55: 2016 | C55: Carlota | D55: 1868.96 | E55: 747.58
A56: 2017-06-13 | B56: 2017 | C56: Carlota | D56: 1549.63 | E56: 604.36
A57: 2016-11-08 | B57: 2016 | C57: Sunset | D57: 937.24 | E57: 459.25
A58: 2018-05-07 | B58: 2018 | C58: Sunset | D58: 109.84 | E58: 54.92
A59: 2017-02-16 | B59: 2017 | C59: Carlota | D59: 747.68 | E59: 500.95
A60: 2017-05-31 | B60: 2017 | C60: Carlota | D60: 443.35 | E60: 252.71
A61: 2016-01-27 | B61: 2016 | C61: Carlota | D61: 1129.85 | E61: 723.1
A62: 2016-09-19 | B62: 2016 | C62: Yanaki | D62: 2202.75 | E62: 947.18
A63: 2016-02-05 | B63: 2016 | C63: Quad | D63: 29.56 | E63: 11.82
A64: 2016-04-13 | B64: 2016 | C64: Quad | D64: 2088.42 | E64: 1294.82
A65: 2017-03-23 | B65: 2017 | C65: Sunset | D65: 708.14 | E65: 446.13
A66: 2018-12-08 | B66: 2018 | C66: Carlota | D66: 44.86 | E66: 26.47
A67: 2017-09-19 | B67: 2017 | C67: Yanaki | D67: 1665.87 | E67: 866.25
A68: 2018-01-08 | B68: 2018 | C68: Quad | D68: 1657.26 | E68: 977.78
A69: 2017-01-28 | B69: 2017 | C69: Sunset | D69: 1543.94 | E69: 679.33
A70: 2016-07-20 | B70: 2016 | C70: Quad | D70: 1362.96 | E70: 708.74
A71: 2017-06-17 | B71: 2017 | C71: Quad | D71: 308.4 | E71: 141.86
A72: 2017-03-10 | B72: 2017 | C72: Carlota | D72: 2495.48 | E72: 1098.01
A73: 2017-05-10 | B73: 2017 | C73: Yanaki | D73: 402.76 | E73: 189.3
A74: 2018-05-08 | B74: 2018 | C74: Carlota | D74: 1421.93 | E74: 639.87
A75: 2016-01-05 | B75: 2016 | C75: Sunset | D75: 1172.31 | E75: 644.77
A76: 2017-04-09 | B76: 2017 | C76: Sunset | D76: 2070.49 | E76: 1345.82
A77: 2018-12-29 | B77: 2018 | C77: Quad | D77: 1965.34 | E77: 786.14
A78: 2016-06-21 | B78: 2016 | C78: Yanaki | D78: 1833 | E78: 879.84
A79: 2018-04-07 | B79: 2018 | C79: Yanaki | D79: 2151.45 | E79: 1312.38
A80: 2017-05-05 | B80: 2017 | C80: Yanaki | D80: 673.95 | E80: 384.15
A81: 2018-01-17 | B81: 2018 | C81: Quad | D81: 561.58 | E81: 247.1
A82: 2017-08-10 | B82: 2017 | C82: Carlota | D82: 1342.24 | E82: 711.39
A83: 2018-07-05 | B83: 2018 | C83: Sunset | D83: 1754.6 | E83: 789.57
A84: 2018-01-29 | B84: 2018 | C84: Sunset | D84: 214.29 | E84: 109.29
A85: 2017-02-27 | B85: 2017 | C85: Carlota | D85: 1561.54 | E85: 952.54
A86: 2018-03-06 | B86: 2018 | C86: Quad | D86: 1673.37 | E86: 870.15
A87: 2018-11-10 | B87: 2018 | C87: Quad | D87: 773.05 | E87: 440.64
A88: 2018-10-12 | B88: 2018 | C88: Quad | D88: 418.72 | E88: 230.3
A89: 2017-10-25 | B89: 2017 | C89: Yanaki | D89: 1946.44 | E89: 1051.08
A90: 2017-02-25 | B90: 2017 | C90: Carlota | D90: 770.94 | E90: 339.21
A91: 2018-08-20 | B91: 2018 | C91: Sunset | D91: 1222.49 | E91: 770.17
A92: 2018-03-25 | B92: 2018 | C92: Quad | D92: 1395.46 | E92: 851.23
A93: 2017-06-10 | B93: 2017 | C93: Quad | D93: 1520.63 | E93: 851.55
A94: 2016-09-22 | B94: 2016 | C94: Carlota | D94: 1094.5 | E94: 689.54
A95: 2017-03-14 | B95: 2017 | C95: Sunset | D95: 76.96 | E95: 33.86
A96: 2017-10-08 | B96: 2017 | C96: Sunset | D96: 234.72 | E96: 152.57
A97: 2017-02-27 | B97: 2017 | C97: Quad | D97: 2003.25 | E97: 1041.69
A98: 2017-05-24 | B98: 2017 | C98: Sunset | D98: 1688.01 | E98: 1063.45
A99: 2016-12-29 | B99: 2016 | C99: Carlota | D99: 1538.35 | E99: 815.33
A100: 2017-05-01 | B100: 2017 | C100: Yanaki | D100: 147.04 | E100: 97.05
A101: 2017-07-21 | B101: 2017 | C101: Yanaki | D101: 1908.31 | E101: 954.16
A102: 2017-01-10 | B102: 2017 | C102: Sunset | D102: 490.77 | E102: 319
A103: 2017-07-04 | B103: 2017 | C103: Quad | D103: 671.76 | E103: 409.77
A104: 2016-07-05 | B104: 2016 | C104: Quad | D104: 2301.62 | E104: 920.65
A105: 2017-01-11 | B105: 2017 | C105: Carlota | D105: 502.61 | E105: 206.07
A106: 2018-10-08 | B106: 2018 | C106: Quad | D106: 1047.63 | E106: 408.58
A107: 2018-05-07 | B107: 2018 | C107: Yanaki | D107: 1647.46 | E107: 741.36
A108: 2018-02-06 | B108: 2018 | C108: Sunset | D108: 609.32 | E108: 280.29
A109: 2018-02-10 | B109: 2018 | C109: Yanaki | D109: 489.95 | E109: 279.27
A110: 2018-04-10 | B110: 2018 | C110: Carlota | D110: 234.43 | E110: 126.59
A111: 2018-01-19 | B111: 2018 | C111: Carlota | D111: 1988.25 | E111: 1113.42
A112: 2018-01-16 | B112: 2018 | C112: Sunset | D112: 62.18 | E112: 24.25
A113: 2016-02-06 | B113: 2016 | C113: Yanaki | D113: 598.85 | E113: 269.48
A114: 2016-07-16 | B114: 2016 | C114: Carlota | D114: 2177.11 | E114: 936.16
A115: 2017-03-07 | B115: 2017 | C115: Quad | D115: 2417.35 | E115: 1281.2
A116: 2017-03-03 | B116: 2017 | C116: Carlota | D116: 498.52 | E116: 259.23
A117: 2017-12-22 | B117: 2017 | C117: Sunset | D117: 22.8 | E117: 13.91
A118: 2018-06-23 | B118: 2018 | C118: Quad | D118: 536.25 | E118: 294.94
A119: 2016-02-13 | B119: 2016 | C119: Quad | D119: 1871.36 | E119: 1160.24
A120: 2016-09-09 | B120: 2016 | C120: Sunset | D120: 880.15 | E120: 536.89
A121: 2016-05-13 | B121: 2016 | C121: Carlota | D121: 2115.44 | E121: 1184.65
A122: 2016-08-30 | B122: 2016 | C122: Sunset | D122: 2268.16 | E122: 975.31
A123: 2018-11-20 | B123: 2018 | C123: Carlota | D123: 1800.62 | E123: 954.33
A124: 2018-11-06 | B124: 2018 | C124: Quad | D124: 1860.09 | E124: 781.24
A125: 2018-02-23 | B125: 2018 | C125: Yanaki | D125: 667.55 | E125: 267.02
A126: 2016-11-04 | B126: 2016 | C126: Quad | D126: 989.63 | E126: 653.16
A127: 2016-06-07 | B127: 2016 | C127: Yanaki | D127: 1907.49 | E127: 820.22
A128: 2016-04-08 | B128: 2016 | C128: Quad | D128: 693.75 | E128: 291.38
A129: 2017-11-05 | B129: 2017 | C129: Carlota | D129: 699.22 | E129: 391.56
A130: 2017-07-22 | B130: 2017 | C130: Carlota | D130: 1489.21 | E130: 982.88
A131: 2017-01-25 | B131: 2017 | C131: Yanaki | D131: 987.63 | E131: 414.8
A132: 2018-06-21 | B132: 2018 | C132: Quad | D132: 2037.45 | E132: 1161.35
A133: 2016-02-11 | B133: 2016 | C133: Quad | D133: 2345 | E133: 1430.45
A134: 2018-01-19 | B134: 2018 | C134: Quad | D134: 1496.14 | E134: 703.19
A135: 2018-01-21 | B135: 2018 | C135: Carlota | D135: 836.37 | E135: 368
A136: 2018-06-13 | B136: 2018 | C136: Carlota | D136: 1023.91 | E136: 573.39
A137: 2017-01-25 | B137: 2017 | C137: Sunset | D137: 1553.78 | E137: 776.89
A138: 2017-12-19 | B138: 2017 | C138: Yanaki | D138: 946.52 | E138: 388.07
A139: 2016-06-18 | B139: 2016 | C139: Yanaki | D139: 891.64 | E139: 552.82
A140: 2016-03-02 | B140: 2016 | C140: Sunset | D140: 1042.61 | E140: 552.58
A141: 2018-03-30 | B141: 2018 | C141: Yanaki | D141: 692.89 | E141: 291.01
A142: 2016-05-07 | B142: 2016 | C142: Quad | D142: 2421.14 | E142: 1234.78
A143: 2017-10-08 | B143: 2017 | C143: Carlota | D143: 2459.69 | E143: 1008.47
A144: 2016-06-06 | B144: 2016 | C144: Yanaki | D144: 505.37 | E144: 293.11
A145: 2018-03-04 | B145: 2018 | C145: Sunset | D145: 1349.89 | E145: 566.95
A146: 2018-04-17 | B146: 2018 | C146: Yanaki | D146: 2256.65 | E146: 1196.02
A147: 2017-12-02 | B147: 2017 | C147: Quad | D147: 1068.15 | E147: 480.67
A148: 2017-04-07 | B148: 2017 | C148: Sunset | D148: 488.82 | E148: 303.07
A149: 2016-08-07 | B149: 2016 | C149: Quad | D149: 1549.1 | E149: 805.53
A150: 2017-12-24 | B150: 2017 | C150: Carlota | D150: 984.61 | E150: 384
A151: 2017-08-16 | B151: 2017 | C151: Sunset | D151: 2445.18 | E151: 1295.95
A152: 2017-10-05 | B152: 2017 | C152: Quad | D152: 45.18 | E152: 21.69
A153: 2017-02-02 | B153: 2017 | C153: Yanaki | D153: 2162.32 | E153: 1037.91
A154: 2016-09-18 | B154: 2016 | C154: Sunset | D154: 2345.43 | E154: 1336.9
A155: 2016-01-23 | B155: 2016 | C155: Quad | D155: 968.43 | E155: 571.37
A156: 2018-09-11 | B156: 2018 | C156: Yanaki | D156: 573.76 | E156: 355.73
A157: 2017-04-14 | B157: 2017 | C157: Sunset | D157: 2222.89 | E157: 911.38
A158: 2016-07-09 | B158: 2016 | C158: Yanaki | D158: 1452.43 | E158: 813.36
A159: 2018-02-22 | B159: 2018 | C159: Carlota | D159: 454.62 | E159: 222.76
A160: 2018-01-05 | B160: 2018 | C160: Carlota | D160: 1753.68 | E160: 789.16
A161: 2018-07-31 | B161: 2018 | C161: Sunset | D161: 1623.32 | E161: 795.43
A162: 2018-11-26 | B162: 2018 | C162: Quad | D162: 531.32 | E162: 355.98
A163: 2018-01-23 | B163: 2018 | C163: Yanaki | D163: 2144.95 | E163: 1394.22
A164: 2017-05-28 | B164: 2017 | C164: Sunset | D164: 517.14 | E164: 336.14
A165: 2018-01-29 | B165: 2018 | C165: Quad | D165: 852.54 | E165: 562.68
A166: 2017-07-12 | B166: 2017 | C166: Sunset | D166: 438.5 | E166: 223.64
A167: 2017-03-13 | B167: 2017 | C167: Carlota | D167: 1958.55 | E167: 998.86
A168: 2017-01-12 | B168: 2017 | C168: Quad | D168: 245.23 | E168: 122.62
A169: 2016-09-15 | B169: 2016 | C169: Sunset | D169: 315.6 | E169: 201.98
A170: 2016-03-19 | B170: 2016 | C170: Yanaki | D170: 269.58 | E170: 126.7
A171: 2018-10-07 | B171: 2018 | C171: Sunset | D171: 2106.07 | E171: 1263.64
A172: 2017-04-28 | B172: 2017 | C172: Sunset | D172: 562.73 | E172: 236.35
A173: 2018-05-29 | B173: 2018 | C173: Yanaki | D173: 2347.6 | E173: 962.52
A174: 2018-06-10 | B174: 2018 | C174: Quad | D174: 1197.77 | E174: 598.89
A175: 2016-08-30 | B175: 2016 | C175: Yanaki | D175: 1411.59 | E175: 762.26
A176: 2017-07-27 | B176: 2017 | C176: Quad | D176: 2030.49 | E176: 1258.9
A177: 2018-09-27 | B177: 2018 | C177: Yanaki | D177: 1665.95 | E177: 766.34
A178: 2018-12-16 | B178: 2018 | C178: Sunset | D178: 305.46 | E178: 192.44
A179: 2018-12-30 | B179: 2018 | C179: Carlota | D179: 1913.15 | E179: 1033.1
A180: 2017-04-11 | B180: 2017 | C180: Yanaki | D180: 1838.42 | E180: 772.14
A181: 2016-01-31 | B181: 2016 | C181: Quad | D181: 2043.55 | E181: 1226.13
A182: 2016-10-31 | B182: 2016 | C182: Sunset | D182: 1426.9 | E182: 684.91
A183: 2016-03-13 | B183: 2016 | C183: Sunset | D183: 1997.29 | E183: 778.94
A184: 2017-11-07 | B184: 2017 | C184: Quad | D184: 823.75 | E184: 420.11
A185: 2018-06-14 | B185: 2018 | C185: Yanaki | D185: 1927.75 | E185: 1079.54
A186: 2016-06-14 | B186: 2016 | C186: Carlota | D186: 52.38 | E186: 25.14
A187: 2018-10-25 | B187: 2018 | C187: Quad | D187: 865.26 | E187: 449.94
A188: 2018-11-06 | B188: 2018 | C188: Sunset | D188: 1539.72 | E188: 1016.22
A189: 2016-12-09 | B189: 2016 | C189: Yanaki | D189: 698.67 | E189: 461.12
A190: 2016-03-14 | B190: 2016 | C190: Yanaki | D190: 33.12 | E190: 18.88
A191: 2018-11-15 | B191: 2018 | C191: Yanaki | D191: 1017.6 | E191: 590.21
A192: 2017-12-17 | B192: 2017 | C192: Sunset | D192: 1042 | E192: 666.88
A193: 2017-02-08 | B193: 2017 | C193: Sunset | D193: 1520.64 | E193: 669.08
A194: 2018-09-08 | B194: 2018 | C194: Yanaki | D194: 1780.84 | E194: 979.46
A195: 2018-01-02 | B195: 2018 | C195: Yanaki | D195: 1474.72 | E195: 722.61
A196: 2017-05-27 | B196: 2017 | C196: Quad | D196: 953.44 | E196: 457.65
A197: 2016-09-15 | B197: 2016 | C197: Quad | D197: 1769.66 | E197: 867.13
A198: 2017-03-06 | B198: 2017 | C198: Carlota | D198: 1275.35 | E198: 790.72
A199: 2016-09-27 | B199: 2016 | C199: Sunset | D199: 46.74 | E199: 20.57
A200: 2017-12-19 | B200: 2017 | C200: Carlota | D200: 1351.89 | E200: 851.69
A201: 2016-03-30 | B201: 2016 | C201: Yanaki | D201: 674.89 | E201: 364.44
... 466 more rows

Sheet Ex(7)
A1: Date | B1: Product | C1: Sales | D1: COGS | F1: Goal: Add Sales for each Product automatically with the SUMIFS function and the Excel Table feature. | N1: Comparative Operators.
A2: 2017-11-13 | B2: Quad | C2: 2453.52 | D2: 1128.62 | N2: = | O2: Equal: are two things equal?
A3: 2017-11-13 | B3: Sunset | C3: 2391.92 | D3: 980.69 | F3: =B1 -> Product | G3: Total Sales | N3: <> | O3: Not: are two things not equal? Type less than symbol, then greater than symbol.
A4: 2017-11-13 | B4: Carlota | C4: 53.23 | D4: 22.89 | F4: Quad | I4: =IF(_xlfn.ISFORMULA(G4),_xlfn.FORMULATEXT(G4),"") ->  | N4: > | O4: Greater than: is the thing on the left greater than the thing on the right?
A5: 2017-11-13 | B5: Yanaki | C5: 1558.76 | D5: 888.49 | F5: Sunset | I5: SUMIFS adds numbers with a single condition | N5: >= | O5: Greater than or equal to: is the thing on the left greater than or equal to the thing on the right?
A6: =A2+1 -> 2017-11-14 | B6: Quad | C6: 917.72 | D6: 568.99 | F6: Yanaki | N6: < | O6: Less than: is the thing on the left less than the thing on the right?
A7: 2017-11-14 | B7: Sunset | C7: 1876.27 | D7: 731.75 | F7: Carlota | N7: <= | O7: Less than or equal to: is the thing on the left less than or equal to the thing on the right?
A8: 2017-11-14 | B8: Carlota | C8: 1487.82 | D8: 684.4
A9: 2017-11-14 | B9: Yanaki | C9: 2017.73 | D9: 807.09 | F9: ** This is an example of where formulas and Excel Table feature make updating report automatic!!
A10: 2017-11-15 | B10: Quad | C10: 1459.48 | D10: 569.2
A11: 2017-11-15 | B11: Sunset | C11: 1020.18 | D11: 591.7
A12: 2017-11-15 | B12: Carlota | C12: 653.87 | D12: 274.63
A13: 2017-11-15 | B13: Yanaki | C13: 1044.37 | D13: 616.18
I17: New Records:
I19: 2017-11-16 | J19: Quad | K19: 2156.35 | L19: 1127.1
I20: 2017-11-16 | J20: Sunset | K20: 687.24 | L20: 349.87
I21: 2017-11-16 | J21: Carlota | K21: 500.12 | L21: 241.45
I22: 2017-11-16 | J22: Yanaki | K22: 658.98 | L22: 325.15

Sheet Ex(7an)
A1: Date | B1: Product | C1: Sales | D1: COGS | F1: Goal: Add Sales for each Product automatically with the SUMIFS function and the Excel Table feature. | N1: Comparative Operators.
A2: 2017-11-13 | B2: Quad | C2: 2453.52 | D2: 1128.62 | N2: = | O2: Equal: are two things equal?
A3: 2017-11-13 | B3: Sunset | C3: 2391.92 | D3: 980.69 | F3: =B1 -> Product | G3: Total Sales | N3: <> | O3: Not: are two things not equal? Type less than symbol, then greater than symbol.
A4: 2017-11-13 | B4: Carlota | C4: 53.23 | D4: 22.89 | F4: Quad | G4: =SUMIFS(MySales5[Sales],MySales5[Product],F4) -> 6987.07 | I4: =IF(_xlfn.ISFORMULA(G4),_xlfn.FORMULATEXT(G4),"") -> =SUMIFS(MySales5[Sales],MySales5[Product],F4) | N4: > | O4: Greater than: is the thing on the left greater than the thing on the right?
A5: 2017-11-13 | B5: Yanaki | C5: 1558.76 | D5: 888.49 | F5: Sunset | G5: =SUMIFS(MySales5[Sales],MySales5[Product],F5) -> 5975.61 | I5: SUMIFS adds numbers with a single condition | N5: >= | O5: Greater than or equal to: is the thing on the left greater than or equal to the thing on the right?
A6: =A2+1 -> 2017-11-14 | B6: Quad | C6: 917.72 | D6: 568.99 | F6: Yanaki | G6: =SUMIFS(MySales5[Sales],MySales5[Product],F6) -> 5279.84 | N6: < | O6: Less than: is the thing on the left less than the thing on the right?
A7: 2017-11-14 | B7: Sunset | C7: 1876.27 | D7: 731.75 | F7: Carlota | G7: =SUMIFS(MySales5[Sales],MySales5[Product],F7) -> 2695.04 | N7: <= | O7: Less than or equal to: is the thing on the left less than or equal to the thing on the right?
A8: 2017-11-14 | B8: Carlota | C8: 1487.82 | D8: 684.4
A9: 2017-11-14 | B9: Yanaki | C9: 2017.73 | D9: 807.09 | F9: ** This is an example of where formulas and Excel Table feature make updating report automatic!!
A10: 2017-11-15 | B10: Quad | C10: 1459.48 | D10: 569.2
A11: 2017-11-15 | B11: Sunset | C11: 1020.18 | D11: 591.7
A12: 2017-11-15 | B12: Carlota | C12: 653.87 | D12: 274.63
A13: 2017-11-15 | B13: Yanaki | C13: 1044.37 | D13: 616.18
A14: 2017-11-16 | B14: Quad | C14: 2156.35 | D14: 1127.1
A15: 2017-11-16 | B15: Sunset | C15: 687.24 | D15: 349.87
A16: 2017-11-16 | B16: Carlota | C16: 500.12 | D16: 241.45
A17: 2017-11-16 | B17: Yanaki | C17: 658.98 | D17: 325.15

Sheet Ex(8)
A1: Post | B1: Time to Assemble Product at Post (Seconds) | D1: ="Goal: Count how many times a Post fell below required "&E5&" second assembly time." -> Goal: Count how many times a Post fell below required <10 second assembly time. | L1: Assembly Line With 12 Posts: | AM1: Post | AN1: Time to Assemble Product at Post (Seconds)
A2: 1 | B2: 9 | AM2: 1 | AN2: =IF(AM2<3,RANDBETWEEN(78,105)/10,IF(OR(AM2={7,11}),RANDBETWEEN(90,115)/10,ROUND(CHOOSE(RANDBETWEEN(1,3),RANDBETWEEN(80,110),RANDBETWEEN(75,95),ABS(_xlfn.NORM.INV(RAND(),85,15/3)))/10,1))) -> 9.7
A3: 2 | B3: 9.2 | D3: ="AND Logical Test: Post has to equal given post AND Seconds "&E5 -> AND Logical Test: Post has to equal given post AND Seconds <10
A4: 3 | B4: 8.3
A5: 4 | B5: 8.3 | D5: Hurdle in Seconds: | E5: <10
A6: 5 | B6: 8.8
A7: 6 | B7: 10 | D7: Post | E7: Count
A8: 7 | B8: 10.7 | D8: 1 | G8: =IF(_xlfn.ISFORMULA(E8),_xlfn.FORMULATEXT(E8),"") -> 
A9: 8 | B9: 8 | D9: 2 | G9: COUNTIFS counts with two conditions/criteria
A10: 9 | B10: 9.1 | D10: 3
A11: 10 | B11: 10.7 | D11: 4
A12: 11 | B12: 9.9 | D12: 5
A13: 12 | B13: 8.5 | D13: 6
A14: 1 | B14: 10 | D14: 7
A15: 2 | B15: 8.6 | D15: 8
A16: 3 | B16: 9.1 | D16: 9
A17: 4 | B17: 8.3 | D17: 10
A18: 5 | B18: 8.1 | D18: 11
A19: 6 | B19: 10.4 | D19: 12
A20: 7 | B20: 9.1
A21: 8 | B21: 8.4 | D21: ** This is an example of where a PivotTable would be harder to create
A22: 9 | B22: 8.3 | D22: because our condition uses a comparative operator (we have a hurdle as a condition).
A23: 10 | B23: 11
A24: 11 | B24: 9.7
A25: 12 | B25: 9.5
A26: 1 | B26: 8.3
A27: 2 | B27: 9.1
A28: 3 | B28: 8.5
A29: 4 | B29: 8
A30: 5 | B30: 8.2
A31: 6 | B31: 8.9
A32: 7 | B32: 11.5
A33: 8 | B33: 8.3
A34: 9 | B34: 8.6
A35: 10 | B35: 9.1
A36: 11 | B36: 9.2
A37: 12 | B37: 10.3
A38: 1 | B38: 10.5
A39: 2 | B39: 8
A40: 3 | B40: 8.2
A41: 4 | B41: 8.4
A42: 5 | B42: 9.1
A43: 6 | B43: 10.7
A44: 7 | B44: 11.5
A45: 8 | B45: 9.1
A46: 9 | B46: 8.8
A47: 10 | B47: 8.3
A48: 11 | B48: 10.3
A49: 12 | B49: 10.7
A50: 1 | B50: 8.1
A51: 2 | B51: 10.1
A52: 3 | B52: 9.2
A53: 4 | B53: 7.9
A54: 5 | B54: 8
A55: 6 | B55: 9.1
A56: 7 | B56: 9.7
A57: 8 | B57: 8.1
A58: 9 | B58: 7.5
A59: 10 | B59: 8.4
A60: 11 | B60: 9.5
A61: 12 | B61: 8.3
A62: 1 | B62: 10.4
A63: 2 | B63: 8.4
A64: 3 | B64: 8.9
A65: 4 | B65: 9
A66: 5 | B66: 8.2
A67: 6 | B67: 9.1
A68: 7 | B68: 9.1
A69: 8 | B69: 8.3
A70: 9 | B70: 9.2
A71: 10 | B71: 9.5
A72: 11 | B72: 10.2
A73: 12 | B73: 9
A74: 1 | B74: 8.6
A75: 2 | B75: 10.2
A76: 3 | B76: 7.9
A77: 4 | B77: 8.6
A78: 5 | B78: 9.4
A79: 6 | B79: 8.3
A80: 7 | B80: 10.5
A81: 8 | B81: 8.5
A82: 9 | B82: 10.5
A83: 10 | B83: 10.7
A84: 11 | B84: 11.2
A85: 12 | B85: 9.7
A86: 1 | B86: 9.7
A87: 2 | B87: 8.7
A88: 3 | B88: 8.4
A89: 4 | B89: 9
A90: 5 | B90: 8.8
A91: 6 | B91: 7.8
A92: 7 | B92: 9
A93: 8 | B93: 8
A94: 9 | B94: 7.6
A95: 10 | B95: 9.1
A96: 11 | B96: 9.4
A97: 12 | B97: 8.7
A98: 1 | B98: 10.1
A99: 2 | B99: 8.2
A100: 3 | B100: 9.4
A101: 4 | B101: 8.3
A102: 5 | B102: 7.7
A103: 6 | B103: 9
A104: 7 | B104: 10.6
A105: 8 | B105: 7.8
A106: 9 | B106: 8
A107: 10 | B107: 8.8
A108: 11 | B108: 11.5
A109: 12 | B109: 7.9
A110: 1 | B110: 9.9
A111: 2 | B111: 9.3
A112: 3 | B112: 9.5
A113: 4 | B113: 9.5
A114: 5 | B114: 8.7
A115: 6 | B115: 8.3
A116: 7 | B116: 11
A117: 8 | B117: 10.4
A118: 9 | B118: 8
A119: 10 | B119: 7.9
A120: 11 | B120: 10.7
A121: 12 | B121: 10.3
A122: 1 | B122: 10.4
A123: 2 | B123: 9.7
A124: 3 | B124: 8.5
A125: 4 | B125: 9.3
A126: 5 | B126: 8.3
A127: 6 | B127: 9.5
A128: 7 | B128: 11.3
A129: 8 | B129: 8.4
A130: 9 | B130: 7.6
A131: 10 | B131: 8.2
A132: 11 | B132: 11.4
A133: 12 | B133: 10.6
A134: 1 | B134: 8.4
A135: 2 | B135: 10
A136: 3 | B136: 8.9
A137: 4 | B137: 8.2
A138: 5 | B138: 7.3
A139: 6 | B139: 7.9
A140: 7 | B140: 9.5
A141: 8 | B141: 9
A142: 9 | B142: 7.9
A143: 10 | B143: 8.5
A144: 11 | B144: 10.3
A145: 12 | B145: 8.6
A146: 1 | B146: 10
A147: 2 | B147: 9.7
A148: 3 | B148: 7.5
A149: 4 | B149: 8.7
A150: 5 | B150: 8.8
A151: 6 | B151: 10.3
A152: 7 | B152: 9.5
A153: 8 | B153: 7.7
A154: 9 | B154: 7.8
A155: 10 | B155: 8.6
A156: 11 | B156: 10.7
A157: 12 | B157: 9.8
A158: 1 | B158: 8.6
A159: 2 | B159: 8.1
A160: 3 | B160: 8.1
A161: 4 | B161: 9.2
A162: 5 | B162: 8.8
A163: 6 | B163: 8
A164: 7 | B164: 11.5
A165: 8 | B165: 8.8
A166: 9 | B166: 8.6
A167: 10 | B167: 9.6
A168: 11 | B168: 11.3
A169: 12 | B169: 10.5
A170: 1 | B170: 10.3
A171: 2 | B171: 8.2
A172: 3 | B172: 7.6
A173: 4 | B173: 11
A174: 5 | B174: 8.5
A175: 6 | B175: 7.6
A176: 7 | B176: 9.9
A177: 8 | B177: 8.4
A178: 9 | B178: 8.4
A179: 10 | B179: 8.2
A180: 11 | B180: 9.8
A181: 12 | B181: 10.3
A182: 1 | B182: 8.1
A183: 2 | B183: 9.9
A184: 3 | B184: 10.9
A185: 4 | B185: 8.5
A186: 5 | B186: 10.2
A187: 6 | B187: 8.4
A188: 7 | B188: 11.2
A189: 8 | B189: 8.1
A190: 9 | B190: 7.7
A191: 10 | B191: 9.2
A192: 11 | B192: 10.2
A193: 12 | B193: 8.6
A194: 1 | B194: 8.4
A195: 2 | B195: 8.8
A196: 3 | B196: 7.5
A197: 4 | B197: 9.2
A198: 5 | B198: 7.6
A199: 6 | B199: 10.1
A200: 7 | B200: 10.5
... 389 more rows

Sheet Ex(8an)
A1: Post | B1: Time to Assemble Product at Post (Seconds) | D1: ="Goal: Count how many times a Post fell below required "&E5&" second assembly time." -> Goal: Count how many times a Post fell below required <10 second assembly time. | L1: Assembly Line With 12 Posts: | AM1: Post | AN1: Time to Assemble Product at Post (Seconds)
A2: 1 | B2: 9 | AM2: 1 | AN2: =IF(AM2<3,RANDBETWEEN(78,105)/10,IF(OR(AM2={7,11}),RANDBETWEEN(90,115)/10,ROUND(CHOOSE(RANDBETWEEN(1,3),RANDBETWEEN(80,110),RANDBETWEEN(75,95),ABS(_xlfn.NORM.INV(RAND(),85,15/3)))/10,1))) -> 7.9
A3: 2 | B3: 9.2 | D3: ="AND Logical Test: Post has to equal given post AND Seconds "&E5 -> AND Logical Test: Post has to equal given post AND Seconds <10
A4: 3 | B4: 8.3
A5: 4 | B5: 8.3 | D5: Hurdle in Seconds: | E5: <10
A6: 5 | B6: 8.8
A7: 6 | B7: 10 | D7: Post | E7: Count
A8: 7 | B8: 10.7 | D8: 1 | E8: =COUNTIFS($A$2:$A$589,D8,$B$2:$B$589,$E$5) -> 38 | G8: =IF(_xlfn.ISFORMULA(E8),_xlfn.FORMULATEXT(E8),"") -> =COUNTIFS($A$2:$A$589,D8,$B$2:$B$589,$E$5)
A9: 8 | B9: 8 | D9: 2 | E9: 41 | G9: COUNTIFS counts with two conditions/criteria
A10: 9 | B10: 9.1 | D10: 3 | E10: 45
A11: 10 | B11: 10.7 | D11: 4 | E11: 40
A12: 11 | B12: 9.9 | D12: 5 | E12: 45
A13: 12 | B13: 8.5 | D13: 6 | E13: 42
A14: 1 | B14: 10 | D14: 7 | E14: 17
A15: 2 | B15: 8.6 | D15: 8 | E15: 48
A16: 3 | B16: 9.1 | D16: 9 | E16: 45
A17: 4 | B17: 8.3 | D17: 10 | E17: 42
A18: 5 | B18: 8.1 | D18: 11 | E18: 19
A19: 6 | B19: 10.4 | D19: 12 | E19: 39
A20: 7 | B20: 9.1
A21: 8 | B21: 8.4 | D21: ** This is an example of where a PivotTable would be harder to create
A22: 9 | B22: 8.3 | D22: because our condition uses a comparative operator (we have a hurdle as a condition).
A23: 10 | B23: 11
A24: 11 | B24: 9.7
A25: 12 | B25: 9.5
A26: 1 | B26: 8.3
A27: 2 | B27: 9.1
A28: 3 | B28: 8.5
A29: 4 | B29: 8
A30: 5 | B30: 8.2
A31: 6 | B31: 8.9
A32: 7 | B32: 11.5
A33: 8 | B33: 8.3
A34: 9 | B34: 8.6
A35: 10 | B35: 9.1
A36: 11 | B36: 9.2
A37: 12 | B37: 10.3
A38: 1 | B38: 10.5
A39: 2 | B39: 8
A40: 3 | B40: 8.2
A41: 4 | B41: 8.4
A42: 5 | B42: 9.1
A43: 6 | B43: 10.7
A44: 7 | B44: 11.5
A45: 8 | B45: 9.1
A46: 9 | B46: 8.8
A47: 10 | B47: 8.3
A48: 11 | B48: 10.3
A49: 12 | B49: 10.7
A50: 1 | B50: 8.1
A51: 2 | B51: 10.1
A52: 3 | B52: 9.2
A53: 4 | B53: 7.9
A54: 5 | B54: 8
A55: 6 | B55: 9.1
A56: 7 | B56: 9.7
A57: 8 | B57: 8.1
A58: 9 | B58: 7.5
A59: 10 | B59: 8.4
A60: 11 | B60: 9.5
A61: 12 | B61: 8.3
A62: 1 | B62: 10.4
A63: 2 | B63: 8.4
A64: 3 | B64: 8.9
A65: 4 | B65: 9
A66: 5 | B66: 8.2
A67: 6 | B67: 9.1
A68: 7 | B68: 9.1
A69: 8 | B69: 8.3
A70: 9 | B70: 9.2
A71: 10 | B71: 9.5
A72: 11 | B72: 10.2
A73: 12 | B73: 9
A74: 1 | B74: 8.6
A75: 2 | B75: 10.2
A76: 3 | B76: 7.9
A77: 4 | B77: 8.6
A78: 5 | B78: 9.4
A79: 6 | B79: 8.3
A80: 7 | B80: 10.5
A81: 8 | B81: 8.5
A82: 9 | B82: 10.5
A83: 10 | B83: 10.7
A84: 11 | B84: 11.2
A85: 12 | B85: 9.7
A86: 1 | B86: 9.7
A87: 2 | B87: 8.7
A88: 3 | B88: 8.4
A89: 4 | B89: 9
A90: 5 | B90: 8.8
A91: 6 | B91: 7.8
A92: 7 | B92: 9
A93: 8 | B93: 8
A94: 9 | B94: 7.6
A95: 10 | B95: 9.1
A96: 11 | B96: 9.4
A97: 12 | B97: 8.7
A98: 1 | B98: 10.1
A99: 2 | B99: 8.2
A100: 3 | B100: 9.4
A101: 4 | B101: 8.3
A102: 5 | B102: 7.7
A103: 6 | B103: 9
A104: 7 | B104: 10.6
A105: 8 | B105: 7.8
A106: 9 | B106: 8
A107: 10 | B107: 8.8
A108: 11 | B108: 11.5
A109: 12 | B109: 7.9
A110: 1 | B110: 9.9
A111: 2 | B111: 9.3
A112: 3 | B112: 9.5
A113: 4 | B113: 9.5
A114: 5 | B114: 8.7
A115: 6 | B115: 8.3
A116: 7 | B116: 11
A117: 8 | B117: 10.4
A118: 9 | B118: 8
A119: 10 | B119: 7.9
A120: 11 | B120: 10.7
A121: 12 | B121: 10.3
A122: 1 | B122: 10.4
A123: 2 | B123: 9.7
A124: 3 | B124: 8.5
A125: 4 | B125: 9.3
A126: 5 | B126: 8.3
A127: 6 | B127: 9.5
A128: 7 | B128: 11.3
A129: 8 | B129: 8.4
A130: 9 | B130: 7.6
A131: 10 | B131: 8.2
A132: 11 | B132: 11.4
A133: 12 | B133: 10.6
A134: 1 | B134: 8.4
A135: 2 | B135: 10
A136: 3 | B136: 8.9
A137: 4 | B137: 8.2
A138: 5 | B138: 7.3
A139: 6 | B139: 7.9
A140: 7 | B140: 9.5
A141: 8 | B141: 9
A142: 9 | B142: 7.9
A143: 10 | B143: 8.5
A144: 11 | B144: 10.3
A145: 12 | B145: 8.6
A146: 1 | B146: 10
A147: 2 | B147: 9.7
A148: 3 | B148: 7.5
A149: 4 | B149: 8.7
A150: 5 | B150: 8.8
A151: 6 | B151: 10.3
A152: 7 | B152: 9.5
A153: 8 | B153: 7.7
A154: 9 | B154: 7.8
A155: 10 | B155: 8.6
A156: 11 | B156: 10.7
A157: 12 | B157: 9.8
A158: 1 | B158: 8.6
A159: 2 | B159: 8.1
A160: 3 | B160: 8.1
A161: 4 | B161: 9.2
A162: 5 | B162: 8.8
A163: 6 | B163: 8
A164: 7 | B164: 11.5
A165: 8 | B165: 8.8
A166: 9 | B166: 8.6
A167: 10 | B167: 9.6
A168: 11 | B168: 11.3
A169: 12 | B169: 10.5
A170: 1 | B170: 10.3
A171: 2 | B171: 8.2
A172: 3 | B172: 7.6
A173: 4 | B173: 11
A174: 5 | B174: 8.5
A175: 6 | B175: 7.6
A176: 7 | B176: 9.9
A177: 8 | B177: 8.4
A178: 9 | B178: 8.4
A179: 10 | B179: 8.2
A180: 11 | B180: 9.8
A181: 12 | B181: 10.3
A182: 1 | B182: 8.1
A183: 2 | B183: 9.9
A184: 3 | B184: 10.9
A185: 4 | B185: 8.5
A186: 5 | B186: 10.2
A187: 6 | B187: 8.4
A188: 7 | B188: 11.2
A189: 8 | B189: 8.1
A190: 9 | B190: 7.7
A191: 10 | B191: 9.2
A192: 11 | B192: 10.2
A193: 12 | B193: 8.6
A194: 1 | B194: 8.4
A195: 2 | B195: 8.8
A196: 3 | B196: 7.5
A197: 4 | B197: 9.2
A198: 5 | B198: 7.6
A199: 6 | B199: 10.1
A200: 7 | B200: 10.5
... 389 more rows

Sheet Ex(9-10)
B1: **Time to Assemble Product at Post (Seconds)
A3: Post | B3: Seconds | D3: ="Goal: Find Min Time for Each Post. And have formulas update automatically." -> Goal: Find Min Time for Each Post. And have formulas update automatically. | L3: Assembly Line With 12 Posts: | AM3: Post | AN3: Time to Assemble Product at Post (Seconds)
A4: 1 | B4: 9 | AM4: 1 | AN4: =IF(AM4<3,RANDBETWEEN(78,105)/10,IF(OR(AM4={7,11}),RANDBETWEEN(90,115)/10,ROUND(CHOOSE(RANDBETWEEN(1,3),RANDBETWEEN(80,110),RANDBETWEEN(75,95),ABS(_xlfn.NORM.INV(RAND(),85,15/3)))/10,1))) -> 9
A5: 2 | B5: 9.2 | D5: MINIFS and MAXIFS are New Functions in Office 365 for Excel 2016 or later
A6: 3 | B6: 8.3
A7: 4 | B7: 8.3 | D7: Post | E7: Min | F7: Max
A8: 5 | B8: 8.8 | D8: 1 | H8: ="In Cell "&ADDRESS(ROW(E8),COLUMN(E8),4)&" is: "&IF(_xlfn.ISFORMULA(E8),_xlfn.FORMULATEXT(E8),"") -> In Cell E8 is:
A9: 6 | B9: 10 | D9: 2 | H9: MINIFS finds smallest value with one or more conditions
A10: 7 | B10: 10.7 | D10: 3
A11: 8 | B11: 8 | D11: 4 | H11: ="In Cell "&ADDRESS(ROW(F8),COLUMN(F8),4)&" is: "&IF(_xlfn.ISFORMULA(F8),_xlfn.FORMULATEXT(F8),"") -> In Cell F8 is:
A12: 9 | B12: 9.1 | D12: 5 | H12: MAXIFS finds biggest value with with one or more conditions
A13: 10 | B13: 10.3 | D13: 6
A14: 11 | B14: 9.9 | D14: 7
A15: 12 | B15: 8.5 | D15: 8
A16: 1 | B16: 10 | D16: 9
A17: 2 | B17: 8.6 | D17: 10
A18: 3 | B18: 9.1 | D18: 11
A19: 4 | B19: 8.3 | D19: 12
A20: 5 | B20: 8.1
A21: 6 | B21: 10.4 | D21: ** This is an example of where a PivotTable would be easy to create, but it would not update without a "Refresh"
A22: 7 | B22: 9.1
A23: 8 | B23: 8.4
A24: 9 | B24: 8.3
A25: 10 | B25: 9.7
A26: 11 | B26: 9.7
A27: 12 | B27: 9.5
A28: 1 | B28: 8.3
A29: 2 | B29: 9.1
A30: 3 | B30: 8.5
A31: 4 | B31: 8
A32: 5 | B32: 8.2
A33: 6 | B33: 8.9
A34: 7 | B34: 11.5
A35: 8 | B35: 8.3
A36: 9 | B36: 8.6
A37: 10 | B37: 9.1
A38: 11 | B38: 9.2
A39: 12 | B39: 10.3
A40: 1 | B40: 10.5
A41: 2 | B41: 8
A42: 3 | B42: 8.2
A43: 4 | B43: 8.4
A44: 5 | B44: 9.1
A45: 6 | B45: 10.7
A46: 7 | B46: 11.5
A47: 8 | B47: 9.1
A48: 9 | B48: 8.8
A49: 10 | B49: 8.3
A50: 11 | B50: 10.3
A51: 12 | B51: 10.7
A52: 1 | B52: 8.1
A53: 2 | B53: 10.1
A54: 3 | B54: 9.2
A55: 4 | B55: 7.9
A56: 5 | B56: 8
A57: 6 | B57: 9.1
A58: 7 | B58: 9.7
A59: 8 | B59: 8.1
A60: 9 | B60: 7.5
A61: 10 | B61: 8.4
A62: 11 | B62: 9.5
A63: 12 | B63: 8.3
A64: 1 | B64: 10.4
A65: 2 | B65: 8.4
A66: 3 | B66: 8.9
A67: 4 | B67: 9
A68: 5 | B68: 8.2
A69: 6 | B69: 9.1
A70: 7 | B70: 9.1
A71: 8 | B71: 8.3
A72: 9 | B72: 9.2
A73: 10 | B73: 9.5
A74: 11 | B74: 10.2
A75: 12 | B75: 9
A76: 1 | B76: 8.6
A77: 2 | B77: 10.2
A78: 3 | B78: 7.9
A79: 4 | B79: 8.6
A80: 5 | B80: 9.4
A81: 6 | B81: 8.3
A82: 7 | B82: 10.5
A83: 8 | B83: 8.5
A84: 9 | B84: 10.5
A85: 10 | B85: 9.7
A86: 11 | B86: 11.2
A87: 12 | B87: 9.7
A88: 1 | B88: 9.7
A89: 2 | B89: 8.7
A90: 3 | B90: 8.4
A91: 4 | B91: 9
A92: 5 | B92: 8.8
A93: 6 | B93: 7.8
A94: 7 | B94: 9
A95: 8 | B95: 8
A96: 9 | B96: 7.6
A97: 10 | B97: 9.1
A98: 11 | B98: 9.4
A99: 12 | B99: 8.7
A100: 1 | B100: 10.1
A101: 2 | B101: 8.2
A102: 3 | B102: 9.4
A103: 4 | B103: 8.3
A104: 5 | B104: 7.7
A105: 6 | B105: 9
A106: 7 | B106: 10.6
A107: 8 | B107: 7.8
A108: 9 | B108: 8
A109: 10 | B109: 8.8
A110: 11 | B110: 11.75
A111: 12 | B111: 7.9
A112: 1 | B112: 9.9
A113: 2 | B113: 9.3
A114: 3 | B114: 9.5
A115: 4 | B115: 9.5
A116: 5 | B116: 8.7
A117: 6 | B117: 8.3
A118: 7 | B118: 11
A119: 8 | B119: 10.4
A120: 9 | B120: 8
A121: 10 | B121: 7.9
A122: 11 | B122: 10.7
A123: 12 | B123: 10.3
A124: 1 | B124: 10.4
A125: 2 | B125: 9.7
A126: 3 | B126: 8.5
A127: 4 | B127: 9.3
A128: 5 | B128: 8.3
A129: 6 | B129: 9.5
A130: 7 | B130: 11.3
A131: 8 | B131: 8.4
A132: 9 | B132: 7.6
A133: 10 | B133: 8.2
A134: 11 | B134: 11.4
A135: 12 | B135: 10.6
A136: 1 | B136: 8.4
A137: 2 | B137: 10
A138: 3 | B138: 8.9
A139: 4 | B139: 8.2
A140: 5 | B140: 7.3
A141: 6 | B141: 7.9
A142: 7 | B142: 9.5
A143: 8 | B143: 9
A144: 9 | B144: 7.9
A145: 10 | B145: 8.5
A146: 11 | B146: 10.3
A147: 12 | B147: 8.6
A148: 1 | B148: 10
A149: 2 | B149: 9.7
A150: 3 | B150: 7.5
A151: 4 | B151: 8.7
A152: 5 | B152: 8.8
A153: 6 | B153: 10.3
A154: 7 | B154: 9.5
A155: 8 | B155: 7.7
A156: 9 | B156: 7.8
A157: 10 | B157: 8.6
A158: 11 | B158: 10.7
A159: 12 | B159: 9.8
A160: 1 | B160: 8.6
A161: 2 | B161: 8.1
A162: 3 | B162: 8.1
A163: 4 | B163: 9.2
A164: 5 | B164: 8.8
A165: 6 | B165: 8
A166: 7 | B166: 11.5
A167: 8 | B167: 8.8
A168: 9 | B168: 8.6
A169: 10 | B169: 9.6
A170: 11 | B170: 11.3
A171: 12 | B171: 10.5
A172: 1 | B172: 10.3
A173: 2 | B173: 8.2
A174: 3 | B174: 7.6
A175: 4 | B175: 11
A176: 5 | B176: 8.5
A177: 6 | B177: 7.6
A178: 7 | B178: 9.9
A179: 8 | B179: 8.4
A180: 9 | B180: 8.4
A181: 10 | B181: 8.2
A182: 11 | B182: 9.8
A183: 12 | B183: 10.3
A184: 1 | B184: 8.1
A185: 2 | B185: 9.9
A186: 3 | B186: 10.9
A187: 4 | B187: 8.5
A188: 5 | B188: 10.2
A189: 6 | B189: 8.4
A190: 7 | B190: 11.2
A191: 8 | B191: 8.1
A192: 9 | B192: 7.7
A193: 10 | B193: 9.2
A194: 11 | B194: 10.2
A195: 12 | B195: 8.6
A196: 1 | B196: 8.4
A197: 2 | B197: 8.8
A198: 3 | B198: 7.5
A199: 4 | B199: 9.2
A200: 5 | B200: 7.6
A201: 6 | B201: 10.1
... 390 more rows

Sheet Ex(9-10) (an)
B1: **Time to Assemble Product at Post (Seconds)
A3: Post | B3: Seconds | D3: ="Goal: Find Min Time for Each Post. And have formulas update automatically." -> Goal: Find Min Time for Each Post. And have formulas update automatically. | L3: Assembly Line With 12 Posts: | AM3: Post | AN3: Time to Assemble Product at Post (Seconds)
A4: 1 | B4: 9 | AM4: 1 | AN4: =IF(AM4<3,RANDBETWEEN(78,105)/10,IF(OR(AM4={7,11}),RANDBETWEEN(90,115)/10,ROUND(CHOOSE(RANDBETWEEN(1,3),RANDBETWEEN(80,110),RANDBETWEEN(75,95),ABS(_xlfn.NORM.INV(RAND(),85,15/3)))/10,1))) -> 9.6
A5: 2 | B5: 9.2 | D5: MINIFS and MAXIFS are New Functions in Office 365 for Excel 2016 or later
A6: 3 | B6: 8.3
A7: 4 | B7: 8.3 | D7: Post | E7: Min | F7: Max
A8: 5 | B8: 8.8 | D8: 1 | E8: =_xlfn.MINIFS(AssemblyTimes6[Seconds],AssemblyTimes6[Post],D8) -> 7.8 | F8: =_xlfn.MAXIFS(AssemblyTimes6[Seconds],AssemblyTimes6[Post],D8) -> 10.5 | H8: ="In Cell "&ADDRESS(ROW(E8),COLUMN(E8),4)&" is: "&IF(_xlfn.ISFORMULA(E8),_xlfn.FORMULATEXT(E8),"") -> In Cell E8 is: =MINIFS(AssemblyTimes6[Seconds],AssemblyTimes6[Post],D8)
A9: 6 | B9: 10 | D9: 2 | E9: =_xlfn.MINIFS(AssemblyTimes6[Seconds],AssemblyTimes6[Post],D9) -> 7.8 | F9: =_xlfn.MAXIFS(AssemblyTimes6[Seconds],AssemblyTimes6[Post],D9) -> 10.4 | H9: MINIFS finds smallest value with one or more conditions
A10: 7 | B10: 10.7 | D10: 3 | E10: =_xlfn.MINIFS(AssemblyTimes6[Seconds],AssemblyTimes6[Post],D10) -> 7.5 | F10: =_xlfn.MAXIFS(AssemblyTimes6[Seconds],AssemblyTimes6[Post],D10) -> 11
A11: 8 | B11: 8 | D11: 4 | E11: =_xlfn.MINIFS(AssemblyTimes6[Seconds],AssemblyTimes6[Post],D11) -> 7.8 | F11: =_xlfn.MAXIFS(AssemblyTimes6[Seconds],AssemblyTimes6[Post],D11) -> 11 | H11: ="In Cell "&ADDRESS(ROW(F8),COLUMN(F8),4)&" is: "&IF(_xlfn.ISFORMULA(F8),_xlfn.FORMULATEXT(F8),"") -> In Cell F8 is: =MAXIFS(AssemblyTimes6[Seconds],AssemblyTimes6[Post],D8)
A12: 9 | B12: 9.1 | D12: 5 | E12: =_xlfn.MINIFS(AssemblyTimes6[Seconds],AssemblyTimes6[Post],D12) -> 7.3 | F12: =_xlfn.MAXIFS(AssemblyTimes6[Seconds],AssemblyTimes6[Post],D12) -> 10.5 | H12: MAXIFS finds biggest value with with one or more conditions
A13: 10 | B13: 10.3 | D13: 6 | E13: =_xlfn.MINIFS(AssemblyTimes6[Seconds],AssemblyTimes6[Post],D13) -> 7.6 | F13: =_xlfn.MAXIFS(AssemblyTimes6[Seconds],AssemblyTimes6[Post],D13) -> 10.7
A14: 11 | B14: 9.9 | D14: 7 | E14: =_xlfn.MINIFS(AssemblyTimes6[Seconds],AssemblyTimes6[Post],D14) -> 9 | F14: =_xlfn.MAXIFS(AssemblyTimes6[Seconds],AssemblyTimes6[Post],D14) -> 12.1
A15: 12 | B15: 8.5 | D15: 8 | E15: =_xlfn.MINIFS(AssemblyTimes6[Seconds],AssemblyTimes6[Post],D15) -> 7.5 | F15: =_xlfn.MAXIFS(AssemblyTimes6[Seconds],AssemblyTimes6[Post],D15) -> 10.4
A16: 1 | B16: 10 | D16: 9 | E16: =_xlfn.MINIFS(AssemblyTimes6[Seconds],AssemblyTimes6[Post],D16) -> 7.5 | F16: =_xlfn.MAXIFS(AssemblyTimes6[Seconds],AssemblyTimes6[Post],D16) -> 11.2
A17: 2 | B17: 8.6 | D17: 10 | E17: =_xlfn.MINIFS(AssemblyTimes6[Seconds],AssemblyTimes6[Post],D17) -> 7.2 | F17: =_xlfn.MAXIFS(AssemblyTimes6[Seconds],AssemblyTimes6[Post],D17) -> 10.3
A18: 3 | B18: 9.1 | D18: 11 | E18: =_xlfn.MINIFS(AssemblyTimes6[Seconds],AssemblyTimes6[Post],D18) -> 9.2 | F18: =_xlfn.MAXIFS(AssemblyTimes6[Seconds],AssemblyTimes6[Post],D18) -> 11.75
A19: 4 | B19: 8.3 | D19: 12 | E19: =_xlfn.MINIFS(AssemblyTimes6[Seconds],AssemblyTimes6[Post],D19) -> 7.5 | F19: =_xlfn.MAXIFS(AssemblyTimes6[Seconds],AssemblyTimes6[Post],D19) -> 11.1
A20: 5 | B20: 8.1
A21: 6 | B21: 10.4 | D21: ** This is an example of where a PivotTable would be easy to create, but it would not update without a "Refresh"
A22: 7 | B22: 9.1
A23: 8 | B23: 8.4
A24: 9 | B24: 8.3
A25: 10 | B25: 9.7
A26: 11 | B26: 9.7
A27: 12 | B27: 9.5
A28: 1 | B28: 8.3
A29: 2 | B29: 9.1
A30: 3 | B30: 8.5
A31: 4 | B31: 8
A32: 5 | B32: 8.2
A33: 6 | B33: 8.9
A34: 7 | B34: 11.5
A35: 8 | B35: 8.3
A36: 9 | B36: 8.6
A37: 10 | B37: 9.1
A38: 11 | B38: 9.2
A39: 12 | B39: 10.3
A40: 1 | B40: 10.5
A41: 2 | B41: 8
A42: 3 | B42: 8.2
A43: 4 | B43: 8.4
A44: 5 | B44: 9.1
A45: 6 | B45: 10.7
A46: 7 | B46: 11.5
A47: 8 | B47: 9.1
A48: 9 | B48: 8.8
A49: 10 | B49: 8.3
A50: 11 | B50: 10.3
A51: 12 | B51: 10.7
A52: 1 | B52: 8.1
A53: 2 | B53: 10.1
A54: 3 | B54: 9.2
A55: 4 | B55: 7.9
A56: 5 | B56: 8
A57: 6 | B57: 9.1
A58: 7 | B58: 9.7
A59: 8 | B59: 8.1
A60: 9 | B60: 7.5
A61: 10 | B61: 8.4
A62: 11 | B62: 9.5
A63: 12 | B63: 8.3
A64: 1 | B64: 10.4
A65: 2 | B65: 8.4
A66: 3 | B66: 8.9
A67: 4 | B67: 9
A68: 5 | B68: 8.2
A69: 6 | B69: 9.1
A70: 7 | B70: 9.1
A71: 8 | B71: 8.3
A72: 9 | B72: 9.2
A73: 10 | B73: 9.5
A74: 11 | B74: 10.2
A75: 12 | B75: 9
A76: 1 | B76: 8.6
A77: 2 | B77: 10.2
A78: 3 | B78: 7.9
A79: 4 | B79: 8.6
A80: 5 | B80: 9.4
A81: 6 | B81: 8.3
A82: 7 | B82: 10.5
A83: 8 | B83: 8.5
A84: 9 | B84: 10.5
A85: 10 | B85: 9.7
A86: 11 | B86: 11.2
A87: 12 | B87: 9.7
A88: 1 | B88: 9.7
A89: 2 | B89: 8.7
A90: 3 | B90: 8.4
A91: 4 | B91: 9
A92: 5 | B92: 8.8
A93: 6 | B93: 7.8
A94: 7 | B94: 9
A95: 8 | B95: 8
A96: 9 | B96: 7.6
A97: 10 | B97: 9.1
A98: 11 | B98: 9.4
A99: 12 | B99: 8.7
A100: 1 | B100: 10.1
A101: 2 | B101: 8.2
A102: 3 | B102: 9.4
A103: 4 | B103: 8.3
A104: 5 | B104: 7.7
A105: 6 | B105: 9
A106: 7 | B106: 10.6
A107: 8 | B107: 7.8
A108: 9 | B108: 8
A109: 10 | B109: 8.8
A110: 11 | B110: 11.75
A111: 12 | B111: 7.9
A112: 1 | B112: 9.9
A113: 2 | B113: 9.3
A114: 3 | B114: 9.5
A115: 4 | B115: 9.5
A116: 5 | B116: 8.7
A117: 6 | B117: 8.3
A118: 7 | B118: 11
A119: 8 | B119: 10.4
A120: 9 | B120: 8
A121: 10 | B121: 7.9
A122: 11 | B122: 10.7
A123: 12 | B123: 10.3
A124: 1 | B124: 10.4
A125: 2 | B125: 9.7
A126: 3 | B126: 8.5
A127: 4 | B127: 9.3
A128: 5 | B128: 8.3
A129: 6 | B129: 9.5
A130: 7 | B130: 11.3
A131: 8 | B131: 8.4
A132: 9 | B132: 7.6
A133: 10 | B133: 8.2
A134: 11 | B134: 11.4
A135: 12 | B135: 10.6
A136: 1 | B136: 8.4
A137: 2 | B137: 10
A138: 3 | B138: 8.9
A139: 4 | B139: 8.2
A140: 5 | B140: 7.3
A141: 6 | B141: 7.9
A142: 7 | B142: 9.5
A143: 8 | B143: 9
A144: 9 | B144: 7.9
A145: 10 | B145: 8.5
A146: 11 | B146: 10.3
A147: 12 | B147: 8.6
A148: 1 | B148: 10
A149: 2 | B149: 9.7
A150: 3 | B150: 7.5
A151: 4 | B151: 8.7
A152: 5 | B152: 8.8
A153: 6 | B153: 10.3
A154: 7 | B154: 9.5
A155: 8 | B155: 7.7
A156: 9 | B156: 7.8
A157: 10 | B157: 8.6
A158: 11 | B158: 10.7
A159: 12 | B159: 9.8
A160: 1 | B160: 8.6
A161: 2 | B161: 8.1
A162: 3 | B162: 8.1
A163: 4 | B163: 9.2
A164: 5 | B164: 8.8
A165: 6 | B165: 8
A166: 7 | B166: 11.5
A167: 8 | B167: 8.8
A168: 9 | B168: 8.6
A169: 10 | B169: 9.6
A170: 11 | B170: 11.3
A171: 12 | B171: 10.5
A172: 1 | B172: 10.3
A173: 2 | B173: 8.2
A174: 3 | B174: 7.6
A175: 4 | B175: 11
A176: 5 | B176: 8.5
A177: 6 | B177: 7.6
A178: 7 | B178: 9.9
A179: 8 | B179: 8.4
A180: 9 | B180: 8.4
A181: 10 | B181: 8.2
A182: 11 | B182: 9.8
A183: 12 | B183: 10.3
A184: 1 | B184: 8.1
A185: 2 | B185: 9.9
A186: 3 | B186: 10.9
A187: 4 | B187: 8.5
A188: 5 | B188: 10.2
A189: 6 | B189: 8.4
A190: 7 | B190: 11.2
A191: 8 | B191: 8.1
A192: 9 | B192: 7.7
A193: 10 | B193: 9.2
A194: 11 | B194: 10.2
A195: 12 | B195: 8.6
A196: 1 | B196: 8.4
A197: 2 | B197: 8.8
A198: 3 | B198: 7.5
A199: 4 | B199: 9.2
A200: 5 | B200: 7.6
A201: 6 | B201: 10.1
... 390 more rows

Sheet HW==>>

Sheet HW(1)
A1: Date | B1: Year | C1: Product | D1: Sales | E1: COGS | G1: ** Each Record in the table is a sale.
A2: 2018-07-15 | B2: 2018 | C2: Quad | D2: 2453.52 | E2: 1128.62
A3: 2016-02-15 | B3: 2016 | C3: Sunset | D3: 2391.92 | E3: 980.69 | G3: Following Excel's Golden Rule create a formula that will count how many sales there are for the
A4: 2017-11-15 | B4: 2017 | C4: Carlota | D4: 53.23 | E4: 22.89 | G4: Quad Product, where the Sales amount in the Sales Field (Column) is greater than or equal to 2200.
A5: 2018-08-31 | B5: 2018 | C5: Carlota | D5: 1558.76 | E5: 888.49 | G5: The product criteria and hurdle criteria can change, so you must follow Excel's Golden Rule.
A6: 2018-12-16 | B6: 2018 | C6: Sunset | D6: 917.72 | E6: 568.99
A7: 2018-05-16 | B7: 2018 | C7: Sunset | D7: 1876.27 | E7: 731.75
A8: 2016-12-27 | B8: 2016 | C8: Yanaki | D8: 1487.82 | E8: 684.4
A9: 2017-09-18 | B9: 2017 | C9: Quad | D9: 2017.73 | E9: 807.09
A10: 2018-06-04 | B10: 2018 | C10: Yanaki | D10: 1459.48 | E10: 569.2
A11: 2018-05-09 | B11: 2018 | C11: Carlota | D11: 1020.18 | E11: 591.7
A12: 2016-07-06 | B12: 2016 | C12: Carlota | D12: 653.87 | E12: 274.63
A13: 2017-11-09 | B13: 2017 | C13: Yanaki | D13: 1044.37 | E13: 616.18
A14: 2017-09-07 | B14: 2017 | C14: Carlota | D14: 1900.47 | E14: 988.24
A15: 2017-04-13 | B15: 2017 | C15: Carlota | D15: 1129.45 | E15: 463.07
A16: 2017-06-20 | B16: 2017 | C16: Carlota | D16: 328.7 | E16: 128.19
A17: 2017-05-26 | B17: 2017 | C17: Sunset | D17: 58 | E17: 36.54
A18: 2018-03-03 | B18: 2018 | C18: Sunset | D18: 1646.76 | E18: 1037.46
A19: 2017-11-10 | B19: 2017 | C19: Carlota | D19: 1865.2 | E19: 895.3
A20: 2017-01-18 | B20: 2017 | C20: Quad | D20: 884.17 | E20: 512.82
A21: 2017-06-12 | B21: 2017 | C21: Quad | D21: 1891.74 | E21: 908.04
A22: 2017-10-08 | B22: 2017 | C22: Sunset | D22: 561.61 | E22: 219.03
A23: 2017-08-27 | B23: 2017 | C23: Quad | D23: 713.19 | E23: 392.25
A24: 2016-03-16 | B24: 2016 | C24: Sunset | D24: 148.6 | E24: 69.84
A25: 2017-08-16 | B25: 2017 | C25: Yanaki | D25: 2436.08 | E25: 1315.48
A26: 2018-01-29 | B26: 2018 | C26: Sunset | D26: 353.67 | E26: 169.76
A27: 2017-11-07 | B27: 2017 | C27: Sunset | D27: 1993.91 | E27: 996.96
A28: 2018-04-27 | B28: 2018 | C28: Yanaki | D28: 1535.67 | E28: 982.83
A29: 2017-05-03 | B29: 2017 | C29: Yanaki | D29: 1058.98 | E29: 645.98
A30: 2017-10-18 | B30: 2017 | C30: Carlota | D30: 725.21 | E30: 362.61
A31: 2017-11-04 | B31: 2017 | C31: Carlota | D31: 1332.83 | E31: 879.67
A32: 2016-07-05 | B32: 2016 | C32: Quad | D32: 1955.26 | E32: 860.31
A33: 2016-10-03 | B33: 2016 | C33: Carlota | D33: 1003.54 | E33: 662.34
A34: 2017-03-12 | B34: 2017 | C34: Sunset | D34: 368.46 | E34: 184.23
A35: 2017-10-11 | B35: 2017 | C35: Quad | D35: 1473.86 | E35: 795.88
A36: 2017-10-24 | B36: 2017 | C36: Yanaki | D36: 539.23 | E36: 285.79
A37: 2016-01-08 | B37: 2016 | C37: Yanaki | D37: 1974.49 | E37: 908.27
A38: 2017-08-17 | B38: 2017 | C38: Yanaki | D38: 1931.47 | E38: 1081.62
A39: 2016-11-14 | B39: 2016 | C39: Yanaki | D39: 1449.29 | E39: 884.07
A40: 2017-06-18 | B40: 2017 | C40: Carlota | D40: 2307.69 | E40: 1038.46
A41: 2018-04-03 | B41: 2018 | C41: Quad | D41: 1115.13 | E41: 490.66
A42: 2016-01-15 | B42: 2016 | C42: Sunset | D42: 29.88 | E42: 16.14
A43: 2017-02-28 | B43: 2017 | C43: Carlota | D43: 2154.95 | E43: 1077.48
A44: 2016-03-04 | B44: 2016 | C44: Quad | D44: 1234.86 | E44: 815.01
A45: 2017-09-22 | B45: 2017 | C45: Yanaki | D45: 2154.18 | E45: 1206.34
A46: 2017-07-23 | B46: 2017 | C46: Quad | D46: 1744.62 | E46: 872.31
A47: 2018-06-18 | B47: 2018 | C47: Yanaki | D47: 2298.45 | E47: 1126.24
A48: 2016-08-14 | B48: 2016 | C48: Quad | D48: 494.28 | E48: 271.85
A49: 2016-03-09 | B49: 2016 | C49: Sunset | D49: 2253.03 | E49: 1149.05
A50: 2017-03-01 | B50: 2017 | C50: Sunset | D50: 1478.09 | E50: 768.61
A51: 2018-11-02 | B51: 2018 | C51: Carlota | D51: 678.92 | E51: 325.88
A52: 2018-04-11 | B52: 2018 | C52: Sunset | D52: 143.51 | E52: 71.76
A53: 2016-02-25 | B53: 2016 | C53: Carlota | D53: 1868.96 | E53: 747.58
A54: 2017-06-13 | B54: 2017 | C54: Carlota | D54: 1549.63 | E54: 604.36
A55: 2016-11-08 | B55: 2016 | C55: Sunset | D55: 937.24 | E55: 459.25
A56: 2018-05-07 | B56: 2018 | C56: Sunset | D56: 109.84 | E56: 54.92
A57: 2017-02-16 | B57: 2017 | C57: Carlota | D57: 747.68 | E57: 500.95
A58: 2017-05-31 | B58: 2017 | C58: Carlota | D58: 443.35 | E58: 252.71
A59: 2016-01-27 | B59: 2016 | C59: Carlota | D59: 1129.85 | E59: 723.1
A60: 2016-09-19 | B60: 2016 | C60: Yanaki | D60: 2202.75 | E60: 947.18
A61: 2016-02-05 | B61: 2016 | C61: Quad | D61: 29.56 | E61: 11.82
A62: 2016-04-13 | B62: 2016 | C62: Quad | D62: 2088.42 | E62: 1294.82
A63: 2017-03-23 | B63: 2017 | C63: Sunset | D63: 708.14 | E63: 446.13
A64: 2018-12-08 | B64: 2018 | C64: Carlota | D64: 44.86 | E64: 26.47
A65: 2017-09-19 | B65: 2017 | C65: Yanaki | D65: 1665.87 | E65: 866.25
A66: 2018-01-08 | B66: 2018 | C66: Quad | D66: 1657.26 | E66: 977.78
A67: 2017-01-28 | B67: 2017 | C67: Sunset | D67: 1543.94 | E67: 679.33
A68: 2016-07-20 | B68: 2016 | C68: Quad | D68: 1362.96 | E68: 708.74
A69: 2017-06-17 | B69: 2017 | C69: Quad | D69: 308.4 | E69: 141.86
A70: 2017-03-10 | B70: 2017 | C70: Carlota | D70: 2495.48 | E70: 1098.01
A71: 2017-05-10 | B71: 2017 | C71: Yanaki | D71: 402.76 | E71: 189.3
A72: 2018-05-08 | B72: 2018 | C72: Carlota | D72: 1421.93 | E72: 639.87
A73: 2016-01-05 | B73: 2016 | C73: Sunset | D73: 1172.31 | E73: 644.77
A74: 2017-04-09 | B74: 2017 | C74: Sunset | D74: 2070.49 | E74: 1345.82
A75: 2018-12-29 | B75: 2018 | C75: Quad | D75: 1965.34 | E75: 786.14
A76: 2016-06-21 | B76: 2016 | C76: Yanaki | D76: 1833 | E76: 879.84
A77: 2018-04-07 | B77: 2018 | C77: Yanaki | D77: 2151.45 | E77: 1312.38
A78: 2017-05-05 | B78: 2017 | C78: Yanaki | D78: 673.95 | E78: 384.15
A79: 2018-01-17 | B79: 2018 | C79: Quad | D79: 561.58 | E79: 247.1
A80: 2017-08-10 | B80: 2017 | C80: Carlota | D80: 1342.24 | E80: 711.39
A81: 2018-07-05 | B81: 2018 | C81: Sunset | D81: 1754.6 | E81: 789.57
A82: 2018-01-29 | B82: 2018 | C82: Sunset | D82: 214.29 | E82: 109.29
A83: 2017-02-27 | B83: 2017 | C83: Carlota | D83: 1561.54 | E83: 952.54
A84: 2018-03-06 | B84: 2018 | C84: Quad | D84: 1673.37 | E84: 870.15
A85: 2018-11-10 | B85: 2018 | C85: Quad | D85: 773.05 | E85: 440.64
A86: 2018-10-12 | B86: 2018 | C86: Quad | D86: 418.72 | E86: 230.3
A87: 2017-10-25 | B87: 2017 | C87: Yanaki | D87: 1946.44 | E87: 1051.08
A88: 2017-02-25 | B88: 2017 | C88: Carlota | D88: 770.94 | E88: 339.21
A89: 2018-08-20 | B89: 2018 | C89: Sunset | D89: 1222.49 | E89: 770.17
A90: 2018-03-25 | B90: 2018 | C90: Quad | D90: 1395.46 | E90: 851.23
A91: 2017-06-10 | B91: 2017 | C91: Quad | D91: 1520.63 | E91: 851.55
A92: 2016-09-22 | B92: 2016 | C92: Carlota | D92: 1094.5 | E92: 689.54
A93: 2017-03-14 | B93: 2017 | C93: Sunset | D93: 76.96 | E93: 33.86
A94: 2017-10-08 | B94: 2017 | C94: Sunset | D94: 234.72 | E94: 152.57
A95: 2017-02-27 | B95: 2017 | C95: Quad | D95: 2003.25 | E95: 1041.69
A96: 2017-05-24 | B96: 2017 | C96: Sunset | D96: 1688.01 | E96: 1063.45
A97: 2016-12-29 | B97: 2016 | C97: Carlota | D97: 1538.35 | E97: 815.33
A98: 2017-05-01 | B98: 2017 | C98: Yanaki | D98: 147.04 | E98: 97.05
A99: 2017-07-21 | B99: 2017 | C99: Yanaki | D99: 1908.31 | E99: 954.16
A100: 2017-01-10 | B100: 2017 | C100: Sunset | D100: 490.77 | E100: 319
A101: 2017-07-04 | B101: 2017 | C101: Quad | D101: 671.76 | E101: 409.77
A102: 2016-07-05 | B102: 2016 | C102: Quad | D102: 2301.62 | E102: 920.65
A103: 2017-01-11 | B103: 2017 | C103: Carlota | D103: 502.61 | E103: 206.07
A104: 2018-10-08 | B104: 2018 | C104: Quad | D104: 1047.63 | E104: 408.58
A105: 2018-05-07 | B105: 2018 | C105: Yanaki | D105: 1647.46 | E105: 741.36
A106: 2018-02-06 | B106: 2018 | C106: Sunset | D106: 609.32 | E106: 280.29
A107: 2018-02-10 | B107: 2018 | C107: Yanaki | D107: 489.95 | E107: 279.27
A108: 2018-04-10 | B108: 2018 | C108: Carlota | D108: 234.43 | E108: 126.59
A109: 2018-01-19 | B109: 2018 | C109: Carlota | D109: 1988.25 | E109: 1113.42
A110: 2018-01-16 | B110: 2018 | C110: Sunset | D110: 62.18 | E110: 24.25
A111: 2016-02-06 | B111: 2016 | C111: Yanaki | D111: 598.85 | E111: 269.48
A112: 2016-07-16 | B112: 2016 | C112: Carlota | D112: 2177.11 | E112: 936.16
A113: 2017-03-07 | B113: 2017 | C113: Quad | D113: 2417.35 | E113: 1281.2
A114: 2017-03-03 | B114: 2017 | C114: Carlota | D114: 498.52 | E114: 259.23
A115: 2017-12-22 | B115: 2017 | C115: Sunset | D115: 22.8 | E115: 13.91
A116: 2018-06-23 | B116: 2018 | C116: Quad | D116: 536.25 | E116: 294.94
A117: 2016-02-13 | B117: 2016 | C117: Quad | D117: 1871.36 | E117: 1160.24
A118: 2016-09-09 | B118: 2016 | C118: Sunset | D118: 880.15 | E118: 536.89
A119: 2016-05-13 | B119: 2016 | C119: Carlota | D119: 2115.44 | E119: 1184.65
A120: 2016-08-30 | B120: 2016 | C120: Sunset | D120: 2268.16 | E120: 975.31
A121: 2018-11-20 | B121: 2018 | C121: Carlota | D121: 1800.62 | E121: 954.33
A122: 2018-11-06 | B122: 2018 | C122: Quad | D122: 1860.09 | E122: 781.24
A123: 2018-02-23 | B123: 2018 | C123: Yanaki | D123: 667.55 | E123: 267.02
A124: 2016-11-04 | B124: 2016 | C124: Quad | D124: 989.63 | E124: 653.16
A125: 2016-06-07 | B125: 2016 | C125: Yanaki | D125: 1907.49 | E125: 820.22
A126: 2016-04-08 | B126: 2016 | C126: Quad | D126: 693.75 | E126: 291.38
A127: 2017-11-05 | B127: 2017 | C127: Carlota | D127: 699.22 | E127: 391.56
A128: 2017-07-22 | B128: 2017 | C128: Carlota | D128: 1489.21 | E128: 982.88
A129: 2017-01-25 | B129: 2017 | C129: Yanaki | D129: 987.63 | E129: 414.8
A130: 2018-06-21 | B130: 2018 | C130: Quad | D130: 2037.45 | E130: 1161.35
A131: 2016-02-11 | B131: 2016 | C131: Quad | D131: 2345 | E131: 1430.45
A132: 2018-01-19 | B132: 2018 | C132: Quad | D132: 1496.14 | E132: 703.19
A133: 2018-01-21 | B133: 2018 | C133: Carlota | D133: 836.37 | E133: 368
A134: 2018-06-13 | B134: 2018 | C134: Carlota | D134: 1023.91 | E134: 573.39
A135: 2017-01-25 | B135: 2017 | C135: Sunset | D135: 1553.78 | E135: 776.89
A136: 2017-12-19 | B136: 2017 | C136: Yanaki | D136: 946.52 | E136: 388.07
A137: 2016-06-18 | B137: 2016 | C137: Yanaki | D137: 891.64 | E137: 552.82
A138: 2016-03-02 | B138: 2016 | C138: Sunset | D138: 1042.61 | E138: 552.58
A139: 2018-03-30 | B139: 2018 | C139: Yanaki | D139: 692.89 | E139: 291.01
A140: 2016-05-07 | B140: 2016 | C140: Quad | D140: 2421.14 | E140: 1234.78
A141: 2017-10-08 | B141: 2017 | C141: Carlota | D141: 2459.69 | E141: 1008.47
A142: 2016-06-06 | B142: 2016 | C142: Yanaki | D142: 505.37 | E142: 293.11
A143: 2018-03-04 | B143: 2018 | C143: Sunset | D143: 1349.89 | E143: 566.95
A144: 2018-04-17 | B144: 2018 | C144: Yanaki | D144: 2256.65 | E144: 1196.02
A145: 2017-12-02 | B145: 2017 | C145: Quad | D145: 1068.15 | E145: 480.67
A146: 2017-04-07 | B146: 2017 | C146: Sunset | D146: 488.82 | E146: 303.07
A147: 2016-08-07 | B147: 2016 | C147: Quad | D147: 1549.1 | E147: 805.53
A148: 2017-12-24 | B148: 2017 | C148: Carlota | D148: 984.61 | E148: 384
A149: 2017-08-16 | B149: 2017 | C149: Sunset | D149: 2445.18 | E149: 1295.95
A150: 2017-10-05 | B150: 2017 | C150: Quad | D150: 45.18 | E150: 21.69
A151: 2017-02-02 | B151: 2017 | C151: Yanaki | D151: 2162.32 | E151: 1037.91
A152: 2016-09-18 | B152: 2016 | C152: Sunset | D152: 2345.43 | E152: 1336.9
A153: 2016-01-23 | B153: 2016 | C153: Quad | D153: 968.43 | E153: 571.37
A154: 2018-09-11 | B154: 2018 | C154: Yanaki | D154: 573.76 | E154: 355.73
A155: 2017-04-14 | B155: 2017 | C155: Sunset | D155: 2222.89 | E155: 911.38
A156: 2016-07-09 | B156: 2016 | C156: Yanaki | D156: 1452.43 | E156: 813.36
A157: 2018-02-22 | B157: 2018 | C157: Carlota | D157: 454.62 | E157: 222.76
A158: 2018-01-05 | B158: 2018 | C158: Carlota | D158: 1753.68 | E158: 789.16
A159: 2018-07-31 | B159: 2018 | C159: Sunset | D159: 1623.32 | E159: 795.43
A160: 2018-11-26 | B160: 2018 | C160: Quad | D160: 531.32 | E160: 355.98
A161: 2018-01-23 | B161: 2018 | C161: Yanaki | D161: 2144.95 | E161: 1394.22
A162: 2017-05-28 | B162: 2017 | C162: Sunset | D162: 517.14 | E162: 336.14
A163: 2018-01-29 | B163: 2018 | C163: Quad | D163: 852.54 | E163: 562.68
A164: 2017-07-12 | B164: 2017 | C164: Sunset | D164: 438.5 | E164: 223.64
A165: 2017-03-13 | B165: 2017 | C165: Carlota | D165: 1958.55 | E165: 998.86
A166: 2017-01-12 | B166: 2017 | C166: Quad | D166: 245.23 | E166: 122.62
A167: 2016-09-15 | B167: 2016 | C167: Sunset | D167: 315.6 | E167: 201.98
A168: 2016-03-19 | B168: 2016 | C168: Yanaki | D168: 269.58 | E168: 126.7
A169: 2018-10-07 | B169: 2018 | C169: Sunset | D169: 2106.07 | E169: 1263.64
A170: 2017-04-28 | B170: 2017 | C170: Sunset | D170: 562.73 | E170: 236.35
A171: 2018-05-29 | B171: 2018 | C171: Yanaki | D171: 2347.6 | E171: 962.52
A172: 2018-06-10 | B172: 2018 | C172: Quad | D172: 1197.77 | E172: 598.89
A173: 2016-08-30 | B173: 2016 | C173: Yanaki | D173: 1411.59 | E173: 762.26
A174: 2017-07-27 | B174: 2017 | C174: Quad | D174: 2030.49 | E174: 1258.9
A175: 2018-09-27 | B175: 2018 | C175: Yanaki | D175: 1665.95 | E175: 766.34
A176: 2018-12-16 | B176: 2018 | C176: Sunset | D176: 305.46 | E176: 192.44
A177: 2018-12-30 | B177: 2018 | C177: Carlota | D177: 1913.15 | E177: 1033.1
A178: 2017-04-11 | B178: 2017 | C178: Yanaki | D178: 1838.42 | E178: 772.14
A179: 2016-01-31 | B179: 2016 | C179: Quad | D179: 2043.55 | E179: 1226.13
A180: 2016-10-31 | B180: 2016 | C180: Sunset | D180: 1426.9 | E180: 684.91
A181: 2016-03-13 | B181: 2016 | C181: Sunset | D181: 1997.29 | E181: 778.94
A182: 2017-11-07 | B182: 2017 | C182: Quad | D182: 823.75 | E182: 420.11
A183: 2018-06-14 | B183: 2018 | C183: Yanaki | D183: 1927.75 | E183: 1079.54
A184: 2016-06-14 | B184: 2016 | C184: Carlota | D184: 52.38 | E184: 25.14
A185: 2018-10-25 | B185: 2018 | C185: Quad | D185: 865.26 | E185: 449.94
A186: 2018-11-06 | B186: 2018 | C186: Sunset | D186: 1539.72 | E186: 1016.22
A187: 2016-12-09 | B187: 2016 | C187: Yanaki | D187: 698.67 | E187: 461.12
A188: 2016-03-14 | B188: 2016 | C188: Yanaki | D188: 33.12 | E188: 18.88
A189: 2018-11-15 | B189: 2018 | C189: Yanaki | D189: 1017.6 | E189: 590.21
A190: 2017-12-17 | B190: 2017 | C190: Sunset | D190: 1042 | E190: 666.88
A191: 2017-02-08 | B191: 2017 | C191: Sunset | D191: 1520.64 | E191: 669.08
A192: 2018-09-08 | B192: 2018 | C192: Yanaki | D192: 1780.84 | E192: 979.46
A193: 2018-01-02 | B193: 2018 | C193: Yanaki | D193: 1474.72 | E193: 722.61
A194: 2017-05-27 | B194: 2017 | C194: Quad | D194: 953.44 | E194: 457.65
A195: 2016-09-15 | B195: 2016 | C195: Quad | D195: 1769.66 | E195: 867.13
A196: 2017-03-06 | B196: 2017 | C196: Carlota | D196: 1275.35 | E196: 790.72
A197: 2016-09-27 | B197: 2016 | C197: Sunset | D197: 46.74 | E197: 20.57
A198: 2017-12-19 | B198: 2017 | C198: Carlota | D198: 1351.89 | E198: 851.69
A199: 2016-03-30 | B199: 2016 | C199: Yanaki | D199: 674.89 | E199: 364.44
A200: 2017-12-27 | B200: 2017 | C200: Sunset | D200: 2362.05 | E200: 1251.89
... 465 more rows

Sheet HW(1an)
A1: Date | B1: Year | C1: Product | D1: Sales | E1: COGS | G1: ** Each Record in the table is a sale.
A2: 2018-07-15 | B2: 2018 | C2: Quad | D2: 2453.52 | E2: 1128.62
A3: 2016-02-15 | B3: 2016 | C3: Sunset | D3: 2391.92 | E3: 980.69 | G3: Following Excel's Golden Rule create a formula that will count how many sales there are for the
A4: 2017-11-15 | B4: 2017 | C4: Carlota | D4: 53.23 | E4: 22.89 | G4: Quad Product, where the Sales amount in the Sales Field (Column) is greater than or equal to 2200.
A5: 2018-08-31 | B5: 2018 | C5: Carlota | D5: 1558.76 | E5: 888.49 | G5: The product criteria and hurdle criteria can change, so you must follow Excel's Golden Rule.
A6: 2018-12-16 | B6: 2018 | C6: Sunset | D6: 917.72 | E6: 568.99
A7: 2018-05-16 | B7: 2018 | C7: Sunset | D7: 1876.27 | E7: 731.75
A8: 2016-12-27 | B8: 2016 | C8: Yanaki | D8: 1487.82 | E8: 684.4 | G8: Criteria: | H8: Product | I8: Sales Number Hurdle
A9: 2017-09-18 | B9: 2017 | C9: Quad | D9: 2017.73 | E9: 807.09 | H9: Quad | I9: >=2200
A10: 2018-06-04 | B10: 2018 | C10: Yanaki | D10: 1459.48 | E10: 569.2
A11: 2018-05-09 | B11: 2018 | C11: Carlota | D11: 1020.18 | E11: 591.7 | G11: Count | H11: =COUNTIFS(C2:C665,H9,D2:D665,I9) -> 16
A12: 2016-07-06 | B12: 2016 | C12: Carlota | D12: 653.87 | E12: 274.63
A13: 2017-11-09 | B13: 2017 | C13: Yanaki | D13: 1044.37 | E13: 616.18
A14: 2017-09-07 | B14: 2017 | C14: Carlota | D14: 1900.47 | E14: 988.24
A15: 2017-04-13 | B15: 2017 | C15: Carlota | D15: 1129.45 | E15: 463.07
A16: 2017-06-20 | B16: 2017 | C16: Carlota | D16: 328.7 | E16: 128.19
A17: 2017-05-26 | B17: 2017 | C17: Sunset | D17: 58 | E17: 36.54
A18: 2018-03-03 | B18: 2018 | C18: Sunset | D18: 1646.76 | E18: 1037.46
A19: 2017-11-10 | B19: 2017 | C19: Carlota | D19: 1865.2 | E19: 895.3
A20: 2017-01-18 | B20: 2017 | C20: Quad | D20: 884.17 | E20: 512.82
A21: 2017-06-12 | B21: 2017 | C21: Quad | D21: 1891.74 | E21: 908.04
A22: 2017-10-08 | B22: 2017 | C22: Sunset | D22: 561.61 | E22: 219.03
A23: 2017-08-27 | B23: 2017 | C23: Quad | D23: 713.19 | E23: 392.25
A24: 2016-03-16 | B24: 2016 | C24: Sunset | D24: 148.6 | E24: 69.84
A25: 2017-08-16 | B25: 2017 | C25: Yanaki | D25: 2436.08 | E25: 1315.48
A26: 2018-01-29 | B26: 2018 | C26: Sunset | D26: 353.67 | E26: 169.76
A27: 2017-11-07 | B27: 2017 | C27: Sunset | D27: 1993.91 | E27: 996.96
A28: 2018-04-27 | B28: 2018 | C28: Yanaki | D28: 1535.67 | E28: 982.83
A29: 2017-05-03 | B29: 2017 | C29: Yanaki | D29: 1058.98 | E29: 645.98
A30: 2017-10-18 | B30: 2017 | C30: Carlota | D30: 725.21 | E30: 362.61
A31: 2017-11-04 | B31: 2017 | C31: Carlota | D31: 1332.83 | E31: 879.67
A32: 2016-07-05 | B32: 2016 | C32: Quad | D32: 1955.26 | E32: 860.31
A33: 2016-10-03 | B33: 2016 | C33: Carlota | D33: 1003.54 | E33: 662.34
A34: 2017-03-12 | B34: 2017 | C34: Sunset | D34: 368.46 | E34: 184.23
A35: 2017-10-11 | B35: 2017 | C35: Quad | D35: 1473.86 | E35: 795.88
A36: 2017-10-24 | B36: 2017 | C36: Yanaki | D36: 539.23 | E36: 285.79
A37: 2016-01-08 | B37: 2016 | C37: Yanaki | D37: 1974.49 | E37: 908.27
A38: 2017-08-17 | B38: 2017 | C38: Yanaki | D38: 1931.47 | E38: 1081.62
A39: 2016-11-14 | B39: 2016 | C39: Yanaki | D39: 1449.29 | E39: 884.07
A40: 2017-06-18 | B40: 2017 | C40: Carlota | D40: 2307.69 | E40: 1038.46
A41: 2018-04-03 | B41: 2018 | C41: Quad | D41: 1115.13 | E41: 490.66
A42: 2016-01-15 | B42: 2016 | C42: Sunset | D42: 29.88 | E42: 16.14
A43: 2017-02-28 | B43: 2017 | C43: Carlota | D43: 2154.95 | E43: 1077.48
A44: 2016-03-04 | B44: 2016 | C44: Quad | D44: 1234.86 | E44: 815.01
A45: 2017-09-22 | B45: 2017 | C45: Yanaki | D45: 2154.18 | E45: 1206.34
A46: 2017-07-23 | B46: 2017 | C46: Quad | D46: 1744.62 | E46: 872.31
A47: 2018-06-18 | B47: 2018 | C47: Yanaki | D47: 2298.45 | E47: 1126.24
A48: 2016-08-14 | B48: 2016 | C48: Quad | D48: 494.28 | E48: 271.85
A49: 2016-03-09 | B49: 2016 | C49: Sunset | D49: 2253.03 | E49: 1149.05
A50: 2017-03-01 | B50: 2017 | C50: Sunset | D50: 1478.09 | E50: 768.61
A51: 2018-11-02 | B51: 2018 | C51: Carlota | D51: 678.92 | E51: 325.88
A52: 2018-04-11 | B52: 2018 | C52: Sunset | D52: 143.51 | E52: 71.76
A53: 2016-02-25 | B53: 2016 | C53: Carlota | D53: 1868.96 | E53: 747.58
A54: 2017-06-13 | B54: 2017 | C54: Carlota | D54: 1549.63 | E54: 604.36
A55: 2016-11-08 | B55: 2016 | C55: Sunset | D55: 937.24 | E55: 459.25
A56: 2018-05-07 | B56: 2018 | C56: Sunset | D56: 109.84 | E56: 54.92
A57: 2017-02-16 | B57: 2017 | C57: Carlota | D57: 747.68 | E57: 500.95
A58: 2017-05-31 | B58: 2017 | C58: Carlota | D58: 443.35 | E58: 252.71
A59: 2016-01-27 | B59: 2016 | C59: Carlota | D59: 1129.85 | E59: 723.1
A60: 2016-09-19 | B60: 2016 | C60: Yanaki | D60: 2202.75 | E60: 947.18
A61: 2016-02-05 | B61: 2016 | C61: Quad | D61: 29.56 | E61: 11.82
A62: 2016-04-13 | B62: 2016 | C62: Quad | D62: 2088.42 | E62: 1294.82
A63: 2017-03-23 | B63: 2017 | C63: Sunset | D63: 708.14 | E63: 446.13
A64: 2018-12-08 | B64: 2018 | C64: Carlota | D64: 44.86 | E64: 26.47
A65: 2017-09-19 | B65: 2017 | C65: Yanaki | D65: 1665.87 | E65: 866.25
A66: 2018-01-08 | B66: 2018 | C66: Quad | D66: 1657.26 | E66: 977.78
A67: 2017-01-28 | B67: 2017 | C67: Sunset | D67: 1543.94 | E67: 679.33
A68: 2016-07-20 | B68: 2016 | C68: Quad | D68: 1362.96 | E68: 708.74
A69: 2017-06-17 | B69: 2017 | C69: Quad | D69: 308.4 | E69: 141.86
A70: 2017-03-10 | B70: 2017 | C70: Carlota | D70: 2495.48 | E70: 1098.01
A71: 2017-05-10 | B71: 2017 | C71: Yanaki | D71: 402.76 | E71: 189.3
A72: 2018-05-08 | B72: 2018 | C72: Carlota | D72: 1421.93 | E72: 639.87
A73: 2016-01-05 | B73: 2016 | C73: Sunset | D73: 1172.31 | E73: 644.77
A74: 2017-04-09 | B74: 2017 | C74: Sunset | D74: 2070.49 | E74: 1345.82
A75: 2018-12-29 | B75: 2018 | C75: Quad | D75: 1965.34 | E75: 786.14
A76: 2016-06-21 | B76: 2016 | C76: Yanaki | D76: 1833 | E76: 879.84
A77: 2018-04-07 | B77: 2018 | C77: Yanaki | D77: 2151.45 | E77: 1312.38
A78: 2017-05-05 | B78: 2017 | C78: Yanaki | D78: 673.95 | E78: 384.15
A79: 2018-01-17 | B79: 2018 | C79: Quad | D79: 561.58 | E79: 247.1
A80: 2017-08-10 | B80: 2017 | C80: Carlota | D80: 1342.24 | E80: 711.39
A81: 2018-07-05 | B81: 2018 | C81: Sunset | D81: 1754.6 | E81: 789.57
A82: 2018-01-29 | B82: 2018 | C82: Sunset | D82: 214.29 | E82: 109.29
A83: 2017-02-27 | B83: 2017 | C83: Carlota | D83: 1561.54 | E83: 952.54
A84: 2018-03-06 | B84: 2018 | C84: Quad | D84: 1673.37 | E84: 870.15
A85: 2018-11-10 | B85: 2018 | C85: Quad | D85: 773.05 | E85: 440.64
A86: 2018-10-12 | B86: 2018 | C86: Quad | D86: 418.72 | E86: 230.3
A87: 2017-10-25 | B87: 2017 | C87: Yanaki | D87: 1946.44 | E87: 1051.08
A88: 2017-02-25 | B88: 2017 | C88: Carlota | D88: 770.94 | E88: 339.21
A89: 2018-08-20 | B89: 2018 | C89: Sunset | D89: 1222.49 | E89: 770.17
A90: 2018-03-25 | B90: 2018 | C90: Quad | D90: 1395.46 | E90: 851.23
A91: 2017-06-10 | B91: 2017 | C91: Quad | D91: 1520.63 | E91: 851.55
A92: 2016-09-22 | B92: 2016 | C92: Carlota | D92: 1094.5 | E92: 689.54
A93: 2017-03-14 | B93: 2017 | C93: Sunset | D93: 76.96 | E93: 33.86
A94: 2017-10-08 | B94: 2017 | C94: Sunset | D94: 234.72 | E94: 152.57
A95: 2017-02-27 | B95: 2017 | C95: Quad | D95: 2003.25 | E95: 1041.69
A96: 2017-05-24 | B96: 2017 | C96: Sunset | D96: 1688.01 | E96: 1063.45
A97: 2016-12-29 | B97: 2016 | C97: Carlota | D97: 1538.35 | E97: 815.33
A98: 2017-05-01 | B98: 2017 | C98: Yanaki | D98: 147.04 | E98: 97.05
A99: 2017-07-21 | B99: 2017 | C99: Yanaki | D99: 1908.31 | E99: 954.16
A100: 2017-01-10 | B100: 2017 | C100: Sunset | D100: 490.77 | E100: 319
A101: 2017-07-04 | B101: 2017 | C101: Quad | D101: 671.76 | E101: 409.77
A102: 2016-07-05 | B102: 2016 | C102: Quad | D102: 2301.62 | E102: 920.65
A103: 2017-01-11 | B103: 2017 | C103: Carlota | D103: 502.61 | E103: 206.07
A104: 2018-10-08 | B104: 2018 | C104: Quad | D104: 1047.63 | E104: 408.58
A105: 2018-05-07 | B105: 2018 | C105: Yanaki | D105: 1647.46 | E105: 741.36
A106: 2018-02-06 | B106: 2018 | C106: Sunset | D106: 609.32 | E106: 280.29
A107: 2018-02-10 | B107: 2018 | C107: Yanaki | D107: 489.95 | E107: 279.27
A108: 2018-04-10 | B108: 2018 | C108: Carlota | D108: 234.43 | E108: 126.59
A109: 2018-01-19 | B109: 2018 | C109: Carlota | D109: 1988.25 | E109: 1113.42
A110: 2018-01-16 | B110: 2018 | C110: Sunset | D110: 62.18 | E110: 24.25
A111: 2016-02-06 | B111: 2016 | C111: Yanaki | D111: 598.85 | E111: 269.48
A112: 2016-07-16 | B112: 2016 | C112: Carlota | D112: 2177.11 | E112: 936.16
A113: 2017-03-07 | B113: 2017 | C113: Quad | D113: 2417.35 | E113: 1281.2
A114: 2017-03-03 | B114: 2017 | C114: Carlota | D114: 498.52 | E114: 259.23
A115: 2017-12-22 | B115: 2017 | C115: Sunset | D115: 22.8 | E115: 13.91
A116: 2018-06-23 | B116: 2018 | C116: Quad | D116: 536.25 | E116: 294.94
A117: 2016-02-13 | B117: 2016 | C117: Quad | D117: 1871.36 | E117: 1160.24
A118: 2016-09-09 | B118: 2016 | C118: Sunset | D118: 880.15 | E118: 536.89
A119: 2016-05-13 | B119: 2016 | C119: Carlota | D119: 2115.44 | E119: 1184.65
A120: 2016-08-30 | B120: 2016 | C120: Sunset | D120: 2268.16 | E120: 975.31
A121: 2018-11-20 | B121: 2018 | C121: Carlota | D121: 1800.62 | E121: 954.33
A122: 2018-11-06 | B122: 2018 | C122: Quad | D122: 1860.09 | E122: 781.24
A123: 2018-02-23 | B123: 2018 | C123: Yanaki | D123: 667.55 | E123: 267.02
A124: 2016-11-04 | B124: 2016 | C124: Quad | D124: 989.63 | E124: 653.16
A125: 2016-06-07 | B125: 2016 | C125: Yanaki | D125: 1907.49 | E125: 820.22
A126: 2016-04-08 | B126: 2016 | C126: Quad | D126: 693.75 | E126: 291.38
A127: 2017-11-05 | B127: 2017 | C127: Carlota | D127: 699.22 | E127: 391.56
A128: 2017-07-22 | B128: 2017 | C128: Carlota | D128: 1489.21 | E128: 982.88
A129: 2017-01-25 | B129: 2017 | C129: Yanaki | D129: 987.63 | E129: 414.8
A130: 2018-06-21 | B130: 2018 | C130: Quad | D130: 2037.45 | E130: 1161.35
A131: 2016-02-11 | B131: 2016 | C131: Quad | D131: 2345 | E131: 1430.45
A132: 2018-01-19 | B132: 2018 | C132: Quad | D132: 1496.14 | E132: 703.19
A133: 2018-01-21 | B133: 2018 | C133: Carlota | D133: 836.37 | E133: 368
A134: 2018-06-13 | B134: 2018 | C134: Carlota | D134: 1023.91 | E134: 573.39
A135: 2017-01-25 | B135: 2017 | C135: Sunset | D135: 1553.78 | E135: 776.89
A136: 2017-12-19 | B136: 2017 | C136: Yanaki | D136: 946.52 | E136: 388.07
A137: 2016-06-18 | B137: 2016 | C137: Yanaki | D137: 891.64 | E137: 552.82
A138: 2016-03-02 | B138: 2016 | C138: Sunset | D138: 1042.61 | E138: 552.58
A139: 2018-03-30 | B139: 2018 | C139: Yanaki | D139: 692.89 | E139: 291.01
A140: 2016-05-07 | B140: 2016 | C140: Quad | D140: 2421.14 | E140: 1234.78
A141: 2017-10-08 | B141: 2017 | C141: Carlota | D141: 2459.69 | E141: 1008.47
A142: 2016-06-06 | B142: 2016 | C142: Yanaki | D142: 505.37 | E142: 293.11
A143: 2018-03-04 | B143: 2018 | C143: Sunset | D143: 1349.89 | E143: 566.95
A144: 2018-04-17 | B144: 2018 | C144: Yanaki | D144: 2256.65 | E144: 1196.02
A145: 2017-12-02 | B145: 2017 | C145: Quad | D145: 1068.15 | E145: 480.67
A146: 2017-04-07 | B146: 2017 | C146: Sunset | D146: 488.82 | E146: 303.07
A147: 2016-08-07 | B147: 2016 | C147: Quad | D147: 1549.1 | E147: 805.53
A148: 2017-12-24 | B148: 2017 | C148: Carlota | D148: 984.61 | E148: 384
A149: 2017-08-16 | B149: 2017 | C149: Sunset | D149: 2445.18 | E149: 1295.95
A150: 2017-10-05 | B150: 2017 | C150: Quad | D150: 45.18 | E150: 21.69
A151: 2017-02-02 | B151: 2017 | C151: Yanaki | D151: 2162.32 | E151: 1037.91
A152: 2016-09-18 | B152: 2016 | C152: Sunset | D152: 2345.43 | E152: 1336.9
A153: 2016-01-23 | B153: 2016 | C153: Quad | D153: 968.43 | E153: 571.37
A154: 2018-09-11 | B154: 2018 | C154: Yanaki | D154: 573.76 | E154: 355.73
A155: 2017-04-14 | B155: 2017 | C155: Sunset | D155: 2222.89 | E155: 911.38
A156: 2016-07-09 | B156: 2016 | C156: Yanaki | D156: 1452.43 | E156: 813.36
A157: 2018-02-22 | B157: 2018 | C157: Carlota | D157: 454.62 | E157: 222.76
A158: 2018-01-05 | B158: 2018 | C158: Carlota | D158: 1753.68 | E158: 789.16
A159: 2018-07-31 | B159: 2018 | C159: Sunset | D159: 1623.32 | E159: 795.43
A160: 2018-11-26 | B160: 2018 | C160: Quad | D160: 531.32 | E160: 355.98
A161: 2018-01-23 | B161: 2018 | C161: Yanaki | D161: 2144.95 | E161: 1394.22
A162: 2017-05-28 | B162: 2017 | C162: Sunset | D162: 517.14 | E162: 336.14
A163: 2018-01-29 | B163: 2018 | C163: Quad | D163: 852.54 | E163: 562.68
A164: 2017-07-12 | B164: 2017 | C164: Sunset | D164: 438.5 | E164: 223.64
A165: 2017-03-13 | B165: 2017 | C165: Carlota | D165: 1958.55 | E165: 998.86
A166: 2017-01-12 | B166: 2017 | C166: Quad | D166: 245.23 | E166: 122.62
A167: 2016-09-15 | B167: 2016 | C167: Sunset | D167: 315.6 | E167: 201.98
A168: 2016-03-19 | B168: 2016 | C168: Yanaki | D168: 269.58 | E168: 126.7
A169: 2018-10-07 | B169: 2018 | C169: Sunset | D169: 2106.07 | E169: 1263.64
A170: 2017-04-28 | B170: 2017 | C170: Sunset | D170: 562.73 | E170: 236.35
A171: 2018-05-29 | B171: 2018 | C171: Yanaki | D171: 2347.6 | E171: 962.52
A172: 2018-06-10 | B172: 2018 | C172: Quad | D172: 1197.77 | E172: 598.89
A173: 2016-08-30 | B173: 2016 | C173: Yanaki | D173: 1411.59 | E173: 762.26
A174: 2017-07-27 | B174: 2017 | C174: Quad | D174: 2030.49 | E174: 1258.9
A175: 2018-09-27 | B175: 2018 | C175: Yanaki | D175: 1665.95 | E175: 766.34
A176: 2018-12-16 | B176: 2018 | C176: Sunset | D176: 305.46 | E176: 192.44
A177: 2018-12-30 | B177: 2018 | C177: Carlota | D177: 1913.15 | E177: 1033.1
A178: 2017-04-11 | B178: 2017 | C178: Yanaki | D178: 1838.42 | E178: 772.14
A179: 2016-01-31 | B179: 2016 | C179: Quad | D179: 2043.55 | E179: 1226.13
A180: 2016-10-31 | B180: 2016 | C180: Sunset | D180: 1426.9 | E180: 684.91
A181: 2016-03-13 | B181: 2016 | C181: Sunset | D181: 1997.29 | E181: 778.94
A182: 2017-11-07 | B182: 2017 | C182: Quad | D182: 823.75 | E182: 420.11
A183: 2018-06-14 | B183: 2018 | C183: Yanaki | D183: 1927.75 | E183: 1079.54
A184: 2016-06-14 | B184: 2016 | C184: Carlota | D184: 52.38 | E184: 25.14
A185: 2018-10-25 | B185: 2018 | C185: Quad | D185: 865.26 | E185: 449.94
A186: 2018-11-06 | B186: 2018 | C186: Sunset | D186: 1539.72 | E186: 1016.22
A187: 2016-12-09 | B187: 2016 | C187: Yanaki | D187: 698.67 | E187: 461.12
A188: 2016-03-14 | B188: 2016 | C188: Yanaki | D188: 33.12 | E188: 18.88
A189: 2018-11-15 | B189: 2018 | C189: Yanaki | D189: 1017.6 | E189: 590.21
A190: 2017-12-17 | B190: 2017 | C190: Sunset | D190: 1042 | E190: 666.88
A191: 2017-02-08 | B191: 2017 | C191: Sunset | D191: 1520.64 | E191: 669.08
A192: 2018-09-08 | B192: 2018 | C192: Yanaki | D192: 1780.84 | E192: 979.46
A193: 2018-01-02 | B193: 2018 | C193: Yanaki | D193: 1474.72 | E193: 722.61
A194: 2017-05-27 | B194: 2017 | C194: Quad | D194: 953.44 | E194: 457.65
A195: 2016-09-15 | B195: 2016 | C195: Quad | D195: 1769.66 | E195: 867.13
A196: 2017-03-06 | B196: 2017 | C196: Carlota | D196: 1275.35 | E196: 790.72
A197: 2016-09-27 | B197: 2016 | C197: Sunset | D197: 46.74 | E197: 20.57
A198: 2017-12-19 | B198: 2017 | C198: Carlota | D198: 1351.89 | E198: 851.69
A199: 2016-03-30 | B199: 2016 | C199: Yanaki | D199: 674.89 | E199: 364.44
A200: 2017-12-27 | B200: 2017 | C200: Sunset | D200: 2362.05 | E200: 1251.89
... 465 more rows

Sheet HW(2)
A1: Date | B1: Year | C1: Product | D1: Sales | E1: COGS | G1: ** Each Record in the table is a sale.
A2: 2018-07-15 | B2: 2018 | C2: Quad | D2: 2453.52 | E2: 1128.62
A3: 2016-02-15 | B3: 2016 | C3: Sunset | D3: 2391.92 | E3: 980.69 | G3: Following Excel's Golden Rule create a formula that will add the sales numbers from the Sales Field when
A4: 2017-11-15 | B4: 2017 | C4: Carlota | D4: 53.23 | E4: 22.89 | G4: the Product is Quad and where the COGS amount in the COGS Field (Column) is greater than 800. The
A5: 2018-08-31 | B5: 2018 | C5: Carlota | D5: 1558.76 | E5: 888.49 | G5: product criteria and hurdle criteria can change, so you must follow Excel's Golden Rule.
A6: 2018-12-16 | B6: 2018 | C6: Sunset | D6: 917.72 | E6: 568.99
A7: 2018-05-16 | B7: 2018 | C7: Sunset | D7: 1876.27 | E7: 731.75
A8: 2016-12-27 | B8: 2016 | C8: Yanaki | D8: 1487.82 | E8: 684.4
A9: 2017-09-18 | B9: 2017 | C9: Quad | D9: 2017.73 | E9: 807.09
A10: 2018-06-04 | B10: 2018 | C10: Yanaki | D10: 1459.48 | E10: 569.2
A11: 2018-05-09 | B11: 2018 | C11: Carlota | D11: 1020.18 | E11: 591.7
A12: 2016-07-06 | B12: 2016 | C12: Carlota | D12: 653.87 | E12: 274.63
A13: 2017-11-09 | B13: 2017 | C13: Yanaki | D13: 1044.37 | E13: 616.18
A14: 2017-09-07 | B14: 2017 | C14: Carlota | D14: 1900.47 | E14: 988.24
A15: 2017-04-13 | B15: 2017 | C15: Carlota | D15: 1129.45 | E15: 463.07
A16: 2017-06-20 | B16: 2017 | C16: Carlota | D16: 328.7 | E16: 128.19
A17: 2017-05-26 | B17: 2017 | C17: Sunset | D17: 58 | E17: 36.54
A18: 2018-03-03 | B18: 2018 | C18: Sunset | D18: 1646.76 | E18: 1037.46
A19: 2017-11-10 | B19: 2017 | C19: Carlota | D19: 1865.2 | E19: 895.3
A20: 2017-01-18 | B20: 2017 | C20: Quad | D20: 884.17 | E20: 512.82
A21: 2017-06-12 | B21: 2017 | C21: Quad | D21: 1891.74 | E21: 908.04
A22: 2017-10-08 | B22: 2017 | C22: Sunset | D22: 561.61 | E22: 219.03
A23: 2017-08-27 | B23: 2017 | C23: Quad | D23: 713.19 | E23: 392.25
A24: 2016-03-16 | B24: 2016 | C24: Sunset | D24: 148.6 | E24: 69.84
A25: 2017-08-16 | B25: 2017 | C25: Yanaki | D25: 2436.08 | E25: 1315.48
A26: 2018-01-29 | B26: 2018 | C26: Sunset | D26: 353.67 | E26: 169.76
A27: 2017-11-07 | B27: 2017 | C27: Sunset | D27: 1993.91 | E27: 996.96
A28: 2018-04-27 | B28: 2018 | C28: Yanaki | D28: 1535.67 | E28: 982.83
A29: 2017-05-03 | B29: 2017 | C29: Yanaki | D29: 1058.98 | E29: 645.98
A30: 2017-10-18 | B30: 2017 | C30: Carlota | D30: 725.21 | E30: 362.61
A31: 2017-11-04 | B31: 2017 | C31: Carlota | D31: 1332.83 | E31: 879.67
A32: 2016-07-05 | B32: 2016 | C32: Quad | D32: 1955.26 | E32: 860.31
A33: 2016-10-03 | B33: 2016 | C33: Carlota | D33: 1003.54 | E33: 662.34
A34: 2017-03-12 | B34: 2017 | C34: Sunset | D34: 368.46 | E34: 184.23
A35: 2017-10-11 | B35: 2017 | C35: Quad | D35: 1473.86 | E35: 795.88
A36: 2017-10-24 | B36: 2017 | C36: Yanaki | D36: 539.23 | E36: 285.79
A37: 2016-01-08 | B37: 2016 | C37: Yanaki | D37: 1974.49 | E37: 908.27
A38: 2017-08-17 | B38: 2017 | C38: Yanaki | D38: 1931.47 | E38: 1081.62
A39: 2016-11-14 | B39: 2016 | C39: Yanaki | D39: 1449.29 | E39: 884.07
A40: 2017-06-18 | B40: 2017 | C40: Carlota | D40: 2307.69 | E40: 1038.46
A41: 2018-04-03 | B41: 2018 | C41: Quad | D41: 1115.13 | E41: 490.66
A42: 2016-01-15 | B42: 2016 | C42: Sunset | D42: 29.88 | E42: 16.14
A43: 2017-02-28 | B43: 2017 | C43: Carlota | D43: 2154.95 | E43: 1077.48
A44: 2016-03-04 | B44: 2016 | C44: Quad | D44: 1234.86 | E44: 815.01
A45: 2017-09-22 | B45: 2017 | C45: Yanaki | D45: 2154.18 | E45: 1206.34
A46: 2017-07-23 | B46: 2017 | C46: Quad | D46: 1744.62 | E46: 872.31
A47: 2018-06-18 | B47: 2018 | C47: Yanaki | D47: 2298.45 | E47: 1126.24
A48: 2016-08-14 | B48: 2016 | C48: Quad | D48: 494.28 | E48: 271.85
A49: 2016-03-09 | B49: 2016 | C49: Sunset | D49: 2253.03 | E49: 1149.05
A50: 2017-03-01 | B50: 2017 | C50: Sunset | D50: 1478.09 | E50: 768.61
A51: 2018-11-02 | B51: 2018 | C51: Carlota | D51: 678.92 | E51: 325.88
A52: 2018-04-11 | B52: 2018 | C52: Sunset | D52: 143.51 | E52: 71.76
A53: 2016-02-25 | B53: 2016 | C53: Carlota | D53: 1868.96 | E53: 747.58
A54: 2017-06-13 | B54: 2017 | C54: Carlota | D54: 1549.63 | E54: 604.36
A55: 2016-11-08 | B55: 2016 | C55: Sunset | D55: 937.24 | E55: 459.25
A56: 2018-05-07 | B56: 2018 | C56: Sunset | D56: 109.84 | E56: 54.92
A57: 2017-02-16 | B57: 2017 | C57: Carlota | D57: 747.68 | E57: 500.95
A58: 2017-05-31 | B58: 2017 | C58: Carlota | D58: 443.35 | E58: 252.71
A59: 2016-01-27 | B59: 2016 | C59: Carlota | D59: 1129.85 | E59: 723.1
A60: 2016-09-19 | B60: 2016 | C60: Yanaki | D60: 2202.75 | E60: 947.18
A61: 2016-02-05 | B61: 2016 | C61: Quad | D61: 29.56 | E61: 11.82
A62: 2016-04-13 | B62: 2016 | C62: Quad | D62: 2088.42 | E62: 1294.82
A63: 2017-03-23 | B63: 2017 | C63: Sunset | D63: 708.14 | E63: 446.13
A64: 2018-12-08 | B64: 2018 | C64: Carlota | D64: 44.86 | E64: 26.47
A65: 2017-09-19 | B65: 2017 | C65: Yanaki | D65: 1665.87 | E65: 866.25
A66: 2018-01-08 | B66: 2018 | C66: Quad | D66: 1657.26 | E66: 977.78
A67: 2017-01-28 | B67: 2017 | C67: Sunset | D67: 1543.94 | E67: 679.33
A68: 2016-07-20 | B68: 2016 | C68: Quad | D68: 1362.96 | E68: 708.74
A69: 2017-06-17 | B69: 2017 | C69: Quad | D69: 308.4 | E69: 141.86
A70: 2017-03-10 | B70: 2017 | C70: Carlota | D70: 2495.48 | E70: 1098.01
A71: 2017-05-10 | B71: 2017 | C71: Yanaki | D71: 402.76 | E71: 189.3
A72: 2018-05-08 | B72: 2018 | C72: Carlota | D72: 1421.93 | E72: 639.87
A73: 2016-01-05 | B73: 2016 | C73: Sunset | D73: 1172.31 | E73: 644.77
A74: 2017-04-09 | B74: 2017 | C74: Sunset | D74: 2070.49 | E74: 1345.82
A75: 2018-12-29 | B75: 2018 | C75: Quad | D75: 1965.34 | E75: 786.14
A76: 2016-06-21 | B76: 2016 | C76: Yanaki | D76: 1833 | E76: 879.84
A77: 2018-04-07 | B77: 2018 | C77: Yanaki | D77: 2151.45 | E77: 1312.38
A78: 2017-05-05 | B78: 2017 | C78: Yanaki | D78: 673.95 | E78: 384.15
A79: 2018-01-17 | B79: 2018 | C79: Quad | D79: 561.58 | E79: 247.1
A80: 2017-08-10 | B80: 2017 | C80: Carlota | D80: 1342.24 | E80: 711.39
A81: 2018-07-05 | B81: 2018 | C81: Sunset | D81: 1754.6 | E81: 789.57
A82: 2018-01-29 | B82: 2018 | C82: Sunset | D82: 214.29 | E82: 109.29
A83: 2017-02-27 | B83: 2017 | C83: Carlota | D83: 1561.54 | E83: 952.54
A84: 2018-03-06 | B84: 2018 | C84: Quad | D84: 1673.37 | E84: 870.15
A85: 2018-11-10 | B85: 2018 | C85: Quad | D85: 773.05 | E85: 440.64
A86: 2018-10-12 | B86: 2018 | C86: Quad | D86: 418.72 | E86: 230.3
A87: 2017-10-25 | B87: 2017 | C87: Yanaki | D87: 1946.44 | E87: 1051.08
A88: 2017-02-25 | B88: 2017 | C88: Carlota | D88: 770.94 | E88: 339.21
A89: 2018-08-20 | B89: 2018 | C89: Sunset | D89: 1222.49 | E89: 770.17
A90: 2018-03-25 | B90: 2018 | C90: Quad | D90: 1395.46 | E90: 851.23
A91: 2017-06-10 | B91: 2017 | C91: Quad | D91: 1520.63 | E91: 851.55
A92: 2016-09-22 | B92: 2016 | C92: Carlota | D92: 1094.5 | E92: 689.54
A93: 2017-03-14 | B93: 2017 | C93: Sunset | D93: 76.96 | E93: 33.86
A94: 2017-10-08 | B94: 2017 | C94: Sunset | D94: 234.72 | E94: 152.57
A95: 2017-02-27 | B95: 2017 | C95: Quad | D95: 2003.25 | E95: 1041.69
A96: 2017-05-24 | B96: 2017 | C96: Sunset | D96: 1688.01 | E96: 1063.45
A97: 2016-12-29 | B97: 2016 | C97: Carlota | D97: 1538.35 | E97: 815.33
A98: 2017-05-01 | B98: 2017 | C98: Yanaki | D98: 147.04 | E98: 97.05
A99: 2017-07-21 | B99: 2017 | C99: Yanaki | D99: 1908.31 | E99: 954.16
A100: 2017-01-10 | B100: 2017 | C100: Sunset | D100: 490.77 | E100: 319
A101: 2017-07-04 | B101: 2017 | C101: Quad | D101: 671.76 | E101: 409.77
A102: 2016-07-05 | B102: 2016 | C102: Quad | D102: 2301.62 | E102: 920.65
A103: 2017-01-11 | B103: 2017 | C103: Carlota | D103: 502.61 | E103: 206.07
A104: 2018-10-08 | B104: 2018 | C104: Quad | D104: 1047.63 | E104: 408.58
A105: 2018-05-07 | B105: 2018 | C105: Yanaki | D105: 1647.46 | E105: 741.36
A106: 2018-02-06 | B106: 2018 | C106: Sunset | D106: 609.32 | E106: 280.29
A107: 2018-02-10 | B107: 2018 | C107: Yanaki | D107: 489.95 | E107: 279.27
A108: 2018-04-10 | B108: 2018 | C108: Carlota | D108: 234.43 | E108: 126.59
A109: 2018-01-19 | B109: 2018 | C109: Carlota | D109: 1988.25 | E109: 1113.42
A110: 2018-01-16 | B110: 2018 | C110: Sunset | D110: 62.18 | E110: 24.25
A111: 2016-02-06 | B111: 2016 | C111: Yanaki | D111: 598.85 | E111: 269.48
A112: 2016-07-16 | B112: 2016 | C112: Carlota | D112: 2177.11 | E112: 936.16
A113: 2017-03-07 | B113: 2017 | C113: Quad | D113: 2417.35 | E113: 1281.2
A114: 2017-03-03 | B114: 2017 | C114: Carlota | D114: 498.52 | E114: 259.23
A115: 2017-12-22 | B115: 2017 | C115: Sunset | D115: 22.8 | E115: 13.91
A116: 2018-06-23 | B116: 2018 | C116: Quad | D116: 536.25 | E116: 294.94
A117: 2016-02-13 | B117: 2016 | C117: Quad | D117: 1871.36 | E117: 1160.24
A118: 2016-09-09 | B118: 2016 | C118: Sunset | D118: 880.15 | E118: 536.89
A119: 2016-05-13 | B119: 2016 | C119: Carlota | D119: 2115.44 | E119: 1184.65
A120: 2016-08-30 | B120: 2016 | C120: Sunset | D120: 2268.16 | E120: 975.31
A121: 2018-11-20 | B121: 2018 | C121: Carlota | D121: 1800.62 | E121: 954.33
A122: 2018-11-06 | B122: 2018 | C122: Quad | D122: 1860.09 | E122: 781.24
A123: 2018-02-23 | B123: 2018 | C123: Yanaki | D123: 667.55 | E123: 267.02
A124: 2016-11-04 | B124: 2016 | C124: Quad | D124: 989.63 | E124: 653.16
A125: 2016-06-07 | B125: 2016 | C125: Yanaki | D125: 1907.49 | E125: 820.22
A126: 2016-04-08 | B126: 2016 | C126: Quad | D126: 693.75 | E126: 291.38
A127: 2017-11-05 | B127: 2017 | C127: Carlota | D127: 699.22 | E127: 391.56
A128: 2017-07-22 | B128: 2017 | C128: Carlota | D128: 1489.21 | E128: 982.88
A129: 2017-01-25 | B129: 2017 | C129: Yanaki | D129: 987.63 | E129: 414.8
A130: 2018-06-21 | B130: 2018 | C130: Quad | D130: 2037.45 | E130: 1161.35
A131: 2016-02-11 | B131: 2016 | C131: Quad | D131: 2345 | E131: 1430.45
A132: 2018-01-19 | B132: 2018 | C132: Quad | D132: 1496.14 | E132: 703.19
A133: 2018-01-21 | B133: 2018 | C133: Carlota | D133: 836.37 | E133: 368
A134: 2018-06-13 | B134: 2018 | C134: Carlota | D134: 1023.91 | E134: 573.39
A135: 2017-01-25 | B135: 2017 | C135: Sunset | D135: 1553.78 | E135: 776.89
A136: 2017-12-19 | B136: 2017 | C136: Yanaki | D136: 946.52 | E136: 388.07
A137: 2016-06-18 | B137: 2016 | C137: Yanaki | D137: 891.64 | E137: 552.82
A138: 2016-03-02 | B138: 2016 | C138: Sunset | D138: 1042.61 | E138: 552.58
A139: 2018-03-30 | B139: 2018 | C139: Yanaki | D139: 692.89 | E139: 291.01
A140: 2016-05-07 | B140: 2016 | C140: Quad | D140: 2421.14 | E140: 1234.78
A141: 2017-10-08 | B141: 2017 | C141: Carlota | D141: 2459.69 | E141: 1008.47
A142: 2016-06-06 | B142: 2016 | C142: Yanaki | D142: 505.37 | E142: 293.11
A143: 2018-03-04 | B143: 2018 | C143: Sunset | D143: 1349.89 | E143: 566.95
A144: 2018-04-17 | B144: 2018 | C144: Yanaki | D144: 2256.65 | E144: 1196.02
A145: 2017-12-02 | B145: 2017 | C145: Quad | D145: 1068.15 | E145: 480.67
A146: 2017-04-07 | B146: 2017 | C146: Sunset | D146: 488.82 | E146: 303.07
A147: 2016-08-07 | B147: 2016 | C147: Quad | D147: 1549.1 | E147: 805.53
A148: 2017-12-24 | B148: 2017 | C148: Carlota | D148: 984.61 | E148: 384
A149: 2017-08-16 | B149: 2017 | C149: Sunset | D149: 2445.18 | E149: 1295.95
A150: 2017-10-05 | B150: 2017 | C150: Quad | D150: 45.18 | E150: 21.69
A151: 2017-02-02 | B151: 2017 | C151: Yanaki | D151: 2162.32 | E151: 1037.91
A152: 2016-09-18 | B152: 2016 | C152: Sunset | D152: 2345.43 | E152: 1336.9
A153: 2016-01-23 | B153: 2016 | C153: Quad | D153: 968.43 | E153: 571.37
A154: 2018-09-11 | B154: 2018 | C154: Yanaki | D154: 573.76 | E154: 355.73
A155: 2017-04-14 | B155: 2017 | C155: Sunset | D155: 2222.89 | E155: 911.38
A156: 2016-07-09 | B156: 2016 | C156: Yanaki | D156: 1452.43 | E156: 813.36
A157: 2018-02-22 | B157: 2018 | C157: Carlota | D157: 454.62 | E157: 222.76
A158: 2018-01-05 | B158: 2018 | C158: Carlota | D158: 1753.68 | E158: 789.16
A159: 2018-07-31 | B159: 2018 | C159: Sunset | D159: 1623.32 | E159: 795.43
A160: 2018-11-26 | B160: 2018 | C160: Quad | D160: 531.32 | E160: 355.98
A161: 2018-01-23 | B161: 2018 | C161: Yanaki | D161: 2144.95 | E161: 1394.22
A162: 2017-05-28 | B162: 2017 | C162: Sunset | D162: 517.14 | E162: 336.14
A163: 2018-01-29 | B163: 2018 | C163: Quad | D163: 852.54 | E163: 562.68
A164: 2017-07-12 | B164: 2017 | C164: Sunset | D164: 438.5 | E164: 223.64
A165: 2017-03-13 | B165: 2017 | C165: Carlota | D165: 1958.55 | E165: 998.86
A166: 2017-01-12 | B166: 2017 | C166: Quad | D166: 245.23 | E166: 122.62
A167: 2016-09-15 | B167: 2016 | C167: Sunset | D167: 315.6 | E167: 201.98
A168: 2016-03-19 | B168: 2016 | C168: Yanaki | D168: 269.58 | E168: 126.7
A169: 2018-10-07 | B169: 2018 | C169: Sunset | D169: 2106.07 | E169: 1263.64
A170: 2017-04-28 | B170: 2017 | C170: Sunset | D170: 562.73 | E170: 236.35
A171: 2018-05-29 | B171: 2018 | C171: Yanaki | D171: 2347.6 | E171: 962.52
A172: 2018-06-10 | B172: 2018 | C172: Quad | D172: 1197.77 | E172: 598.89
A173: 2016-08-30 | B173: 2016 | C173: Yanaki | D173: 1411.59 | E173: 762.26
A174: 2017-07-27 | B174: 2017 | C174: Quad | D174: 2030.49 | E174: 1258.9
A175: 2018-09-27 | B175: 2018 | C175: Yanaki | D175: 1665.95 | E175: 766.34
A176: 2018-12-16 | B176: 2018 | C176: Sunset | D176: 305.46 | E176: 192.44
A177: 2018-12-30 | B177: 2018 | C177: Carlota | D177: 1913.15 | E177: 1033.1
A178: 2017-04-11 | B178: 2017 | C178: Yanaki | D178: 1838.42 | E178: 772.14
A179: 2016-01-31 | B179: 2016 | C179: Quad | D179: 2043.55 | E179: 1226.13
A180: 2016-10-31 | B180: 2016 | C180: Sunset | D180: 1426.9 | E180: 684.91
A181: 2016-03-13 | B181: 2016 | C181: Sunset | D181: 1997.29 | E181: 778.94
A182: 2017-11-07 | B182: 2017 | C182: Quad | D182: 823.75 | E182: 420.11
A183: 2018-06-14 | B183: 2018 | C183: Yanaki | D183: 1927.75 | E183: 1079.54
A184: 2016-06-14 | B184: 2016 | C184: Carlota | D184: 52.38 | E184: 25.14
A185: 2018-10-25 | B185: 2018 | C185: Quad | D185: 865.26 | E185: 449.94
A186: 2018-11-06 | B186: 2018 | C186: Sunset | D186: 1539.72 | E186: 1016.22
A187: 2016-12-09 | B187: 2016 | C187: Yanaki | D187: 698.67 | E187: 461.12
A188: 2016-03-14 | B188: 2016 | C188: Yanaki | D188: 33.12 | E188: 18.88
A189: 2018-11-15 | B189: 2018 | C189: Yanaki | D189: 1017.6 | E189: 590.21
A190: 2017-12-17 | B190: 2017 | C190: Sunset | D190: 1042 | E190: 666.88
A191: 2017-02-08 | B191: 2017 | C191: Sunset | D191: 1520.64 | E191: 669.08
A192: 2018-09-08 | B192: 2018 | C192: Yanaki | D192: 1780.84 | E192: 979.46
A193: 2018-01-02 | B193: 2018 | C193: Yanaki | D193: 1474.72 | E193: 722.61
A194: 2017-05-27 | B194: 2017 | C194: Quad | D194: 953.44 | E194: 457.65
A195: 2016-09-15 | B195: 2016 | C195: Quad | D195: 1769.66 | E195: 867.13
A196: 2017-03-06 | B196: 2017 | C196: Carlota | D196: 1275.35 | E196: 790.72
A197: 2016-09-27 | B197: 2016 | C197: Sunset | D197: 46.74 | E197: 20.57
A198: 2017-12-19 | B198: 2017 | C198: Carlota | D198: 1351.89 | E198: 851.69
A199: 2016-03-30 | B199: 2016 | C199: Yanaki | D199: 674.89 | E199: 364.44
A200: 2017-12-27 | B200: 2017 | C200: Sunset | D200: 2362.05 | E200: 1251.89
... 465 more rows

Sheet HW(2an)
A1: Date | B1: Year | C1: Product | D1: Sales | E1: COGS | G1: ** Each Record in the table is a sale.
A2: 2018-07-15 | B2: 2018 | C2: Quad | D2: 2453.52 | E2: 1128.62
A3: 2016-02-15 | B3: 2016 | C3: Sunset | D3: 2391.92 | E3: 980.69 | G3: Following Excel's Golden Rule create a formula that will add the sales numbers from the Sales Field when
A4: 2017-11-15 | B4: 2017 | C4: Carlota | D4: 53.23 | E4: 22.89 | G4: the Product is Quad and where the COGS amount in the COGS Field (Column) is greater than 1000. The
A5: 2018-08-31 | B5: 2018 | C5: Carlota | D5: 1558.76 | E5: 888.49 | G5: product criteria and hurdle criteria can change, so you must follow Excel's Golden Rule.
A6: 2018-12-16 | B6: 2018 | C6: Sunset | D6: 917.72 | E6: 568.99
A7: 2018-05-16 | B7: 2018 | C7: Sunset | D7: 1876.27 | E7: 731.75
A8: 2016-12-27 | B8: 2016 | C8: Yanaki | D8: 1487.82 | E8: 684.4 | G8: Criteria:
A9: 2017-09-18 | B9: 2017 | C9: Quad | D9: 2017.73 | E9: 807.09 | G9: Product | H9: Quad
A10: 2018-06-04 | B10: 2018 | C10: Yanaki | D10: 1459.48 | E10: 569.2 | G10: COGS Number Hurdle | H10: >1000
A11: 2018-05-09 | B11: 2018 | C11: Carlota | D11: 1020.18 | E11: 591.7
A12: 2016-07-06 | B12: 2016 | C12: Carlota | D12: 653.87 | E12: 274.63 | G12: Add
A13: 2017-11-09 | B13: 2017 | C13: Yanaki | D13: 1044.37 | E13: 616.18 | G13: =SUMIFS(D2:D665,C2:C665,H9,E2:E665,H10) -> 71991.24
A14: 2017-09-07 | B14: 2017 | C14: Carlota | D14: 1900.47 | E14: 988.24
A15: 2017-04-13 | B15: 2017 | C15: Carlota | D15: 1129.45 | E15: 463.07
A16: 2017-06-20 | B16: 2017 | C16: Carlota | D16: 328.7 | E16: 128.19
A17: 2017-05-26 | B17: 2017 | C17: Sunset | D17: 58 | E17: 36.54
A18: 2018-03-03 | B18: 2018 | C18: Sunset | D18: 1646.76 | E18: 1037.46
A19: 2017-11-10 | B19: 2017 | C19: Carlota | D19: 1865.2 | E19: 895.3
A20: 2017-01-18 | B20: 2017 | C20: Quad | D20: 884.17 | E20: 512.82
A21: 2017-06-12 | B21: 2017 | C21: Quad | D21: 1891.74 | E21: 908.04
A22: 2017-10-08 | B22: 2017 | C22: Sunset | D22: 561.61 | E22: 219.03
A23: 2017-08-27 | B23: 2017 | C23: Quad | D23: 713.19 | E23: 392.25
A24: 2016-03-16 | B24: 2016 | C24: Sunset | D24: 148.6 | E24: 69.84
A25: 2017-08-16 | B25: 2017 | C25: Yanaki | D25: 2436.08 | E25: 1315.48
A26: 2018-01-29 | B26: 2018 | C26: Sunset | D26: 353.67 | E26: 169.76
A27: 2017-11-07 | B27: 2017 | C27: Sunset | D27: 1993.91 | E27: 996.96
A28: 2018-04-27 | B28: 2018 | C28: Yanaki | D28: 1535.67 | E28: 982.83
A29: 2017-05-03 | B29: 2017 | C29: Yanaki | D29: 1058.98 | E29: 645.98
A30: 2017-10-18 | B30: 2017 | C30: Carlota | D30: 725.21 | E30: 362.61
A31: 2017-11-04 | B31: 2017 | C31: Carlota | D31: 1332.83 | E31: 879.67
A32: 2016-07-05 | B32: 2016 | C32: Quad | D32: 1955.26 | E32: 860.31
A33: 2016-10-03 | B33: 2016 | C33: Carlota | D33: 1003.54 | E33: 662.34
A34: 2017-03-12 | B34: 2017 | C34: Sunset | D34: 368.46 | E34: 184.23
A35: 2017-10-11 | B35: 2017 | C35: Quad | D35: 1473.86 | E35: 795.88
A36: 2017-10-24 | B36: 2017 | C36: Yanaki | D36: 539.23 | E36: 285.79
A37: 2016-01-08 | B37: 2016 | C37: Yanaki | D37: 1974.49 | E37: 908.27
A38: 2017-08-17 | B38: 2017 | C38: Yanaki | D38: 1931.47 | E38: 1081.62
A39: 2016-11-14 | B39: 2016 | C39: Yanaki | D39: 1449.29 | E39: 884.07
A40: 2017-06-18 | B40: 2017 | C40: Carlota | D40: 2307.69 | E40: 1038.46
A41: 2018-04-03 | B41: 2018 | C41: Quad | D41: 1115.13 | E41: 490.66
A42: 2016-01-15 | B42: 2016 | C42: Sunset | D42: 29.88 | E42: 16.14
A43: 2017-02-28 | B43: 2017 | C43: Carlota | D43: 2154.95 | E43: 1077.48
A44: 2016-03-04 | B44: 2016 | C44: Quad | D44: 1234.86 | E44: 815.01
A45: 2017-09-22 | B45: 2017 | C45: Yanaki | D45: 2154.18 | E45: 1206.34
A46: 2017-07-23 | B46: 2017 | C46: Quad | D46: 1744.62 | E46: 872.31
A47: 2018-06-18 | B47: 2018 | C47: Yanaki | D47: 2298.45 | E47: 1126.24
A48: 2016-08-14 | B48: 2016 | C48: Quad | D48: 494.28 | E48: 271.85
A49: 2016-03-09 | B49: 2016 | C49: Sunset | D49: 2253.03 | E49: 1149.05
A50: 2017-03-01 | B50: 2017 | C50: Sunset | D50: 1478.09 | E50: 768.61
A51: 2018-11-02 | B51: 2018 | C51: Carlota | D51: 678.92 | E51: 325.88
A52: 2018-04-11 | B52: 2018 | C52: Sunset | D52: 143.51 | E52: 71.76
A53: 2016-02-25 | B53: 2016 | C53: Carlota | D53: 1868.96 | E53: 747.58
A54: 2017-06-13 | B54: 2017 | C54: Carlota | D54: 1549.63 | E54: 604.36
A55: 2016-11-08 | B55: 2016 | C55: Sunset | D55: 937.24 | E55: 459.25
A56: 2018-05-07 | B56: 2018 | C56: Sunset | D56: 109.84 | E56: 54.92
A57: 2017-02-16 | B57: 2017 | C57: Carlota | D57: 747.68 | E57: 500.95
A58: 2017-05-31 | B58: 2017 | C58: Carlota | D58: 443.35 | E58: 252.71
A59: 2016-01-27 | B59: 2016 | C59: Carlota | D59: 1129.85 | E59: 723.1
A60: 2016-09-19 | B60: 2016 | C60: Yanaki | D60: 2202.75 | E60: 947.18
A61: 2016-02-05 | B61: 2016 | C61: Quad | D61: 29.56 | E61: 11.82
A62: 2016-04-13 | B62: 2016 | C62: Quad | D62: 2088.42 | E62: 1294.82
A63: 2017-03-23 | B63: 2017 | C63: Sunset | D63: 708.14 | E63: 446.13
A64: 2018-12-08 | B64: 2018 | C64: Carlota | D64: 44.86 | E64: 26.47
A65: 2017-09-19 | B65: 2017 | C65: Yanaki | D65: 1665.87 | E65: 866.25
A66: 2018-01-08 | B66: 2018 | C66: Quad | D66: 1657.26 | E66: 977.78
A67: 2017-01-28 | B67: 2017 | C67: Sunset | D67: 1543.94 | E67: 679.33
A68: 2016-07-20 | B68: 2016 | C68: Quad | D68: 1362.96 | E68: 708.74
A69: 2017-06-17 | B69: 2017 | C69: Quad | D69: 308.4 | E69: 141.86
A70: 2017-03-10 | B70: 2017 | C70: Carlota | D70: 2495.48 | E70: 1098.01
A71: 2017-05-10 | B71: 2017 | C71: Yanaki | D71: 402.76 | E71: 189.3
A72: 2018-05-08 | B72: 2018 | C72: Carlota | D72: 1421.93 | E72: 639.87
A73: 2016-01-05 | B73: 2016 | C73: Sunset | D73: 1172.31 | E73: 644.77
A74: 2017-04-09 | B74: 2017 | C74: Sunset | D74: 2070.49 | E74: 1345.82
A75: 2018-12-29 | B75: 2018 | C75: Quad | D75: 1965.34 | E75: 786.14
A76: 2016-06-21 | B76: 2016 | C76: Yanaki | D76: 1833 | E76: 879.84
A77: 2018-04-07 | B77: 2018 | C77: Yanaki | D77: 2151.45 | E77: 1312.38
A78: 2017-05-05 | B78: 2017 | C78: Yanaki | D78: 673.95 | E78: 384.15
A79: 2018-01-17 | B79: 2018 | C79: Quad | D79: 561.58 | E79: 247.1
A80: 2017-08-10 | B80: 2017 | C80: Carlota | D80: 1342.24 | E80: 711.39
A81: 2018-07-05 | B81: 2018 | C81: Sunset | D81: 1754.6 | E81: 789.57
A82: 2018-01-29 | B82: 2018 | C82: Sunset | D82: 214.29 | E82: 109.29
A83: 2017-02-27 | B83: 2017 | C83: Carlota | D83: 1561.54 | E83: 952.54
A84: 2018-03-06 | B84: 2018 | C84: Quad | D84: 1673.37 | E84: 870.15
A85: 2018-11-10 | B85: 2018 | C85: Quad | D85: 773.05 | E85: 440.64
A86: 2018-10-12 | B86: 2018 | C86: Quad | D86: 418.72 | E86: 230.3
A87: 2017-10-25 | B87: 2017 | C87: Yanaki | D87: 1946.44 | E87: 1051.08
A88: 2017-02-25 | B88: 2017 | C88: Carlota | D88: 770.94 | E88: 339.21
A89: 2018-08-20 | B89: 2018 | C89: Sunset | D89: 1222.49 | E89: 770.17
A90: 2018-03-25 | B90: 2018 | C90: Quad | D90: 1395.46 | E90: 851.23
A91: 2017-06-10 | B91: 2017 | C91: Quad | D91: 1520.63 | E91: 851.55
A92: 2016-09-22 | B92: 2016 | C92: Carlota | D92: 1094.5 | E92: 689.54
A93: 2017-03-14 | B93: 2017 | C93: Sunset | D93: 76.96 | E93: 33.86
A94: 2017-10-08 | B94: 2017 | C94: Sunset | D94: 234.72 | E94: 152.57
A95: 2017-02-27 | B95: 2017 | C95: Quad | D95: 2003.25 | E95: 1041.69
A96: 2017-05-24 | B96: 2017 | C96: Sunset | D96: 1688.01 | E96: 1063.45
A97: 2016-12-29 | B97: 2016 | C97: Carlota | D97: 1538.35 | E97: 815.33
A98: 2017-05-01 | B98: 2017 | C98: Yanaki | D98: 147.04 | E98: 97.05
A99: 2017-07-21 | B99: 2017 | C99: Yanaki | D99: 1908.31 | E99: 954.16
A100: 2017-01-10 | B100: 2017 | C100: Sunset | D100: 490.77 | E100: 319
A101: 2017-07-04 | B101: 2017 | C101: Quad | D101: 671.76 | E101: 409.77
A102: 2016-07-05 | B102: 2016 | C102: Quad | D102: 2301.62 | E102: 920.65
A103: 2017-01-11 | B103: 2017 | C103: Carlota | D103: 502.61 | E103: 206.07
A104: 2018-10-08 | B104: 2018 | C104: Quad | D104: 1047.63 | E104: 408.58
A105: 2018-05-07 | B105: 2018 | C105: Yanaki | D105: 1647.46 | E105: 741.36
A106: 2018-02-06 | B106: 2018 | C106: Sunset | D106: 609.32 | E106: 280.29
A107: 2018-02-10 | B107: 2018 | C107: Yanaki | D107: 489.95 | E107: 279.27
A108: 2018-04-10 | B108: 2018 | C108: Carlota | D108: 234.43 | E108: 126.59
A109: 2018-01-19 | B109: 2018 | C109: Carlota | D109: 1988.25 | E109: 1113.42
A110: 2018-01-16 | B110: 2018 | C110: Sunset | D110: 62.18 | E110: 24.25
A111: 2016-02-06 | B111: 2016 | C111: Yanaki | D111: 598.85 | E111: 269.48
A112: 2016-07-16 | B112: 2016 | C112: Carlota | D112: 2177.11 | E112: 936.16
A113: 2017-03-07 | B113: 2017 | C113: Quad | D113: 2417.35 | E113: 1281.2
A114: 2017-03-03 | B114: 2017 | C114: Carlota | D114: 498.52 | E114: 259.23
A115: 2017-12-22 | B115: 2017 | C115: Sunset | D115: 22.8 | E115: 13.91
A116: 2018-06-23 | B116: 2018 | C116: Quad | D116: 536.25 | E116: 294.94
A117: 2016-02-13 | B117: 2016 | C117: Quad | D117: 1871.36 | E117: 1160.24
A118: 2016-09-09 | B118: 2016 | C118: Sunset | D118: 880.15 | E118: 536.89
A119: 2016-05-13 | B119: 2016 | C119: Carlota | D119: 2115.44 | E119: 1184.65
A120: 2016-08-30 | B120: 2016 | C120: Sunset | D120: 2268.16 | E120: 975.31
A121: 2018-11-20 | B121: 2018 | C121: Carlota | D121: 1800.62 | E121: 954.33
A122: 2018-11-06 | B122: 2018 | C122: Quad | D122: 1860.09 | E122: 781.24
A123: 2018-02-23 | B123: 2018 | C123: Yanaki | D123: 667.55 | E123: 267.02
A124: 2016-11-04 | B124: 2016 | C124: Quad | D124: 989.63 | E124: 653.16
A125: 2016-06-07 | B125: 2016 | C125: Yanaki | D125: 1907.49 | E125: 820.22
A126: 2016-04-08 | B126: 2016 | C126: Quad | D126: 693.75 | E126: 291.38
A127: 2017-11-05 | B127: 2017 | C127: Carlota | D127: 699.22 | E127: 391.56
A128: 2017-07-22 | B128: 2017 | C128: Carlota | D128: 1489.21 | E128: 982.88
A129: 2017-01-25 | B129: 2017 | C129: Yanaki | D129: 987.63 | E129: 414.8
A130: 2018-06-21 | B130: 2018 | C130: Quad | D130: 2037.45 | E130: 1161.35
A131: 2016-02-11 | B131: 2016 | C131: Quad | D131: 2345 | E131: 1430.45
A132: 2018-01-19 | B132: 2018 | C132: Quad | D132: 1496.14 | E132: 703.19
A133: 2018-01-21 | B133: 2018 | C133: Carlota | D133: 836.37 | E133: 368
A134: 2018-06-13 | B134: 2018 | C134: Carlota | D134: 1023.91 | E134: 573.39
A135: 2017-01-25 | B135: 2017 | C135: Sunset | D135: 1553.78 | E135: 776.89
A136: 2017-12-19 | B136: 2017 | C136: Yanaki | D136: 946.52 | E136: 388.07
A137: 2016-06-18 | B137: 2016 | C137: Yanaki | D137: 891.64 | E137: 552.82
A138: 2016-03-02 | B138: 2016 | C138: Sunset | D138: 1042.61 | E138: 552.58
A139: 2018-03-30 | B139: 2018 | C139: Yanaki | D139: 692.89 | E139: 291.01
A140: 2016-05-07 | B140: 2016 | C140: Quad | D140: 2421.14 | E140: 1234.78
A141: 2017-10-08 | B141: 2017 | C141: Carlota | D141: 2459.69 | E141: 1008.47
A142: 2016-06-06 | B142: 2016 | C142: Yanaki | D142: 505.37 | E142: 293.11
A143: 2018-03-04 | B143: 2018 | C143: Sunset | D143: 1349.89 | E143: 566.95
A144: 2018-04-17 | B144: 2018 | C144: Yanaki | D144: 2256.65 | E144: 1196.02
A145: 2017-12-02 | B145: 2017 | C145: Quad | D145: 1068.15 | E145: 480.67
A146: 2017-04-07 | B146: 2017 | C146: Sunset | D146: 488.82 | E146: 303.07
A147: 2016-08-07 | B147: 2016 | C147: Quad | D147: 1549.1 | E147: 805.53
A148: 2017-12-24 | B148: 2017 | C148: Carlota | D148: 984.61 | E148: 384
A149: 2017-08-16 | B149: 2017 | C149: Sunset | D149: 2445.18 | E149: 1295.95
A150: 2017-10-05 | B150: 2017 | C150: Quad | D150: 45.18 | E150: 21.69
A151: 2017-02-02 | B151: 2017 | C151: Yanaki | D151: 2162.32 | E151: 1037.91
A152: 2016-09-18 | B152: 2016 | C152: Sunset | D152: 2345.43 | E152: 1336.9
A153: 2016-01-23 | B153: 2016 | C153: Quad | D153: 968.43 | E153: 571.37
A154: 2018-09-11 | B154: 2018 | C154: Yanaki | D154: 573.76 | E154: 355.73
A155: 2017-04-14 | B155: 2017 | C155: Sunset | D155: 2222.89 | E155: 911.38
A156: 2016-07-09 | B156: 2016 | C156: Yanaki | D156: 1452.43 | E156: 813.36
A157: 2018-02-22 | B157: 2018 | C157: Carlota | D157: 454.62 | E157: 222.76
A158: 2018-01-05 | B158: 2018 | C158: Carlota | D158: 1753.68 | E158: 789.16
A159: 2018-07-31 | B159: 2018 | C159: Sunset | D159: 1623.32 | E159: 795.43
A160: 2018-11-26 | B160: 2018 | C160: Quad | D160: 531.32 | E160: 355.98
A161: 2018-01-23 | B161: 2018 | C161: Yanaki | D161: 2144.95 | E161: 1394.22
A162: 2017-05-28 | B162: 2017 | C162: Sunset | D162: 517.14 | E162: 336.14
A163: 2018-01-29 | B163: 2018 | C163: Quad | D163: 852.54 | E163: 562.68
A164: 2017-07-12 | B164: 2017 | C164: Sunset | D164: 438.5 | E164: 223.64
A165: 2017-03-13 | B165: 2017 | C165: Carlota | D165: 1958.55 | E165: 998.86
A166: 2017-01-12 | B166: 2017 | C166: Quad | D166: 245.23 | E166: 122.62
A167: 2016-09-15 | B167: 2016 | C167: Sunset | D167: 315.6 | E167: 201.98
A168: 2016-03-19 | B168: 2016 | C168: Yanaki | D168: 269.58 | E168: 126.7
A169: 2018-10-07 | B169: 2018 | C169: Sunset | D169: 2106.07 | E169: 1263.64
A170: 2017-04-28 | B170: 2017 | C170: Sunset | D170: 562.73 | E170: 236.35
A171: 2018-05-29 | B171: 2018 | C171: Yanaki | D171: 2347.6 | E171: 962.52
A172: 2018-06-10 | B172: 2018 | C172: Quad | D172: 1197.77 | E172: 598.89
A173: 2016-08-30 | B173: 2016 | C173: Yanaki | D173: 1411.59 | E173: 762.26
A174: 2017-07-27 | B174: 2017 | C174: Quad | D174: 2030.49 | E174: 1258.9
A175: 2018-09-27 | B175: 2018 | C175: Yanaki | D175: 1665.95 | E175: 766.34
A176: 2018-12-16 | B176: 2018 | C176: Sunset | D176: 305.46 | E176: 192.44
A177: 2018-12-30 | B177: 2018 | C177: Carlota | D177: 1913.15 | E177: 1033.1
A178: 2017-04-11 | B178: 2017 | C178: Yanaki | D178: 1838.42 | E178: 772.14
A179: 2016-01-31 | B179: 2016 | C179: Quad | D179: 2043.55 | E179: 1226.13
A180: 2016-10-31 | B180: 2016 | C180: Sunset | D180: 1426.9 | E180: 684.91
A181: 2016-03-13 | B181: 2016 | C181: Sunset | D181: 1997.29 | E181: 778.94
A182: 2017-11-07 | B182: 2017 | C182: Quad | D182: 823.75 | E182: 420.11
A183: 2018-06-14 | B183: 2018 | C183: Yanaki | D183: 1927.75 | E183: 1079.54
A184: 2016-06-14 | B184: 2016 | C184: Carlota | D184: 52.38 | E184: 25.14
A185: 2018-10-25 | B185: 2018 | C185: Quad | D185: 865.26 | E185: 449.94
A186: 2018-11-06 | B186: 2018 | C186: Sunset | D186: 1539.72 | E186: 1016.22
A187: 2016-12-09 | B187: 2016 | C187: Yanaki | D187: 698.67 | E187: 461.12
A188: 2016-03-14 | B188: 2016 | C188: Yanaki | D188: 33.12 | E188: 18.88
A189: 2018-11-15 | B189: 2018 | C189: Yanaki | D189: 1017.6 | E189: 590.21
A190: 2017-12-17 | B190: 2017 | C190: Sunset | D190: 1042 | E190: 666.88
A191: 2017-02-08 | B191: 2017 | C191: Sunset | D191: 1520.64 | E191: 669.08
A192: 2018-09-08 | B192: 2018 | C192: Yanaki | D192: 1780.84 | E192: 979.46
A193: 2018-01-02 | B193: 2018 | C193: Yanaki | D193: 1474.72 | E193: 722.61
A194: 2017-05-27 | B194: 2017 | C194: Quad | D194: 953.44 | E194: 457.65
A195: 2016-09-15 | B195: 2016 | C195: Quad | D195: 1769.66 | E195: 867.13
A196: 2017-03-06 | B196: 2017 | C196: Carlota | D196: 1275.35 | E196: 790.72
A197: 2016-09-27 | B197: 2016 | C197: Sunset | D197: 46.74 | E197: 20.57
A198: 2017-12-19 | B198: 2017 | C198: Carlota | D198: 1351.89 | E198: 851.69
A199: 2016-03-30 | B199: 2016 | C199: Yanaki | D199: 674.89 | E199: 364.44
A200: 2017-12-27 | B200: 2017 | C200: Sunset | D200: 2362.05 | E200: 1251.89
... 465 more rows

Sheet HW(3)
A1: Date | B1: Year | C1: Product | D1: Sales | E1: COGS | G1: ** Each Record in the table is a sale.
A2: 2018-07-15 | B2: 2018 | C2: Quad | D2: 2453.52 | E2: 1128.62
A3: 2016-02-15 | B3: 2016 | C3: Sunset | D3: 2391.92 | E3: 980.69 | G3: Following Excel's Golden Rule create a formula that will average the sales numbers from the Sales Field
A4: 2017-11-15 | B4: 2017 | C4: Carlota | D4: 53.23 | E4: 22.89 | G4: for each Product, where the year is 2018. The Product criteria and Year criteria can change,
A5: 2018-08-31 | B5: 2018 | C5: Carlota | D5: 1558.76 | E5: 888.49 | G5: so you must follow Excel's Golden Rule.
A6: 2018-12-16 | B6: 2018 | C6: Sunset | D6: 917.72 | E6: 568.99
A7: 2018-05-16 | B7: 2018 | C7: Sunset | D7: 1876.27 | E7: 731.75
A8: 2016-12-27 | B8: 2016 | C8: Yanaki | D8: 1487.82 | E8: 684.4
A9: 2017-09-18 | B9: 2017 | C9: Quad | D9: 2017.73 | E9: 807.09 | G9: Year | H9: 2018
A10: 2018-06-04 | B10: 2018 | C10: Yanaki | D10: 1459.48 | E10: 569.2
A11: 2018-05-09 | B11: 2018 | C11: Carlota | D11: 1020.18 | E11: 591.7 | G11: Product | H11: Ave
A12: 2016-07-06 | B12: 2016 | C12: Carlota | D12: 653.87 | E12: 274.63 | G12: Quad
A13: 2017-11-09 | B13: 2017 | C13: Yanaki | D13: 1044.37 | E13: 616.18 | G13: Sunset
A14: 2017-09-07 | B14: 2017 | C14: Carlota | D14: 1900.47 | E14: 988.24 | G14: Carlota
A15: 2017-04-13 | B15: 2017 | C15: Carlota | D15: 1129.45 | E15: 463.07 | G15: Yanaki
A16: 2017-06-20 | B16: 2017 | C16: Carlota | D16: 328.7 | E16: 128.19
A17: 2017-05-26 | B17: 2017 | C17: Sunset | D17: 58 | E17: 36.54
A18: 2018-03-03 | B18: 2018 | C18: Sunset | D18: 1646.76 | E18: 1037.46
A19: 2017-11-10 | B19: 2017 | C19: Carlota | D19: 1865.2 | E19: 895.3
A20: 2017-01-18 | B20: 2017 | C20: Quad | D20: 884.17 | E20: 512.82
A21: 2017-06-12 | B21: 2017 | C21: Quad | D21: 1891.74 | E21: 908.04
A22: 2017-10-08 | B22: 2017 | C22: Sunset | D22: 561.61 | E22: 219.03
A23: 2017-08-27 | B23: 2017 | C23: Quad | D23: 713.19 | E23: 392.25
A24: 2016-03-16 | B24: 2016 | C24: Sunset | D24: 148.6 | E24: 69.84
A25: 2017-08-16 | B25: 2017 | C25: Yanaki | D25: 2436.08 | E25: 1315.48
A26: 2018-01-29 | B26: 2018 | C26: Sunset | D26: 353.67 | E26: 169.76
A27: 2017-11-07 | B27: 2017 | C27: Sunset | D27: 1993.91 | E27: 996.96
A28: 2018-04-27 | B28: 2018 | C28: Yanaki | D28: 1535.67 | E28: 982.83
A29: 2017-05-03 | B29: 2017 | C29: Yanaki | D29: 1058.98 | E29: 645.98
A30: 2017-10-18 | B30: 2017 | C30: Carlota | D30: 725.21 | E30: 362.61
A31: 2017-11-04 | B31: 2017 | C31: Carlota | D31: 1332.83 | E31: 879.67
A32: 2016-07-05 | B32: 2016 | C32: Quad | D32: 1955.26 | E32: 860.31
A33: 2016-10-03 | B33: 2016 | C33: Carlota | D33: 1003.54 | E33: 662.34
A34: 2017-03-12 | B34: 2017 | C34: Sunset | D34: 368.46 | E34: 184.23
A35: 2017-10-11 | B35: 2017 | C35: Quad | D35: 1473.86 | E35: 795.88
A36: 2017-10-24 | B36: 2017 | C36: Yanaki | D36: 539.23 | E36: 285.79
A37: 2016-01-08 | B37: 2016 | C37: Yanaki | D37: 1974.49 | E37: 908.27
A38: 2017-08-17 | B38: 2017 | C38: Yanaki | D38: 1931.47 | E38: 1081.62
A39: 2016-11-14 | B39: 2016 | C39: Yanaki | D39: 1449.29 | E39: 884.07
A40: 2017-06-18 | B40: 2017 | C40: Carlota | D40: 2307.69 | E40: 1038.46
A41: 2018-04-03 | B41: 2018 | C41: Quad | D41: 1115.13 | E41: 490.66
A42: 2016-01-15 | B42: 2016 | C42: Sunset | D42: 29.88 | E42: 16.14
A43: 2017-02-28 | B43: 2017 | C43: Carlota | D43: 2154.95 | E43: 1077.48
A44: 2016-03-04 | B44: 2016 | C44: Quad | D44: 1234.86 | E44: 815.01
A45: 2017-09-22 | B45: 2017 | C45: Yanaki | D45: 2154.18 | E45: 1206.34
A46: 2017-07-23 | B46: 2017 | C46: Quad | D46: 1744.62 | E46: 872.31
A47: 2018-06-18 | B47: 2018 | C47: Yanaki | D47: 2298.45 | E47: 1126.24
A48: 2016-08-14 | B48: 2016 | C48: Quad | D48: 494.28 | E48: 271.85
A49: 2016-03-09 | B49: 2016 | C49: Sunset | D49: 2253.03 | E49: 1149.05
A50: 2017-03-01 | B50: 2017 | C50: Sunset | D50: 1478.09 | E50: 768.61
A51: 2018-11-02 | B51: 2018 | C51: Carlota | D51: 678.92 | E51: 325.88
A52: 2018-04-11 | B52: 2018 | C52: Sunset | D52: 143.51 | E52: 71.76
A53: 2016-02-25 | B53: 2016 | C53: Carlota | D53: 1868.96 | E53: 747.58
A54: 2017-06-13 | B54: 2017 | C54: Carlota | D54: 1549.63 | E54: 604.36
A55: 2016-11-08 | B55: 2016 | C55: Sunset | D55: 937.24 | E55: 459.25
A56: 2018-05-07 | B56: 2018 | C56: Sunset | D56: 109.84 | E56: 54.92
A57: 2017-02-16 | B57: 2017 | C57: Carlota | D57: 747.68 | E57: 500.95
A58: 2017-05-31 | B58: 2017 | C58: Carlota | D58: 443.35 | E58: 252.71
A59: 2016-01-27 | B59: 2016 | C59: Carlota | D59: 1129.85 | E59: 723.1
A60: 2016-09-19 | B60: 2016 | C60: Yanaki | D60: 2202.75 | E60: 947.18
A61: 2016-02-05 | B61: 2016 | C61: Quad | D61: 29.56 | E61: 11.82
A62: 2016-04-13 | B62: 2016 | C62: Quad | D62: 2088.42 | E62: 1294.82
A63: 2017-03-23 | B63: 2017 | C63: Sunset | D63: 708.14 | E63: 446.13
A64: 2018-12-08 | B64: 2018 | C64: Carlota | D64: 44.86 | E64: 26.47
A65: 2017-09-19 | B65: 2017 | C65: Yanaki | D65: 1665.87 | E65: 866.25
A66: 2018-01-08 | B66: 2018 | C66: Quad | D66: 1657.26 | E66: 977.78
A67: 2017-01-28 | B67: 2017 | C67: Sunset | D67: 1543.94 | E67: 679.33
A68: 2016-07-20 | B68: 2016 | C68: Quad | D68: 1362.96 | E68: 708.74
A69: 2017-06-17 | B69: 2017 | C69: Quad | D69: 308.4 | E69: 141.86
A70: 2017-03-10 | B70: 2017 | C70: Carlota | D70: 2495.48 | E70: 1098.01
A71: 2017-05-10 | B71: 2017 | C71: Yanaki | D71: 402.76 | E71: 189.3
A72: 2018-05-08 | B72: 2018 | C72: Carlota | D72: 1421.93 | E72: 639.87
A73: 2016-01-05 | B73: 2016 | C73: Sunset | D73: 1172.31 | E73: 644.77
A74: 2017-04-09 | B74: 2017 | C74: Sunset | D74: 2070.49 | E74: 1345.82
A75: 2018-12-29 | B75: 2018 | C75: Quad | D75: 1965.34 | E75: 786.14
A76: 2016-06-21 | B76: 2016 | C76: Yanaki | D76: 1833 | E76: 879.84
A77: 2018-04-07 | B77: 2018 | C77: Yanaki | D77: 2151.45 | E77: 1312.38
A78: 2017-05-05 | B78: 2017 | C78: Yanaki | D78: 673.95 | E78: 384.15
A79: 2018-01-17 | B79: 2018 | C79: Quad | D79: 561.58 | E79: 247.1
A80: 2017-08-10 | B80: 2017 | C80: Carlota | D80: 1342.24 | E80: 711.39
A81: 2018-07-05 | B81: 2018 | C81: Sunset | D81: 1754.6 | E81: 789.57
A82: 2018-01-29 | B82: 2018 | C82: Sunset | D82: 214.29 | E82: 109.29
A83: 2017-02-27 | B83: 2017 | C83: Carlota | D83: 1561.54 | E83: 952.54
A84: 2018-03-06 | B84: 2018 | C84: Quad | D84: 1673.37 | E84: 870.15
A85: 2018-11-10 | B85: 2018 | C85: Quad | D85: 773.05 | E85: 440.64
A86: 2018-10-12 | B86: 2018 | C86: Quad | D86: 418.72 | E86: 230.3
A87: 2017-10-25 | B87: 2017 | C87: Yanaki | D87: 1946.44 | E87: 1051.08
A88: 2017-02-25 | B88: 2017 | C88: Carlota | D88: 770.94 | E88: 339.21
A89: 2018-08-20 | B89: 2018 | C89: Sunset | D89: 1222.49 | E89: 770.17
A90: 2018-03-25 | B90: 2018 | C90: Quad | D90: 1395.46 | E90: 851.23
A91: 2017-06-10 | B91: 2017 | C91: Quad | D91: 1520.63 | E91: 851.55
A92: 2016-09-22 | B92: 2016 | C92: Carlota | D92: 1094.5 | E92: 689.54
A93: 2017-03-14 | B93: 2017 | C93: Sunset | D93: 76.96 | E93: 33.86
A94: 2017-10-08 | B94: 2017 | C94: Sunset | D94: 234.72 | E94: 152.57
A95: 2017-02-27 | B95: 2017 | C95: Quad | D95: 2003.25 | E95: 1041.69
A96: 2017-05-24 | B96: 2017 | C96: Sunset | D96: 1688.01 | E96: 1063.45
A97: 2016-12-29 | B97: 2016 | C97: Carlota | D97: 1538.35 | E97: 815.33
A98: 2017-05-01 | B98: 2017 | C98: Yanaki | D98: 147.04 | E98: 97.05
A99: 2017-07-21 | B99: 2017 | C99: Yanaki | D99: 1908.31 | E99: 954.16
A100: 2017-01-10 | B100: 2017 | C100: Sunset | D100: 490.77 | E100: 319
A101: 2017-07-04 | B101: 2017 | C101: Quad | D101: 671.76 | E101: 409.77
A102: 2016-07-05 | B102: 2016 | C102: Quad | D102: 2301.62 | E102: 920.65
A103: 2017-01-11 | B103: 2017 | C103: Carlota | D103: 502.61 | E103: 206.07
A104: 2018-10-08 | B104: 2018 | C104: Quad | D104: 1047.63 | E104: 408.58
A105: 2018-05-07 | B105: 2018 | C105: Yanaki | D105: 1647.46 | E105: 741.36
A106: 2018-02-06 | B106: 2018 | C106: Sunset | D106: 609.32 | E106: 280.29
A107: 2018-02-10 | B107: 2018 | C107: Yanaki | D107: 489.95 | E107: 279.27
A108: 2018-04-10 | B108: 2018 | C108: Carlota | D108: 234.43 | E108: 126.59
A109: 2018-01-19 | B109: 2018 | C109: Carlota | D109: 1988.25 | E109: 1113.42
A110: 2018-01-16 | B110: 2018 | C110: Sunset | D110: 62.18 | E110: 24.25
A111: 2016-02-06 | B111: 2016 | C111: Yanaki | D111: 598.85 | E111: 269.48
A112: 2016-07-16 | B112: 2016 | C112: Carlota | D112: 2177.11 | E112: 936.16
A113: 2017-03-07 | B113: 2017 | C113: Quad | D113: 2417.35 | E113: 1281.2
A114: 2017-03-03 | B114: 2017 | C114: Carlota | D114: 498.52 | E114: 259.23
A115: 2017-12-22 | B115: 2017 | C115: Sunset | D115: 22.8 | E115: 13.91
A116: 2018-06-23 | B116: 2018 | C116: Quad | D116: 536.25 | E116: 294.94
A117: 2016-02-13 | B117: 2016 | C117: Quad | D117: 1871.36 | E117: 1160.24
A118: 2016-09-09 | B118: 2016 | C118: Sunset | D118: 880.15 | E118: 536.89
A119: 2016-05-13 | B119: 2016 | C119: Carlota | D119: 2115.44 | E119: 1184.65
A120: 2016-08-30 | B120: 2016 | C120: Sunset | D120: 2268.16 | E120: 975.31
A121: 2018-11-20 | B121: 2018 | C121: Carlota | D121: 1800.62 | E121: 954.33
A122: 2018-11-06 | B122: 2018 | C122: Quad | D122: 1860.09 | E122: 781.24
A123: 2018-02-23 | B123: 2018 | C123: Yanaki | D123: 667.55 | E123: 267.02
A124: 2016-11-04 | B124: 2016 | C124: Quad | D124: 989.63 | E124: 653.16
A125: 2016-06-07 | B125: 2016 | C125: Yanaki | D125: 1907.49 | E125: 820.22
A126: 2016-04-08 | B126: 2016 | C126: Quad | D126: 693.75 | E126: 291.38
A127: 2017-11-05 | B127: 2017 | C127: Carlota | D127: 699.22 | E127: 391.56
A128: 2017-07-22 | B128: 2017 | C128: Carlota | D128: 1489.21 | E128: 982.88
A129: 2017-01-25 | B129: 2017 | C129: Yanaki | D129: 987.63 | E129: 414.8
A130: 2018-06-21 | B130: 2018 | C130: Quad | D130: 2037.45 | E130: 1161.35
A131: 2016-02-11 | B131: 2016 | C131: Quad | D131: 2345 | E131: 1430.45
A132: 2018-01-19 | B132: 2018 | C132: Quad | D132: 1496.14 | E132: 703.19
A133: 2018-01-21 | B133: 2018 | C133: Carlota | D133: 836.37 | E133: 368
A134: 2018-06-13 | B134: 2018 | C134: Carlota | D134: 1023.91 | E134: 573.39
A135: 2017-01-25 | B135: 2017 | C135: Sunset | D135: 1553.78 | E135: 776.89
A136: 2017-12-19 | B136: 2017 | C136: Yanaki | D136: 946.52 | E136: 388.07
A137: 2016-06-18 | B137: 2016 | C137: Yanaki | D137: 891.64 | E137: 552.82
A138: 2016-03-02 | B138: 2016 | C138: Sunset | D138: 1042.61 | E138: 552.58
A139: 2018-03-30 | B139: 2018 | C139: Yanaki | D139: 692.89 | E139: 291.01
A140: 2016-05-07 | B140: 2016 | C140: Quad | D140: 2421.14 | E140: 1234.78
A141: 2017-10-08 | B141: 2017 | C141: Carlota | D141: 2459.69 | E141: 1008.47
A142: 2016-06-06 | B142: 2016 | C142: Yanaki | D142: 505.37 | E142: 293.11
A143: 2018-03-04 | B143: 2018 | C143: Sunset | D143: 1349.89 | E143: 566.95
A144: 2018-04-17 | B144: 2018 | C144: Yanaki | D144: 2256.65 | E144: 1196.02
A145: 2017-12-02 | B145: 2017 | C145: Quad | D145: 1068.15 | E145: 480.67
A146: 2017-04-07 | B146: 2017 | C146: Sunset | D146: 488.82 | E146: 303.07
A147: 2016-08-07 | B147: 2016 | C147: Quad | D147: 1549.1 | E147: 805.53
A148: 2017-12-24 | B148: 2017 | C148: Carlota | D148: 984.61 | E148: 384
A149: 2017-08-16 | B149: 2017 | C149: Sunset | D149: 2445.18 | E149: 1295.95
A150: 2017-10-05 | B150: 2017 | C150: Quad | D150: 45.18 | E150: 21.69
A151: 2017-02-02 | B151: 2017 | C151: Yanaki | D151: 2162.32 | E151: 1037.91
A152: 2016-09-18 | B152: 2016 | C152: Sunset | D152: 2345.43 | E152: 1336.9
A153: 2016-01-23 | B153: 2016 | C153: Quad | D153: 968.43 | E153: 571.37
A154: 2018-09-11 | B154: 2018 | C154: Yanaki | D154: 573.76 | E154: 355.73
A155: 2017-04-14 | B155: 2017 | C155: Sunset | D155: 2222.89 | E155: 911.38
A156: 2016-07-09 | B156: 2016 | C156: Yanaki | D156: 1452.43 | E156: 813.36
A157: 2018-02-22 | B157: 2018 | C157: Carlota | D157: 454.62 | E157: 222.76
A158: 2018-01-05 | B158: 2018 | C158: Carlota | D158: 1753.68 | E158: 789.16
A159: 2018-07-31 | B159: 2018 | C159: Sunset | D159: 1623.32 | E159: 795.43
A160: 2018-11-26 | B160: 2018 | C160: Quad | D160: 531.32 | E160: 355.98
A161: 2018-01-23 | B161: 2018 | C161: Yanaki | D161: 2144.95 | E161: 1394.22
A162: 2017-05-28 | B162: 2017 | C162: Sunset | D162: 517.14 | E162: 336.14
A163: 2018-01-29 | B163: 2018 | C163: Quad | D163: 852.54 | E163: 562.68
A164: 2017-07-12 | B164: 2017 | C164: Sunset | D164: 438.5 | E164: 223.64
A165: 2017-03-13 | B165: 2017 | C165: Carlota | D165: 1958.55 | E165: 998.86
A166: 2017-01-12 | B166: 2017 | C166: Quad | D166: 245.23 | E166: 122.62
A167: 2016-09-15 | B167: 2016 | C167: Sunset | D167: 315.6 | E167: 201.98
A168: 2016-03-19 | B168: 2016 | C168: Yanaki | D168: 269.58 | E168: 126.7
A169: 2018-10-07 | B169: 2018 | C169: Sunset | D169: 2106.07 | E169: 1263.64
A170: 2017-04-28 | B170: 2017 | C170: Sunset | D170: 562.73 | E170: 236.35
A171: 2018-05-29 | B171: 2018 | C171: Yanaki | D171: 2347.6 | E171: 962.52
A172: 2018-06-10 | B172: 2018 | C172: Quad | D172: 1197.77 | E172: 598.89
A173: 2016-08-30 | B173: 2016 | C173: Yanaki | D173: 1411.59 | E173: 762.26
A174: 2017-07-27 | B174: 2017 | C174: Quad | D174: 2030.49 | E174: 1258.9
A175: 2018-09-27 | B175: 2018 | C175: Yanaki | D175: 1665.95 | E175: 766.34
A176: 2018-12-16 | B176: 2018 | C176: Sunset | D176: 305.46 | E176: 192.44
A177: 2018-12-30 | B177: 2018 | C177: Carlota | D177: 1913.15 | E177: 1033.1
A178: 2017-04-11 | B178: 2017 | C178: Yanaki | D178: 1838.42 | E178: 772.14
A179: 2016-01-31 | B179: 2016 | C179: Quad | D179: 2043.55 | E179: 1226.13
A180: 2016-10-31 | B180: 2016 | C180: Sunset | D180: 1426.9 | E180: 684.91
A181: 2016-03-13 | B181: 2016 | C181: Sunset | D181: 1997.29 | E181: 778.94
A182: 2017-11-07 | B182: 2017 | C182: Quad | D182: 823.75 | E182: 420.11
A183: 2018-06-14 | B183: 2018 | C183: Yanaki | D183: 1927.75 | E183: 1079.54
A184: 2016-06-14 | B184: 2016 | C184: Carlota | D184: 52.38 | E184: 25.14
A185: 2018-10-25 | B185: 2018 | C185: Quad | D185: 865.26 | E185: 449.94
A186: 2018-11-06 | B186: 2018 | C186: Sunset | D186: 1539.72 | E186: 1016.22
A187: 2016-12-09 | B187: 2016 | C187: Yanaki | D187: 698.67 | E187: 461.12
A188: 2016-03-14 | B188: 2016 | C188: Yanaki | D188: 33.12 | E188: 18.88
A189: 2018-11-15 | B189: 2018 | C189: Yanaki | D189: 1017.6 | E189: 590.21
A190: 2017-12-17 | B190: 2017 | C190: Sunset | D190: 1042 | E190: 666.88
A191: 2017-02-08 | B191: 2017 | C191: Sunset | D191: 1520.64 | E191: 669.08
A192: 2018-09-08 | B192: 2018 | C192: Yanaki | D192: 1780.84 | E192: 979.46
A193: 2018-01-02 | B193: 2018 | C193: Yanaki | D193: 1474.72 | E193: 722.61
A194: 2017-05-27 | B194: 2017 | C194: Quad | D194: 953.44 | E194: 457.65
A195: 2016-09-15 | B195: 2016 | C195: Quad | D195: 1769.66 | E195: 867.13
A196: 2017-03-06 | B196: 2017 | C196: Carlota | D196: 1275.35 | E196: 790.72
A197: 2016-09-27 | B197: 2016 | C197: Sunset | D197: 46.74 | E197: 20.57
A198: 2017-12-19 | B198: 2017 | C198: Carlota | D198: 1351.89 | E198: 851.69
A199: 2016-03-30 | B199: 2016 | C199: Yanaki | D199: 674.89 | E199: 364.44
A200: 2017-12-27 | B200: 2017 | C200: Sunset | D200: 2362.05 | E200: 1251.89
... 465 more rows

Sheet HW(3an)
A1: Date | B1: Year | C1: Product | D1: Sales | E1: COGS | G1: ** Each Record in the table is a sale.
A2: 2018-07-15 | B2: 2018 | C2: Quad | D2: 2453.52 | E2: 1128.62
A3: 2016-02-15 | B3: 2016 | C3: Sunset | D3: 2391.92 | E3: 980.69 | G3: Following Excel's Golden Rule create a formula that will average the sales numbers from the Sales Field
A4: 2017-11-15 | B4: 2017 | C4: Carlota | D4: 53.23 | E4: 22.89 | G4: for each Product, where the year is 2018. The Product criteria and Year criteria can change,
A5: 2018-08-31 | B5: 2018 | C5: Carlota | D5: 1558.76 | E5: 888.49 | G5: so you must follow Excel's Golden Rule.
A6: 2018-12-16 | B6: 2018 | C6: Sunset | D6: 917.72 | E6: 568.99
A7: 2018-05-16 | B7: 2018 | C7: Sunset | D7: 1876.27 | E7: 731.75
A8: 2016-12-27 | B8: 2016 | C8: Yanaki | D8: 1487.82 | E8: 684.4
A9: 2017-09-18 | B9: 2017 | C9: Quad | D9: 2017.73 | E9: 807.09 | G9: Year | H9: 2018
A10: 2018-06-04 | B10: 2018 | C10: Yanaki | D10: 1459.48 | E10: 569.2
A11: 2018-05-09 | B11: 2018 | C11: Carlota | D11: 1020.18 | E11: 591.7 | G11: Product | H11: Ave
A12: 2016-07-06 | B12: 2016 | C12: Carlota | D12: 653.87 | E12: 274.63 | G12: Quad | H12: =AVERAGEIFS($D$2:$D$665,$C$2:$C$665,G12,$B$2:$B$665,$H$9) -> 1213.654603
A13: 2017-11-09 | B13: 2017 | C13: Yanaki | D13: 1044.37 | E13: 616.18 | G13: Sunset | H13: 1215.075577
A14: 2017-09-07 | B14: 2017 | C14: Carlota | D14: 1900.47 | E14: 988.24 | G14: Carlota | H14: 1336.186875
A15: 2017-04-13 | B15: 2017 | C15: Carlota | D15: 1129.45 | E15: 463.07 | G15: Yanaki | H15: 1405.602759
A16: 2017-06-20 | B16: 2017 | C16: Carlota | D16: 328.7 | E16: 128.19
A17: 2017-05-26 | B17: 2017 | C17: Sunset | D17: 58 | E17: 36.54
A18: 2018-03-03 | B18: 2018 | C18: Sunset | D18: 1646.76 | E18: 1037.46
A19: 2017-11-10 | B19: 2017 | C19: Carlota | D19: 1865.2 | E19: 895.3
A20: 2017-01-18 | B20: 2017 | C20: Quad | D20: 884.17 | E20: 512.82
A21: 2017-06-12 | B21: 2017 | C21: Quad | D21: 1891.74 | E21: 908.04
A22: 2017-10-08 | B22: 2017 | C22: Sunset | D22: 561.61 | E22: 219.03
A23: 2017-08-27 | B23: 2017 | C23: Quad | D23: 713.19 | E23: 392.25
A24: 2016-03-16 | B24: 2016 | C24: Sunset | D24: 148.6 | E24: 69.84
A25: 2017-08-16 | B25: 2017 | C25: Yanaki | D25: 2436.08 | E25: 1315.48
A26: 2018-01-29 | B26: 2018 | C26: Sunset | D26: 353.67 | E26: 169.76
A27: 2017-11-07 | B27: 2017 | C27: Sunset | D27: 1993.91 | E27: 996.96
A28: 2018-04-27 | B28: 2018 | C28: Yanaki | D28: 1535.67 | E28: 982.83
A29: 2017-05-03 | B29: 2017 | C29: Yanaki | D29: 1058.98 | E29: 645.98
A30: 2017-10-18 | B30: 2017 | C30: Carlota | D30: 725.21 | E30: 362.61
A31: 2017-11-04 | B31: 2017 | C31: Carlota | D31: 1332.83 | E31: 879.67
A32: 2016-07-05 | B32: 2016 | C32: Quad | D32: 1955.26 | E32: 860.31
A33: 2016-10-03 | B33: 2016 | C33: Carlota | D33: 1003.54 | E33: 662.34
A34: 2017-03-12 | B34: 2017 | C34: Sunset | D34: 368.46 | E34: 184.23
A35: 2017-10-11 | B35: 2017 | C35: Quad | D35: 1473.86 | E35: 795.88
A36: 2017-10-24 | B36: 2017 | C36: Yanaki | D36: 539.23 | E36: 285.79
A37: 2016-01-08 | B37: 2016 | C37: Yanaki | D37: 1974.49 | E37: 908.27
A38: 2017-08-17 | B38: 2017 | C38: Yanaki | D38: 1931.47 | E38: 1081.62
A39: 2016-11-14 | B39: 2016 | C39: Yanaki | D39: 1449.29 | E39: 884.07
A40: 2017-06-18 | B40: 2017 | C40: Carlota | D40: 2307.69 | E40: 1038.46
A41: 2018-04-03 | B41: 2018 | C41: Quad | D41: 1115.13 | E41: 490.66
A42: 2016-01-15 | B42: 2016 | C42: Sunset | D42: 29.88 | E42: 16.14
A43: 2017-02-28 | B43: 2017 | C43: Carlota | D43: 2154.95 | E43: 1077.48
A44: 2016-03-04 | B44: 2016 | C44: Quad | D44: 1234.86 | E44: 815.01
A45: 2017-09-22 | B45: 2017 | C45: Yanaki | D45: 2154.18 | E45: 1206.34
A46: 2017-07-23 | B46: 2017 | C46: Quad | D46: 1744.62 | E46: 872.31
A47: 2018-06-18 | B47: 2018 | C47: Yanaki | D47: 2298.45 | E47: 1126.24
A48: 2016-08-14 | B48: 2016 | C48: Quad | D48: 494.28 | E48: 271.85
A49: 2016-03-09 | B49: 2016 | C49: Sunset | D49: 2253.03 | E49: 1149.05
A50: 2017-03-01 | B50: 2017 | C50: Sunset | D50: 1478.09 | E50: 768.61
A51: 2018-11-02 | B51: 2018 | C51: Carlota | D51: 678.92 | E51: 325.88
A52: 2018-04-11 | B52: 2018 | C52: Sunset | D52: 143.51 | E52: 71.76
A53: 2016-02-25 | B53: 2016 | C53: Carlota | D53: 1868.96 | E53: 747.58
A54: 2017-06-13 | B54: 2017 | C54: Carlota | D54: 1549.63 | E54: 604.36
A55: 2016-11-08 | B55: 2016 | C55: Sunset | D55: 937.24 | E55: 459.25
A56: 2018-05-07 | B56: 2018 | C56: Sunset | D56: 109.84 | E56: 54.92
A57: 2017-02-16 | B57: 2017 | C57: Carlota | D57: 747.68 | E57: 500.95
A58: 2017-05-31 | B58: 2017 | C58: Carlota | D58: 443.35 | E58: 252.71
A59: 2016-01-27 | B59: 2016 | C59: Carlota | D59: 1129.85 | E59: 723.1
A60: 2016-09-19 | B60: 2016 | C60: Yanaki | D60: 2202.75 | E60: 947.18
A61: 2016-02-05 | B61: 2016 | C61: Quad | D61: 29.56 | E61: 11.82
A62: 2016-04-13 | B62: 2016 | C62: Quad | D62: 2088.42 | E62: 1294.82
A63: 2017-03-23 | B63: 2017 | C63: Sunset | D63: 708.14 | E63: 446.13
A64: 2018-12-08 | B64: 2018 | C64: Carlota | D64: 44.86 | E64: 26.47
A65: 2017-09-19 | B65: 2017 | C65: Yanaki | D65: 1665.87 | E65: 866.25
A66: 2018-01-08 | B66: 2018 | C66: Quad | D66: 1657.26 | E66: 977.78
A67: 2017-01-28 | B67: 2017 | C67: Sunset | D67: 1543.94 | E67: 679.33
A68: 2016-07-20 | B68: 2016 | C68: Quad | D68: 1362.96 | E68: 708.74
A69: 2017-06-17 | B69: 2017 | C69: Quad | D69: 308.4 | E69: 141.86
A70: 2017-03-10 | B70: 2017 | C70: Carlota | D70: 2495.48 | E70: 1098.01
A71: 2017-05-10 | B71: 2017 | C71: Yanaki | D71: 402.76 | E71: 189.3
A72: 2018-05-08 | B72: 2018 | C72: Carlota | D72: 1421.93 | E72: 639.87
A73: 2016-01-05 | B73: 2016 | C73: Sunset | D73: 1172.31 | E73: 644.77
A74: 2017-04-09 | B74: 2017 | C74: Sunset | D74: 2070.49 | E74: 1345.82
A75: 2018-12-29 | B75: 2018 | C75: Quad | D75: 1965.34 | E75: 786.14
A76: 2016-06-21 | B76: 2016 | C76: Yanaki | D76: 1833 | E76: 879.84
A77: 2018-04-07 | B77: 2018 | C77: Yanaki | D77: 2151.45 | E77: 1312.38
A78: 2017-05-05 | B78: 2017 | C78: Yanaki | D78: 673.95 | E78: 384.15
A79: 2018-01-17 | B79: 2018 | C79: Quad | D79: 561.58 | E79: 247.1
A80: 2017-08-10 | B80: 2017 | C80: Carlota | D80: 1342.24 | E80: 711.39
A81: 2018-07-05 | B81: 2018 | C81: Sunset | D81: 1754.6 | E81: 789.57
A82: 2018-01-29 | B82: 2018 | C82: Sunset | D82: 214.29 | E82: 109.29
A83: 2017-02-27 | B83: 2017 | C83: Carlota | D83: 1561.54 | E83: 952.54
A84: 2018-03-06 | B84: 2018 | C84: Quad | D84: 1673.37 | E84: 870.15
A85: 2018-11-10 | B85: 2018 | C85: Quad | D85: 773.05 | E85: 440.64
A86: 2018-10-12 | B86: 2018 | C86: Quad | D86: 418.72 | E86: 230.3
A87: 2017-10-25 | B87: 2017 | C87: Yanaki | D87: 1946.44 | E87: 1051.08
A88: 2017-02-25 | B88: 2017 | C88: Carlota | D88: 770.94 | E88: 339.21
A89: 2018-08-20 | B89: 2018 | C89: Sunset | D89: 1222.49 | E89: 770.17
A90: 2018-03-25 | B90: 2018 | C90: Quad | D90: 1395.46 | E90: 851.23
A91: 2017-06-10 | B91: 2017 | C91: Quad | D91: 1520.63 | E91: 851.55
A92: 2016-09-22 | B92: 2016 | C92: Carlota | D92: 1094.5 | E92: 689.54
A93: 2017-03-14 | B93: 2017 | C93: Sunset | D93: 76.96 | E93: 33.86
A94: 2017-10-08 | B94: 2017 | C94: Sunset | D94: 234.72 | E94: 152.57
A95: 2017-02-27 | B95: 2017 | C95: Quad | D95: 2003.25 | E95: 1041.69
A96: 2017-05-24 | B96: 2017 | C96: Sunset | D96: 1688.01 | E96: 1063.45
A97: 2016-12-29 | B97: 2016 | C97: Carlota | D97: 1538.35 | E97: 815.33
A98: 2017-05-01 | B98: 2017 | C98: Yanaki | D98: 147.04 | E98: 97.05
A99: 2017-07-21 | B99: 2017 | C99: Yanaki | D99: 1908.31 | E99: 954.16
A100: 2017-01-10 | B100: 2017 | C100: Sunset | D100: 490.77 | E100: 319
A101: 2017-07-04 | B101: 2017 | C101: Quad | D101: 671.76 | E101: 409.77
A102: 2016-07-05 | B102: 2016 | C102: Quad | D102: 2301.62 | E102: 920.65
A103: 2017-01-11 | B103: 2017 | C103: Carlota | D103: 502.61 | E103: 206.07
A104: 2018-10-08 | B104: 2018 | C104: Quad | D104: 1047.63 | E104: 408.58
A105: 2018-05-07 | B105: 2018 | C105: Yanaki | D105: 1647.46 | E105: 741.36
A106: 2018-02-06 | B106: 2018 | C106: Sunset | D106: 609.32 | E106: 280.29
A107: 2018-02-10 | B107: 2018 | C107: Yanaki | D107: 489.95 | E107: 279.27
A108: 2018-04-10 | B108: 2018 | C108: Carlota | D108: 234.43 | E108: 126.59
A109: 2018-01-19 | B109: 2018 | C109: Carlota | D109: 1988.25 | E109: 1113.42
A110: 2018-01-16 | B110: 2018 | C110: Sunset | D110: 62.18 | E110: 24.25
A111: 2016-02-06 | B111: 2016 | C111: Yanaki | D111: 598.85 | E111: 269.48
A112: 2016-07-16 | B112: 2016 | C112: Carlota | D112: 2177.11 | E112: 936.16
A113: 2017-03-07 | B113: 2017 | C113: Quad | D113: 2417.35 | E113: 1281.2
A114: 2017-03-03 | B114: 2017 | C114: Carlota | D114: 498.52 | E114: 259.23
A115: 2017-12-22 | B115: 2017 | C115: Sunset | D115: 22.8 | E115: 13.91
A116: 2018-06-23 | B116: 2018 | C116: Quad | D116: 536.25 | E116: 294.94
A117: 2016-02-13 | B117: 2016 | C117: Quad | D117: 1871.36 | E117: 1160.24
A118: 2016-09-09 | B118: 2016 | C118: Sunset | D118: 880.15 | E118: 536.89
A119: 2016-05-13 | B119: 2016 | C119: Carlota | D119: 2115.44 | E119: 1184.65
A120: 2016-08-30 | B120: 2016 | C120: Sunset | D120: 2268.16 | E120: 975.31
A121: 2018-11-20 | B121: 2018 | C121: Carlota | D121: 1800.62 | E121: 954.33
A122: 2018-11-06 | B122: 2018 | C122: Quad | D122: 1860.09 | E122: 781.24
A123: 2018-02-23 | B123: 2018 | C123: Yanaki | D123: 667.55 | E123: 267.02
A124: 2016-11-04 | B124: 2016 | C124: Quad | D124: 989.63 | E124: 653.16
A125: 2016-06-07 | B125: 2016 | C125: Yanaki | D125: 1907.49 | E125: 820.22
A126: 2016-04-08 | B126: 2016 | C126: Quad | D126: 693.75 | E126: 291.38
A127: 2017-11-05 | B127: 2017 | C127: Carlota | D127: 699.22 | E127: 391.56
A128: 2017-07-22 | B128: 2017 | C128: Carlota | D128: 1489.21 | E128: 982.88
A129: 2017-01-25 | B129: 2017 | C129: Yanaki | D129: 987.63 | E129: 414.8
A130: 2018-06-21 | B130: 2018 | C130: Quad | D130: 2037.45 | E130: 1161.35
A131: 2016-02-11 | B131: 2016 | C131: Quad | D131: 2345 | E131: 1430.45
A132: 2018-01-19 | B132: 2018 | C132: Quad | D132: 1496.14 | E132: 703.19
A133: 2018-01-21 | B133: 2018 | C133: Carlota | D133: 836.37 | E133: 368
A134: 2018-06-13 | B134: 2018 | C134: Carlota | D134: 1023.91 | E134: 573.39
A135: 2017-01-25 | B135: 2017 | C135: Sunset | D135: 1553.78 | E135: 776.89
A136: 2017-12-19 | B136: 2017 | C136: Yanaki | D136: 946.52 | E136: 388.07
A137: 2016-06-18 | B137: 2016 | C137: Yanaki | D137: 891.64 | E137: 552.82
A138: 2016-03-02 | B138: 2016 | C138: Sunset | D138: 1042.61 | E138: 552.58
A139: 2018-03-30 | B139: 2018 | C139: Yanaki | D139: 692.89 | E139: 291.01
A140: 2016-05-07 | B140: 2016 | C140: Quad | D140: 2421.14 | E140: 1234.78
A141: 2017-10-08 | B141: 2017 | C141: Carlota | D141: 2459.69 | E141: 1008.47
A142: 2016-06-06 | B142: 2016 | C142: Yanaki | D142: 505.37 | E142: 293.11
A143: 2018-03-04 | B143: 2018 | C143: Sunset | D143: 1349.89 | E143: 566.95
A144: 2018-04-17 | B144: 2018 | C144: Yanaki | D144: 2256.65 | E144: 1196.02
A145: 2017-12-02 | B145: 2017 | C145: Quad | D145: 1068.15 | E145: 480.67
A146: 2017-04-07 | B146: 2017 | C146: Sunset | D146: 488.82 | E146: 303.07
A147: 2016-08-07 | B147: 2016 | C147: Quad | D147: 1549.1 | E147: 805.53
A148: 2017-12-24 | B148: 2017 | C148: Carlota | D148: 984.61 | E148: 384
A149: 2017-08-16 | B149: 2017 | C149: Sunset | D149: 2445.18 | E149: 1295.95
A150: 2017-10-05 | B150: 2017 | C150: Quad | D150: 45.18 | E150: 21.69
A151: 2017-02-02 | B151: 2017 | C151: Yanaki | D151: 2162.32 | E151: 1037.91
A152: 2016-09-18 | B152: 2016 | C152: Sunset | D152: 2345.43 | E152: 1336.9
A153: 2016-01-23 | B153: 2016 | C153: Quad | D153: 968.43 | E153: 571.37
A154: 2018-09-11 | B154: 2018 | C154: Yanaki | D154: 573.76 | E154: 355.73
A155: 2017-04-14 | B155: 2017 | C155: Sunset | D155: 2222.89 | E155: 911.38
A156: 2016-07-09 | B156: 2016 | C156: Yanaki | D156: 1452.43 | E156: 813.36
A157: 2018-02-22 | B157: 2018 | C157: Carlota | D157: 454.62 | E157: 222.76
A158: 2018-01-05 | B158: 2018 | C158: Carlota | D158: 1753.68 | E158: 789.16
A159: 2018-07-31 | B159: 2018 | C159: Sunset | D159: 1623.32 | E159: 795.43
A160: 2018-11-26 | B160: 2018 | C160: Quad | D160: 531.32 | E160: 355.98
A161: 2018-01-23 | B161: 2018 | C161: Yanaki | D161: 2144.95 | E161: 1394.22
A162: 2017-05-28 | B162: 2017 | C162: Sunset | D162: 517.14 | E162: 336.14
A163: 2018-01-29 | B163: 2018 | C163: Quad | D163: 852.54 | E163: 562.68
A164: 2017-07-12 | B164: 2017 | C164: Sunset | D164: 438.5 | E164: 223.64
A165: 2017-03-13 | B165: 2017 | C165: Carlota | D165: 1958.55 | E165: 998.86
A166: 2017-01-12 | B166: 2017 | C166: Quad | D166: 245.23 | E166: 122.62
A167: 2016-09-15 | B167: 2016 | C167: Sunset | D167: 315.6 | E167: 201.98
A168: 2016-03-19 | B168: 2016 | C168: Yanaki | D168: 269.58 | E168: 126.7
A169: 2018-10-07 | B169: 2018 | C169: Sunset | D169: 2106.07 | E169: 1263.64
A170: 2017-04-28 | B170: 2017 | C170: Sunset | D170: 562.73 | E170: 236.35
A171: 2018-05-29 | B171: 2018 | C171: Yanaki | D171: 2347.6 | E171: 962.52
A172: 2018-06-10 | B172: 2018 | C172: Quad | D172: 1197.77 | E172: 598.89
A173: 2016-08-30 | B173: 2016 | C173: Yanaki | D173: 1411.59 | E173: 762.26
A174: 2017-07-27 | B174: 2017 | C174: Quad | D174: 2030.49 | E174: 1258.9
A175: 2018-09-27 | B175: 2018 | C175: Yanaki | D175: 1665.95 | E175: 766.34
A176: 2018-12-16 | B176: 2018 | C176: Sunset | D176: 305.46 | E176: 192.44
A177: 2018-12-30 | B177: 2018 | C177: Carlota | D177: 1913.15 | E177: 1033.1
A178: 2017-04-11 | B178: 2017 | C178: Yanaki | D178: 1838.42 | E178: 772.14
A179: 2016-01-31 | B179: 2016 | C179: Quad | D179: 2043.55 | E179: 1226.13
A180: 2016-10-31 | B180: 2016 | C180: Sunset | D180: 1426.9 | E180: 684.91
A181: 2016-03-13 | B181: 2016 | C181: Sunset | D181: 1997.29 | E181: 778.94
A182: 2017-11-07 | B182: 2017 | C182: Quad | D182: 823.75 | E182: 420.11
A183: 2018-06-14 | B183: 2018 | C183: Yanaki | D183: 1927.75 | E183: 1079.54
A184: 2016-06-14 | B184: 2016 | C184: Carlota | D184: 52.38 | E184: 25.14
A185: 2018-10-25 | B185: 2018 | C185: Quad | D185: 865.26 | E185: 449.94
A186: 2018-11-06 | B186: 2018 | C186: Sunset | D186: 1539.72 | E186: 1016.22
A187: 2016-12-09 | B187: 2016 | C187: Yanaki | D187: 698.67 | E187: 461.12
A188: 2016-03-14 | B188: 2016 | C188: Yanaki | D188: 33.12 | E188: 18.88
A189: 2018-11-15 | B189: 2018 | C189: Yanaki | D189: 1017.6 | E189: 590.21
A190: 2017-12-17 | B190: 2017 | C190: Sunset | D190: 1042 | E190: 666.88
A191: 2017-02-08 | B191: 2017 | C191: Sunset | D191: 1520.64 | E191: 669.08
A192: 2018-09-08 | B192: 2018 | C192: Yanaki | D192: 1780.84 | E192: 979.46
A193: 2018-01-02 | B193: 2018 | C193: Yanaki | D193: 1474.72 | E193: 722.61
A194: 2017-05-27 | B194: 2017 | C194: Quad | D194: 953.44 | E194: 457.65
A195: 2016-09-15 | B195: 2016 | C195: Quad | D195: 1769.66 | E195: 867.13
A196: 2017-03-06 | B196: 2017 | C196: Carlota | D196: 1275.35 | E196: 790.72
A197: 2016-09-27 | B197: 2016 | C197: Sunset | D197: 46.74 | E197: 20.57
A198: 2017-12-19 | B198: 2017 | C198: Carlota | D198: 1351.89 | E198: 851.69
A199: 2016-03-30 | B199: 2016 | C199: Yanaki | D199: 674.89 | E199: 364.44
A200: 2017-12-27 | B200: 2017 | C200: Sunset | D200: 2362.05 | E200: 1251.89
... 465 more rows
